Workbook

Sheet Notes
A1: HHighsLLows.xlsm
A2: Coded beginning 2015-Dec-03 by Ronald McAllister (rpmac_xltt@sprynet.com)
A4: This Workbook demonstrates an EXCEL version of the ideas presented
A5: by Vitali Apirine in an article titled "Higher Highs & Lower Lows"
A6: which appears in the February 2016 issue of
A7: "Technical Analysis of Stocks and Commodities" magazine.
A9: Change Log:
B11: 2016Mar29 Ron McAllister
B12: Corrected failure in logic of Sub RefreshPricesFromYahoo that is intended to capture WhereWasI cell location.
A14: CalculationsAndCharts construction Notes:
B16: To approximate figure 1 from the article: use data for Symbol ^DJI, plot dates 5/13/1998 to 1/11/1999.
B17: To approximate figure 2 from the article: use data for Symbol ^GSPC, plot dates 8/22/2014 to 11/13/2015.
B18: To approximate figure 3 from the article: use data for Symbol ^DJI, plot dates 6/8/2011 to 12/9/2011.
B19: To approximate figure 4 from the article: use data for Symbol ^GSPC, plot dates 5/5/2008 to 4/30/2009.
B20: To approximate figure 5 from the article: use data for Symbol ^RUT, plot dates 1/19/2001 to 12/6/2001.
B22: Special handling is required to approximate figure 6 from the article as it uses Weekly data.
C23: If you have not yet found a reason to retrieve weekly or monthly data with one of these T-Tips spreadsheets, here are the steps.
C24: First, on the InputPriceData tab, click on cell B7. Click on the down arrow that appears to the right of B7 and click on "Weekly" from the drop down list.
C25: Then enter symbol ^GSPC in cell B4.
C26: Click the "Get Historical Data direct…." button and wait for the CalculationsAndCharts tab to reappear.
C27: At this point you have weekly data on the chart.
C28: From here you will be able to replicate Figure 6 by plotting dates 5/20/2002 to 1/25/2010.
B30: Usage Note: When you are done reviewing your version of Figure 6, there is a small bit of cleanup you really should perform.
C31: The InputPriceData tab remembers the last Data Type requested until you change it.
C32: So you should go back there and set the data type back to "Daily" to avoid future problems.
A34: New Features / Function in this February 2016 version of my T-Tips Template
B35: First: In the "Help! I would like to plot data" area.
B36: Added button to resolve #NA problems by locating the bar in the input data with a slightly more recent date than what the user actually requested.
B37: I find this particularly useful when I have a general idea of where I want to be date wise. Now I can pick a set of dates "out of the air".
B38: If either (or both) of my date specifications fall between dates that are available in the price history,
B39: this button will resolve them to the dates of the nearest, slightly more recent input bars.
B40: I can then refine my data interval search as necesssary from there.
B41: Really great when working with Weekly or Monthly studies!
B43: Second: In the "Price Chart Windowing Controls" area. (A11 and A12)
B44: When retrieving data for a new symbol or when changing from daily to weekly or monthly data, there was the possibility that the
B45: residual settings in A11 and A12 would fall outside of the number bars available on the input data tab after the new data retrieval.
B46: In certain combinations, this could create a serious error in the chart sizing logic and crash the spreadsheet.
B47: I have taken this opportunity to update the validity checking logic used in the chart sizing macros
B48: to adjust these values as necessary so that they fall within the boundaries of the newly retrieved input data.
A50: Development Notes:
C51: This workbook contains and uses VBA macros and may use VBA Class structures.
C52: Input Data
C53: The data in this workbook is sorted date descending (most recent date at the top). All formulas and
C54: VBA routines are built accordingly.
A56: Calculation and Chart Worksheet Usage Comments:
C57: In General, Items in Bolded BLUE are items you may freely change to play what-if games.
C58: Be sure to have a backup copy of the spreadsheet before you alter anything else.
A60: Features carried forward from the October 2015 TradersTips Template
B61: Improved automation: changes to any of the following will automatically initiate calculations appropriate to reflect a change.
C62: Changing either of cells A11 (pan) or A12 (zoom) will automatically initiate the same chart sizing macros that the manual
C63: "Set Chart" button uses.
B65: Added fail-over capability to attempt to retrieve company name and basic last trade info via screen scraper logic
C66: using the Yahoo stock Summary page. Until now, the way I have been doing this reports that ^DJI is Not Found!
C67: when there is history available. Will still report correctly for a truly Not Found Symbol
C68: Minor drawbacks to the screen scrape of the stock summary page include:
C69: Only date on the page is the date we request the page. I will use this date for now as the last trade date…
C70: But the user should be aware that this is not necessarily the correct date if you are making the inquiry on
C71: a weekend or market holiday.
C72: This is not a big issue as the last real trade will already be accounted for in the history download by about 6 pm on the real date of the trade.
C73: Note: This failover mechanism is only used if what I have been doing all along reports a "not found" for the requested symbol.

Sheet InputPriceData
A1: S&P 500 (^GSPC) -SNP (Daily)
A2: Last Trade: | B2: 2015-12-04 | C2: 2051.24 | D2: 2093.84 | E2: 2051.24 | F2: 2091.69 | G2: 740000496 | H2: 4:33pm | I2: 42.07 | J2: =IFERROR(OFFSET(J2,0,-1,1,1)/(OFFSET(J2,0,-4,1,1)-OFFSET(J2,0,-1,1,1)),"") -> 0.02052575599 | L2: Notes: | M2: Online Yahoo Finance Query Interfaces used in the VBA code to obtain this data: | IJ2: 241.79
A3: Request Online Yahoo History for: | M3: A.) Price History Only: "http://ichart.finance.yahoo.com/table.csv"
A4: Symbol | B4: ^GSPC | D4: Valid | I4: =OFFSET(I4,-2,0,1,1) -> 42.07 | M4: B.) Price History w/ imbedded divs n splits: "http://ichart.finance.yahoo.com/x"
A5: From | B5: 1977-01-07 | D5: Data | AF5: Trailing 12 Div return (Cur Close)
A6: To | B6: =TODAY() -> 2016-03-29 | D6: Types | E6: =VLOOKUP(B7,D7:E10,2,FALSE) -> d | M6: C.) Fundamentals (in this case name and exchange):
A7: Data Type | B7: Daily | D7: Daily | E7: d | M7: "http://download.finance.yahoo.com/d/quotes.csv?"
D8: Weekly | E8: w | M8: For some how-to doc regarding this particular interface, including a list of the
A9: Available Data | D9: Monthly | E9: m | M9: specific fields you can include in a request to this interface see:
A10: Bar Count: | B10: =COUNTA(B15:B70616)-1 -> 2600 | M10: http://www.gummy-stuff.org/Yahoo-data.htm | AF10: =OFFSET(AC15,1,0,1,1)/OFFSET(N15,1,0,1,1) -> 0
A11: From: | B11: =IF(B10<=0,"",OFFSET(B15,B10,IF(HistReqDataType="v",1,0),1,1)) -> 2005-08-09 | M11: This web site includes a downloadable working EXCEL/VBA example | W11: Trailing 12 Month Dividend Returns
A12: To: | B12: =IF(B10<=0,"",IF(HistReqDataType="v",OFFSET(B15,2,1,1,1),OFFSET(B15,1,0,1,1))) -> 2015-12-04 | M12: of the capabilities of this interface. | W12: Raw Close price on Dividend date | X12: Div Year and Month | Y12: Looking for year ago Div Year and Month | Z12: Year ago Div Date we found | AA12: row offset to year ago div Date | AB12: Same month flag | AC12: Trailing 12 Div Total | AD12: Trailing 12 Div return
Q13: Split History | S13: =COUNT(Q16:Q3919) -> 0 | T13: Running | U13: Dividend History
B14: Raw Data Values | H14: Adjusted | I14: Price Adjust | J14: Vol Adjust | K14: Adjusted Values | P14: Last | Q14: Effective | R14: Shares | T14: Vol Adjust | V14: =COUNT(U16:U3919) -> 0
A15: RelRow | B15: Date | C15: Open | D15: High | E15: Low | F15: Close | G15: Volume | H15: Close | I15: Factor | J15: Factor | K15: Open | L15: High | M15: Low | N15: Close | O15: Volume | P15: Trade | Q15: 42345 | R15: New | S15: Old | T15: 1 | U15: Date | V15: $ / Share
A16: 1 | B16: 2015-12-04 | C16: 2051.23999 | D16: 2093.840088 | E16: 2051.23999 | F16: 2091.689941 | G16: 4214910000 | H16: 2091.689941 | I16: =H16/F16 -> 1 | J16: =INDEX(OFFSET($T$15,0,0,$S$13+1,1),MATCH(B16,OFFSET($Q$15,0,0,$S$13+1,1),-1)) -> 1 | K16: =ROUND($I16*C16,2) -> 2051.24 | L16: =ROUND($I16*D16,2) -> 2093.84 | M16: 2051.24 | N16: 2091.69 | O16: =G16*J16 -> 4214910000
A17: 2 | B17: 2015-12-03 | C17: 2080.709961 | D17: 2085 | E17: 2042.349976 | F17: 2049.620117 | G17: 4306490000 | H17: 2049.620117 | I17: =H17/F17 -> 1 | J17: =INDEX(OFFSET($T$15,0,0,$S$13+1,1),MATCH(B17,OFFSET($Q$15,0,0,$S$13+1,1),-1)) -> 1 | K17: =ROUND($I17*C17,2) -> 2080.71 | L17: =ROUND($I17*D17,2) -> 2085 | M17: =ROUND($I17*E17,2) -> 2042.35 | N17: =ROUND($I17*F17,2) -> 2049.62 | O17: =G17*J17 -> 4306490000
A18: 3 | B18: 2015-12-02 | C18: 2101.709961 | D18: 2104.27002 | E18: 2077.110107 | F18: 2079.51001 | G18: 3950640000 | H18: 2079.51001 | I18: 1 | J18: 1 | K18: 2101.71 | L18: 2104.27 | M18: 2077.11 | N18: 2079.51 | O18: 3950640000
A19: 4 | B19: 2015-12-01 | C19: 2082.929932 | D19: 2103.370117 | E19: 2082.929932 | F19: 2102.629883 | G19: 3712120000 | H19: 2102.629883 | I19: 1 | J19: 1 | K19: 2082.93 | L19: 2103.37 | M19: 2082.93 | N19: 2102.63 | O19: 3712120000
A20: 5 | B20: 2015-11-30 | C20: 2090.949951 | D20: 2093.810059 | E20: 2080.409912 | F20: 2080.409912 | G20: 4245030000 | H20: 2080.409912 | I20: 1 | J20: 1 | K20: 2090.95 | L20: 2093.81 | M20: 2080.41 | N20: 2080.41 | O20: 4245030000
A21: 6 | B21: 2015-11-27 | C21: 2088.820068 | D21: 2093.290039 | E21: 2084.129883 | F21: 2090.110107 | G21: 1466840000 | H21: 2090.110107 | I21: 1 | J21: 1 | K21: 2088.82 | L21: 2093.29 | M21: 2084.13 | N21: 2090.11 | O21: 1466840000
A22: 7 | B22: 2015-11-25 | C22: 2089.300049 | D22: 2093 | E22: 2086.300049 | F22: 2088.870117 | G22: 2852940000 | H22: 2088.870117 | I22: 1 | J22: 1 | K22: 2089.3 | L22: 2093 | M22: 2086.3 | N22: 2088.87 | O22: 2852940000
A23: 8 | B23: 2015-11-24 | C23: 2084.419922 | D23: 2094.120117 | E23: 2070.290039 | F23: 2089.139893 | G23: 3884930000 | H23: 2089.139893 | I23: 1 | J23: 1 | K23: 2084.42 | L23: 2094.12 | M23: 2070.29 | N23: 2089.14 | O23: 3884930000
A24: 9 | B24: 2015-11-23 | C24: 2089.409912 | D24: 2095.610107 | E24: 2081.389893 | F24: 2086.590088 | G24: 3587980000 | H24: 2086.590088 | I24: 1 | J24: 1 | K24: 2089.41 | L24: 2095.61 | M24: 2081.39 | N24: 2086.59 | O24: 3587980000
A25: 10 | B25: 2015-11-20 | C25: 2082.820068 | D25: 2097.060059 | E25: 2082.820068 | F25: 2089.169922 | G25: 3929600000 | H25: 2089.169922 | I25: 1 | J25: 1 | K25: 2082.82 | L25: 2097.06 | M25: 2082.82 | N25: 2089.17 | O25: 3929600000
A26: 11 | B26: 2015-11-19 | C26: 2083.699951 | D26: 2086.73999 | E26: 2078.76001 | F26: 2081.23999 | G26: 3628110000 | H26: 2081.23999 | I26: 1 | J26: 1 | K26: 2083.7 | L26: 2086.74 | M26: 2078.76 | N26: 2081.24 | O26: 3628110000
A27: 12 | B27: 2015-11-18 | C27: 2051.98999 | D27: 2085.310059 | E27: 2051.98999 | F27: 2083.580078 | G27: 3926390000 | H27: 2083.580078 | I27: 1 | J27: 1 | K27: 2051.99 | L27: 2085.31 | M27: 2051.99 | N27: 2083.58 | O27: 3926390000
A28: 13 | B28: 2015-11-17 | C28: 2053.669922 | D28: 2066.689941 | E28: 2045.900024 | F28: 2050.439941 | G28: 4427350000 | H28: 2050.439941 | I28: 1 | J28: 1 | K28: 2053.67 | L28: 2066.69 | M28: 2045.9 | N28: 2050.44 | O28: 4427350000
A29: 14 | B29: 2015-11-16 | C29: 2022.079956 | D29: 2053.219971 | E29: 2019.390015 | F29: 2053.189941 | G29: 3741240000 | H29: 2053.189941 | I29: 1 | J29: 1 | K29: 2022.08 | L29: 2053.22 | M29: 2019.39 | N29: 2053.19 | O29: 3741240000
A30: 15 | B30: 2015-11-13 | C30: 2044.640015 | D30: 2044.640015 | E30: 2022.02002 | F30: 2023.040039 | G30: 4278750000 | H30: 2023.040039 | I30: 1 | J30: 1 | K30: 2044.64 | L30: 2044.64 | M30: 2022.02 | N30: 2023.04 | O30: 4278750000
A31: 16 | B31: 2015-11-12 | C31: 2072.290039 | D31: 2072.290039 | E31: 2045.660034 | F31: 2045.969971 | G31: 4016370000 | H31: 2045.969971 | I31: 1 | J31: 1 | K31: 2072.29 | L31: 2072.29 | M31: 2045.66 | N31: 2045.97 | O31: 4016370000
A32: 17 | B32: 2015-11-11 | C32: 2083.409912 | D32: 2086.939941 | E32: 2074.850098 | F32: 2075 | G32: 3692410000 | H32: 2075 | I32: 1 | J32: 1 | K32: 2083.41 | L32: 2086.94 | M32: 2074.85 | N32: 2075 | O32: 3692410000
A33: 18 | B33: 2015-11-10 | C33: 2077.189941 | D33: 2083.669922 | E33: 2069.909912 | F33: 2081.719971 | G33: 3821440000 | H33: 2081.719971 | I33: 1 | J33: 1 | K33: 2077.19 | L33: 2083.67 | M33: 2069.91 | N33: 2081.72 | O33: 3821440000
A34: 19 | B34: 2015-11-09 | C34: 2096.560059 | D34: 2096.560059 | E34: 2068.23999 | F34: 2078.580078 | G34: 3882350000 | H34: 2078.580078 | I34: 1 | J34: 1 | K34: 2096.56 | L34: 2096.56 | M34: 2068.24 | N34: 2078.58 | O34: 3882350000
A35: 20 | B35: 2015-11-06 | C35: 2098.600098 | D35: 2101.909912 | E35: 2083.73999 | F35: 2099.199951 | G35: 4369020000 | H35: 2099.199951 | I35: 1 | J35: 1 | K35: 2098.6 | L35: 2101.91 | M35: 2083.74 | N35: 2099.2 | O35: 4369020000
A36: 21 | B36: 2015-11-05 | C36: 2101.679932 | D36: 2108.780029 | E36: 2090.409912 | F36: 2099.929932 | G36: 4051890000 | H36: 2099.929932 | I36: 1 | J36: 1 | K36: 2101.68 | L36: 2108.78 | M36: 2090.41 | N36: 2099.93 | O36: 4051890000
A37: 22 | B37: 2015-11-04 | C37: 2110.600098 | D37: 2114.590088 | E37: 2096.97998 | F37: 2102.310059 | G37: 4078870000 | H37: 2102.310059 | I37: 1 | J37: 1 | K37: 2110.6 | L37: 2114.59 | M37: 2096.98 | N37: 2102.31 | O37: 4078870000
A38: 23 | B38: 2015-11-03 | C38: 2102.629883 | D38: 2116.47998 | E38: 2097.51001 | F38: 2109.790039 | G38: 4272060000 | H38: 2109.790039 | I38: 1 | J38: 1 | K38: 2102.63 | L38: 2116.48 | M38: 2097.51 | N38: 2109.79 | O38: 4272060000
A39: 24 | B39: 2015-11-02 | C39: 2080.76001 | D39: 2106.199951 | E39: 2080.76001 | F39: 2104.050049 | G39: 3760020000 | H39: 2104.050049 | I39: 1 | J39: 1 | K39: 2080.76 | L39: 2106.2 | M39: 2080.76 | N39: 2104.05 | O39: 3760020000
A40: 25 | B40: 2015-10-30 | C40: 2090 | D40: 2094.320068 | E40: 2079.340088 | F40: 2079.360107 | G40: 4256200000 | H40: 2079.360107 | I40: 1 | J40: 1 | K40: 2090 | L40: 2094.32 | M40: 2079.34 | N40: 2079.36 | O40: 4256200000
A41: 26 | B41: 2015-10-29 | C41: 2088.350098 | D41: 2092.52002 | E41: 2082.629883 | F41: 2089.409912 | G41: 4008940000 | H41: 2089.409912 | I41: 1 | J41: 1 | K41: 2088.35 | L41: 2092.52 | M41: 2082.63 | N41: 2089.41 | O41: 4008940000
A42: 27 | B42: 2015-10-28 | C42: 2066.47998 | D42: 2090.350098 | E42: 2063.110107 | F42: 2090.350098 | G42: 4698110000 | H42: 2090.350098 | I42: 1 | J42: 1 | K42: 2066.48 | L42: 2090.35 | M42: 2063.11 | N42: 2090.35 | O42: 4698110000
A43: 28 | B43: 2015-10-27 | C43: 2068.75 | D43: 2070.370117 | E43: 2058.840088 | F43: 2065.889893 | G43: 4216880000 | H43: 2065.889893 | I43: 1 | J43: 1 | K43: 2068.75 | L43: 2070.37 | M43: 2058.84 | N43: 2065.89 | O43: 4216880000
A44: 29 | B44: 2015-10-26 | C44: 2075.080078 | D44: 2075.139893 | E44: 2066.530029 | F44: 2071.179932 | G44: 3385800000 | H44: 2071.179932 | I44: 1 | J44: 1 | K44: 2075.08 | L44: 2075.14 | M44: 2066.53 | N44: 2071.18 | O44: 3385800000
A45: 30 | B45: 2015-10-23 | C45: 2058.189941 | D45: 2079.73999 | E45: 2058.189941 | F45: 2075.149902 | G45: 4108460000 | H45: 2075.149902 | I45: 1 | J45: 1 | K45: 2058.19 | L45: 2079.74 | M45: 2058.19 | N45: 2075.15 | O45: 4108460000
A46: 31 | B46: 2015-10-22 | C46: 2021.880005 | D46: 2055.199951 | E46: 2021.880005 | F46: 2052.51001 | G46: 4430850000 | H46: 2052.51001 | I46: 1 | J46: 1 | K46: 2021.88 | L46: 2055.2 | M46: 2021.88 | N46: 2052.51 | O46: 4430850000
A47: 32 | B47: 2015-10-21 | C47: 2033.469971 | D47: 2037.969971 | E47: 2017.219971 | F47: 2018.939941 | G47: 3627790000 | H47: 2018.939941 | I47: 1 | J47: 1 | K47: 2033.47 | L47: 2037.97 | M47: 2017.22 | N47: 2018.94 | O47: 3627790000
A48: 33 | B48: 2015-10-20 | C48: 2033.130005 | D48: 2039.119995 | E48: 2026.609985 | F48: 2030.77002 | G48: 3331500000 | H48: 2030.77002 | I48: 1 | J48: 1 | K48: 2033.13 | L48: 2039.12 | M48: 2026.61 | N48: 2030.77 | O48: 3331500000
A49: 34 | B49: 2015-10-19 | C49: 2031.72998 | D49: 2034.449951 | E49: 2022.310059 | F49: 2033.660034 | G49: 3287320000 | H49: 2033.660034 | I49: 1 | J49: 1 | K49: 2031.73 | L49: 2034.45 | M49: 2022.31 | N49: 2033.66 | O49: 3287320000
A50: 35 | B50: 2015-10-16 | C50: 2024.369995 | D50: 2033.540039 | E50: 2020.459961 | F50: 2033.109985 | G50: 3595430000 | H50: 2033.109985 | I50: 1 | J50: 1 | K50: 2024.37 | L50: 2033.54 | M50: 2020.46 | N50: 2033.11 | O50: 3595430000
A51: 36 | B51: 2015-10-15 | C51: 1996.469971 | D51: 2024.150024 | E51: 1996.469971 | F51: 2023.859985 | G51: 3746290000 | H51: 2023.859985 | I51: 1 | J51: 1 | K51: 1996.47 | L51: 2024.15 | M51: 1996.47 | N51: 2023.86 | O51: 3746290000
A52: 37 | B52: 2015-10-14 | C52: 2003.660034 | D52: 2009.560059 | E52: 1990.72998 | F52: 1994.23999 | G52: 3644590000 | H52: 1994.23999 | I52: 1 | J52: 1 | K52: 2003.66 | L52: 2009.56 | M52: 1990.73 | N52: 1994.24 | O52: 3644590000
A53: 38 | B53: 2015-10-13 | C53: 2015 | D53: 2022.339966 | E53: 2001.780029 | F53: 2003.689941 | G53: 3401920000 | H53: 2003.689941 | I53: 1 | J53: 1 | K53: 2015 | L53: 2022.34 | M53: 2001.78 | N53: 2003.69 | O53: 3401920000
A54: 39 | B54: 2015-10-12 | C54: 2015.650024 | D54: 2018.660034 | E54: 2010.550049 | F54: 2017.459961 | G54: 2893250000 | H54: 2017.459961 | I54: 1 | J54: 1 | K54: 2015.65 | L54: 2018.66 | M54: 2010.55 | N54: 2017.46 | O54: 2893250000
A55: 40 | B55: 2015-10-09 | C55: 2013.72998 | D55: 2020.130005 | E55: 2007.609985 | F55: 2014.890015 | G55: 3706900000 | H55: 2014.890015 | I55: 1 | J55: 1 | K55: 2013.73 | L55: 2020.13 | M55: 2007.61 | N55: 2014.89 | O55: 3706900000
A56: 41 | B56: 2015-10-08 | C56: 1994.01001 | D56: 2016.5 | E56: 1987.530029 | F56: 2013.430054 | G56: 3939140000 | H56: 2013.430054 | I56: 1 | J56: 1 | K56: 1994.01 | L56: 2016.5 | M56: 1987.53 | N56: 2013.43 | O56: 3939140000
A57: 42 | B57: 2015-10-07 | C57: 1982.339966 | D57: 1999.310059 | E57: 1976.439941 | F57: 1995.829956 | G57: 4666470000 | H57: 1995.829956 | I57: 1 | J57: 1 | K57: 1982.34 | L57: 1999.31 | M57: 1976.44 | N57: 1995.83 | O57: 4666470000
A58: 43 | B58: 2015-10-06 | C58: 1986.630005 | D58: 1991.619995 | E58: 1971.98999 | F58: 1979.920044 | G58: 4202400000 | H58: 1979.920044 | I58: 1 | J58: 1 | K58: 1986.63 | L58: 1991.62 | M58: 1971.99 | N58: 1979.92 | O58: 4202400000
A59: 44 | B59: 2015-10-05 | C59: 1954.329956 | D59: 1989.170044 | E59: 1954.329956 | F59: 1987.050049 | G59: 4334490000 | H59: 1987.050049 | I59: 1 | J59: 1 | K59: 1954.33 | L59: 1989.17 | M59: 1954.33 | N59: 1987.05 | O59: 4334490000
A60: 45 | B60: 2015-10-02 | C60: 1921.77002 | D60: 1951.359985 | E60: 1893.699951 | F60: 1951.359985 | G60: 4378570000 | H60: 1951.359985 | I60: 1 | J60: 1 | K60: 1921.77 | L60: 1951.36 | M60: 1893.7 | N60: 1951.36 | O60: 4378570000
A61: 46 | B61: 2015-10-01 | C61: 1919.650024 | D61: 1927.209961 | E61: 1900.699951 | F61: 1923.819946 | G61: 3983600000 | H61: 1923.819946 | I61: 1 | J61: 1 | K61: 1919.65 | L61: 1927.21 | M61: 1900.7 | N61: 1923.82 | O61: 3983600000
A62: 47 | B62: 2015-09-30 | C62: 1887.140015 | D62: 1920.530029 | E62: 1887.140015 | F62: 1920.030029 | G62: 4525070000 | H62: 1920.030029 | I62: 1 | J62: 1 | K62: 1887.14 | L62: 1920.53 | M62: 1887.14 | N62: 1920.03 | O62: 4525070000
A63: 48 | B63: 2015-09-29 | C63: 1881.900024 | D63: 1899.47998 | E63: 1871.910034 | F63: 1884.089966 | G63: 4132390000 | H63: 1884.089966 | I63: 1 | J63: 1 | K63: 1881.9 | L63: 1899.48 | M63: 1871.91 | N63: 1884.09 | O63: 4132390000
A64: 49 | B64: 2015-09-28 | C64: 1929.180054 | D64: 1929.180054 | E64: 1879.209961 | F64: 1881.77002 | G64: 4326660000 | H64: 1881.77002 | I64: 1 | J64: 1 | K64: 1929.18 | L64: 1929.18 | M64: 1879.21 | N64: 1881.77 | O64: 4326660000
A65: 50 | B65: 2015-09-25 | C65: 1935.930054 | D65: 1952.890015 | E65: 1921.5 | F65: 1931.339966 | G65: 3721870000 | H65: 1931.339966 | I65: 1 | J65: 1 | K65: 1935.93 | L65: 1952.89 | M65: 1921.5 | N65: 1931.34 | O65: 3721870000
A66: 51 | B66: 2015-09-24 | C66: 1934.810059 | D66: 1937.170044 | E66: 1908.920044 | F66: 1932.23999 | G66: 4091530000 | H66: 1932.23999 | I66: 1 | J66: 1 | K66: 1934.81 | L66: 1937.17 | M66: 1908.92 | N66: 1932.24 | O66: 4091530000
A67: 52 | B67: 2015-09-23 | C67: 1943.23999 | D67: 1949.52002 | E67: 1932.569946 | F67: 1938.76001 | G67: 3190530000 | H67: 1938.76001 | I67: 1 | J67: 1 | K67: 1943.24 | L67: 1949.52 | M67: 1932.57 | N67: 1938.76 | O67: 3190530000
A68: 53 | B68: 2015-09-22 | C68: 1961.390015 | D68: 1961.390015 | E68: 1929.219971 | F68: 1942.73999 | G68: 3808260000 | H68: 1942.73999 | I68: 1 | J68: 1 | K68: 1961.39 | L68: 1961.39 | M68: 1929.22 | N68: 1942.74 | O68: 3808260000
A69: 54 | B69: 2015-09-21 | C69: 1960.839966 | D69: 1979.640015 | E69: 1955.800049 | F69: 1966.969971 | G69: 3269350000 | H69: 1966.969971 | I69: 1 | J69: 1 | K69: 1960.84 | L69: 1979.64 | M69: 1955.8 | N69: 1966.97 | O69: 3269350000
A70: 55 | B70: 2015-09-18 | C70: 1989.660034 | D70: 1989.660034 | E70: 1953.449951 | F70: 1958.030029 | G70: 6021240000 | H70: 1958.030029 | I70: 1 | J70: 1 | K70: 1989.66 | L70: 1989.66 | M70: 1953.45 | N70: 1958.03 | O70: 6021240000
A71: 56 | B71: 2015-09-17 | C71: 1995.329956 | D71: 2020.859985 | E71: 1986.72998 | F71: 1990.199951 | G71: 4183790000 | H71: 1990.199951 | I71: 1 | J71: 1 | K71: 1995.33 | L71: 2020.86 | M71: 1986.73 | N71: 1990.2 | O71: 4183790000
A72: 57 | B72: 2015-09-16 | C72: 1978.02002 | D72: 1997.26001 | E72: 1977.930054 | F72: 1995.310059 | G72: 3630680000 | H72: 1995.310059 | I72: 1 | J72: 1 | K72: 1978.02 | L72: 1997.26 | M72: 1977.93 | N72: 1995.31 | O72: 3630680000
A73: 58 | B73: 2015-09-15 | C73: 1955.099976 | D73: 1983.189941 | E73: 1954.300049 | F73: 1978.089966 | G73: 3239860000 | H73: 1978.089966 | I73: 1 | J73: 1 | K73: 1955.1 | L73: 1983.19 | M73: 1954.3 | N73: 1978.09 | O73: 3239860000
A74: 59 | B74: 2015-09-14 | C74: 1963.060059 | D74: 1963.060059 | E74: 1948.27002 | F74: 1953.030029 | G74: 3000200000 | H74: 1953.030029 | I74: 1 | J74: 1 | K74: 1963.06 | L74: 1963.06 | M74: 1948.27 | N74: 1953.03 | O74: 3000200000
A75: 60 | B75: 2015-09-11 | C75: 1951.449951 | D75: 1961.050049 | E75: 1939.189941 | F75: 1961.050049 | G75: 3218590000 | H75: 1961.050049 | I75: 1 | J75: 1 | K75: 1951.45 | L75: 1961.05 | M75: 1939.19 | N75: 1961.05 | O75: 3218590000
A76: 61 | B76: 2015-09-10 | C76: 1941.589966 | D76: 1965.290039 | E76: 1937.189941 | F76: 1952.290039 | G76: 3626320000 | H76: 1952.290039 | I76: 1 | J76: 1 | K76: 1941.59 | L76: 1965.29 | M76: 1937.19 | N76: 1952.29 | O76: 3626320000
A77: 62 | B77: 2015-09-09 | C77: 1971.449951 | D77: 1988.630005 | E77: 1937.880005 | F77: 1942.040039 | G77: 3652120000 | H77: 1942.040039 | I77: 1 | J77: 1 | K77: 1971.45 | L77: 1988.63 | M77: 1937.88 | N77: 1942.04 | O77: 3652120000
A78: 63 | B78: 2015-09-08 | C78: 1927.300049 | D78: 1970.420044 | E78: 1927.300049 | F78: 1969.410034 | G78: 3548650000 | H78: 1969.410034 | I78: 1 | J78: 1 | K78: 1927.3 | L78: 1970.42 | M78: 1927.3 | N78: 1969.41 | O78: 3548650000
A79: 64 | B79: 2015-09-04 | C79: 1947.76001 | D79: 1947.76001 | E79: 1911.209961 | F79: 1921.219971 | G79: 3167090000 | H79: 1921.219971 | I79: 1 | J79: 1 | K79: 1947.76 | L79: 1947.76 | M79: 1911.21 | N79: 1921.22 | O79: 3167090000
A80: 65 | B80: 2015-09-03 | C80: 1950.790039 | D80: 1975.01001 | E80: 1944.719971 | F80: 1951.130005 | G80: 3520700000 | H80: 1951.130005 | I80: 1 | J80: 1 | K80: 1950.79 | L80: 1975.01 | M80: 1944.72 | N80: 1951.13 | O80: 3520700000
A81: 66 | B81: 2015-09-02 | C81: 1916.52002 | D81: 1948.910034 | E81: 1916.52002 | F81: 1948.859985 | G81: 3742620000 | H81: 1948.859985 | I81: =H81/F81 -> 1 | J81: =INDEX(OFFSET($T$15,0,0,$S$13+1,1),MATCH(B81,OFFSET($Q$15,0,0,$S$13+1,1),-1)) -> 1 | K81: =ROUND($I81*C81,2) -> 1916.52 | L81: =ROUND($I81*D81,2) -> 1948.91 | M81: =ROUND($I81*E81,2) -> 1916.52 | N81: =ROUND($I81*F81,2) -> 1948.86 | O81: =G81*J81 -> 3742620000
A82: 67 | B82: 2015-09-01 | C82: 1970.089966 | D82: 1970.089966 | E82: 1903.069946 | F82: 1913.849976 | G82: 4371850000 | H82: 1913.849976 | I82: 1 | J82: 1 | K82: 1970.09 | L82: 1970.09 | M82: 1903.07 | N82: 1913.85 | O82: 4371850000
A83: 68 | B83: 2015-08-31 | C83: 1986.72998 | D83: 1986.72998 | E83: 1965.97998 | F83: 1972.180054 | G83: 3915100000 | H83: 1972.180054 | I83: 1 | J83: 1 | K83: 1986.73 | L83: 1986.73 | M83: 1965.98 | N83: 1972.18 | O83: 3915100000
A84: 69 | B84: 2015-08-28 | C84: 1986.060059 | D84: 1993.47998 | E84: 1975.189941 | F84: 1988.869995 | G84: 3949080000 | H84: 1988.869995 | I84: 1 | J84: 1 | K84: 1986.06 | L84: 1993.48 | M84: 1975.19 | N84: 1988.87 | O84: 3949080000
A85: 70 | B85: 2015-08-27 | C85: 1942.77002 | D85: 1989.599976 | E85: 1942.77002 | F85: 1987.660034 | G85: 5006390000 | H85: 1987.660034 | I85: 1 | J85: 1 | K85: 1942.77 | L85: 1989.6 | M85: 1942.77 | N85: 1987.66 | O85: 5006390000
A86: 71 | B86: 2015-08-26 | C86: 1872.75 | D86: 1943.089966 | E86: 1872.75 | F86: 1940.51001 | G86: 5338250000 | H86: 1940.51001 | I86: 1 | J86: 1 | K86: 1872.75 | L86: 1943.09 | M86: 1872.75 | N86: 1940.51 | O86: 5338250000
A87: 72 | B87: 2015-08-25 | C87: 1898.079956 | D87: 1948.040039 | E87: 1867.079956 | F87: 1867.609985 | G87: 5183560000 | H87: 1867.609985 | I87: 1 | J87: 1 | K87: 1898.08 | L87: 1948.04 | M87: 1867.08 | N87: 1867.61 | O87: 5183560000
A88: 73 | B88: 2015-08-24 | C88: 1965.150024 | D88: 1965.150024 | E88: 1867.01001 | F88: 1893.209961 | G88: 6612690000 | H88: 1893.209961 | I88: 1 | J88: 1 | K88: 1965.15 | L88: 1965.15 | M88: 1867.01 | N88: 1893.21 | O88: 6612690000
A89: 74 | B89: 2015-08-21 | C89: 2034.079956 | D89: 2034.079956 | E89: 1970.890015 | F89: 1970.890015 | G89: 5018240000 | H89: 1970.890015 | I89: 1 | J89: 1 | K89: 2034.08 | L89: 2034.08 | M89: 1970.89 | N89: 1970.89 | O89: 5018240000
A90: 75 | B90: 2015-08-20 | C90: 2076.610107 | D90: 2076.610107 | E90: 2035.72998 | F90: 2035.72998 | G90: 3922470000 | H90: 2035.72998 | I90: 1 | J90: 1 | K90: 2076.61 | L90: 2076.61 | M90: 2035.73 | N90: 2035.73 | O90: 3922470000
A91: 76 | B91: 2015-08-19 | C91: 2095.689941 | D91: 2096.169922 | E91: 2070.530029 | F91: 2079.610107 | G91: 3512920000 | H91: 2079.610107 | I91: 1 | J91: 1 | K91: 2095.69 | L91: 2096.17 | M91: 2070.53 | N91: 2079.61 | O91: 3512920000
A92: 77 | B92: 2015-08-18 | C92: 2101.98999 | D92: 2103.469971 | E92: 2094.139893 | F92: 2096.919922 | G92: 2949990000 | H92: 2096.919922 | I92: 1 | J92: 1 | K92: 2101.99 | L92: 2103.47 | M92: 2094.14 | N92: 2096.92 | O92: 2949990000
A93: 78 | B93: 2015-08-17 | C93: 2089.699951 | D93: 2102.870117 | E93: 2079.300049 | F93: 2102.439941 | G93: 2867690000 | H93: 2102.439941 | I93: 1 | J93: 1 | K93: 2089.7 | L93: 2102.87 | M93: 2079.3 | N93: 2102.44 | O93: 2867690000
A94: 79 | B94: 2015-08-14 | C94: 2083.149902 | D94: 2092.449951 | E94: 2080.610107 | F94: 2091.540039 | G94: 2795590000 | H94: 2091.540039 | I94: 1 | J94: 1 | K94: 2083.15 | L94: 2092.45 | M94: 2080.61 | N94: 2091.54 | O94: 2795590000
A95: 80 | B95: 2015-08-13 | C95: 2086.189941 | D95: 2092.929932 | E95: 2078.26001 | F95: 2083.389893 | G95: 3221300000 | H95: 2083.389893 | I95: 1 | J95: 1 | K95: 2086.19 | L95: 2092.93 | M95: 2078.26 | N95: 2083.39 | O95: 3221300000
A96: 81 | B96: 2015-08-12 | C96: 2081.100098 | D96: 2089.060059 | E96: 2052.090088 | F96: 2086.050049 | G96: 4269130000 | H96: 2086.050049 | I96: 1 | J96: 1 | K96: 2081.1 | L96: 2089.06 | M96: 2052.09 | N96: 2086.05 | O96: 4269130000
A97: 82 | B97: 2015-08-11 | C97: 2102.659912 | D97: 2102.659912 | E97: 2076.48999 | F97: 2084.070068 | G97: 3708880000 | H97: 2084.070068 | I97: 1 | J97: 1 | K97: 2102.66 | L97: 2102.66 | M97: 2076.49 | N97: 2084.07 | O97: 3708880000
A98: 83 | B98: 2015-08-10 | C98: 2080.97998 | D98: 2105.350098 | E98: 2080.97998 | F98: 2104.179932 | G98: 3514460000 | H98: 2104.179932 | I98: 1 | J98: 1 | K98: 2080.98 | L98: 2105.35 | M98: 2080.98 | N98: 2104.18 | O98: 3514460000
A99: 84 | B99: 2015-08-07 | C99: 2082.610107 | D99: 2082.610107 | E99: 2067.909912 | F99: 2077.570068 | G99: 3602320000 | H99: 2077.570068 | I99: 1 | J99: 1 | K99: 2082.61 | L99: 2082.61 | M99: 2067.91 | N99: 2077.57 | O99: 3602320000
A100: 85 | B100: 2015-08-06 | C100: 2100.75 | D100: 2103.320068 | E100: 2075.530029 | F100: 2083.560059 | G100: 4246570000 | H100: 2083.560059 | I100: 1 | J100: 1 | K100: 2100.75 | L100: 2103.32 | M100: 2075.53 | N100: 2083.56 | O100: 4246570000
A101: 86 | B101: 2015-08-05 | C101: 2095.27002 | D101: 2112.659912 | E101: 2095.27002 | F101: 2099.840088 | G101: 3968680000 | H101: 2099.840088 | I101: 1 | J101: 1 | K101: 2095.27 | L101: 2112.66 | M101: 2095.27 | N101: 2099.84 | O101: 3968680000
A102: 87 | B102: 2015-08-04 | C102: 2097.679932 | D102: 2102.51001 | E102: 2088.600098 | F102: 2093.320068 | G102: 3546710000 | H102: 2093.320068 | I102: 1 | J102: 1 | K102: 2097.68 | L102: 2102.51 | M102: 2088.6 | N102: 2093.32 | O102: 3546710000
A103: 88 | B103: 2015-08-03 | C103: 2104.48999 | D103: 2105.699951 | E103: 2087.310059 | F103: 2098.040039 | G103: 3476770000 | H103: 2098.040039 | I103: 1 | J103: 1 | K103: 2104.49 | L103: 2105.7 | M103: 2087.31 | N103: 2098.04 | O103: 3476770000
A104: 89 | B104: 2015-07-31 | C104: 2111.600098 | D104: 2114.23999 | E104: 2102.070068 | F104: 2103.840088 | G104: 3681340000 | H104: 2103.840088 | I104: 1 | J104: 1 | K104: 2111.6 | L104: 2114.24 | M104: 2102.07 | N104: 2103.84 | O104: 3681340000
A105: 90 | B105: 2015-07-30 | C105: 2106.780029 | D105: 2110.47998 | E105: 2094.969971 | F105: 2108.629883 | G105: 3579410000 | H105: 2108.629883 | I105: 1 | J105: 1 | K105: 2106.78 | L105: 2110.48 | M105: 2094.97 | N105: 2108.63 | O105: 3579410000
A106: 91 | B106: 2015-07-29 | C106: 2094.699951 | D106: 2110.600098 | E106: 2094.080078 | F106: 2108.570068 | G106: 4038900000 | H106: 2108.570068 | I106: 1 | J106: 1 | K106: 2094.7 | L106: 2110.6 | M106: 2094.08 | N106: 2108.57 | O106: 4038900000
A107: 92 | B107: 2015-07-28 | C107: 2070.75 | D107: 2095.600098 | E107: 2069.090088 | F107: 2093.25 | G107: 4117740000 | H107: 2093.25 | I107: 1 | J107: 1 | K107: 2070.75 | L107: 2095.6 | M107: 2069.09 | N107: 2093.25 | O107: 4117740000
A108: 93 | B108: 2015-07-27 | C108: 2078.189941 | D108: 2078.189941 | E108: 2063.52002 | F108: 2067.639893 | G108: 3836750000 | H108: 2067.639893 | I108: 1 | J108: 1 | K108: 2078.19 | L108: 2078.19 | M108: 2063.52 | N108: 2067.64 | O108: 3836750000
A109: 94 | B109: 2015-07-24 | C109: 2102.23999 | D109: 2106.01001 | E109: 2077.090088 | F109: 2079.649902 | G109: 3870040000 | H109: 2079.649902 | I109: 1 | J109: 1 | K109: 2102.24 | L109: 2106.01 | M109: 2077.09 | N109: 2079.65 | O109: 3870040000
A110: 95 | B110: 2015-07-23 | C110: 2114.159912 | D110: 2116.870117 | E110: 2098.629883 | F110: 2102.149902 | G110: 3772810000 | H110: 2102.149902 | I110: 1 | J110: 1 | K110: 2114.16 | L110: 2116.87 | M110: 2098.63 | N110: 2102.15 | O110: 3772810000
A111: 96 | B111: 2015-07-22 | C111: 2118.209961 | D111: 2118.51001 | E111: 2110 | F111: 2114.149902 | G111: 3694070000 | H111: 2114.149902 | I111: 1 | J111: 1 | K111: 2118.21 | L111: 2118.51 | M111: 2110 | N111: 2114.15 | O111: 3694070000
A112: 97 | B112: 2015-07-21 | C112: 2127.550049 | D112: 2128.48999 | E112: 2115.399902 | F112: 2119.209961 | G112: 3343690000 | H112: 2119.209961 | I112: 1 | J112: 1 | K112: 2127.55 | L112: 2128.49 | M112: 2115.4 | N112: 2119.21 | O112: 3343690000
A113: 98 | B113: 2015-07-20 | C113: 2126.850098 | D113: 2132.820068 | E113: 2123.659912 | F113: 2128.280029 | G113: 3245870000 | H113: 2128.280029 | I113: 1 | J113: 1 | K113: 2126.85 | L113: 2132.82 | M113: 2123.66 | N113: 2128.28 | O113: 3245870000
A114: 99 | B114: 2015-07-17 | C114: 2126.800049 | D114: 2128.909912 | E114: 2119.879883 | F114: 2126.639893 | G114: 3362750000 | H114: 2126.639893 | I114: 1 | J114: 1 | K114: 2126.8 | L114: 2128.91 | M114: 2119.88 | N114: 2126.64 | O114: 3362750000
A115: 100 | B115: 2015-07-16 | C115: 2110.550049 | D115: 2124.419922 | E115: 2110.550049 | F115: 2124.290039 | G115: 3227080000 | H115: 2124.290039 | I115: 1 | J115: 1 | K115: 2110.55 | L115: 2124.42 | M115: 2110.55 | N115: 2124.29 | O115: 3227080000
A116: 101 | B116: 2015-07-15 | C116: 2109.01001 | D116: 2114.139893 | E116: 2102.48999 | F116: 2107.399902 | G116: 3261810000 | H116: 2107.399902 | I116: 1 | J116: 1 | K116: 2109.01 | L116: 2114.14 | M116: 2102.49 | N116: 2107.4 | O116: 3261810000
A117: 102 | B117: 2015-07-14 | C117: 2099.719971 | D117: 2111.97998 | E117: 2098.179932 | F117: 2108.949951 | G117: 3002120000 | H117: 2108.949951 | I117: 1 | J117: 1 | K117: 2099.72 | L117: 2111.98 | M117: 2098.18 | N117: 2108.95 | O117: 3002120000
A118: 103 | B118: 2015-07-13 | C118: 2080.030029 | D118: 2100.669922 | E118: 2080.030029 | F118: 2099.600098 | G118: 3096730000 | H118: 2099.600098 | I118: 1 | J118: 1 | K118: 2080.03 | L118: 2100.67 | M118: 2080.03 | N118: 2099.6 | O118: 3096730000
A119: 104 | B119: 2015-07-10 | C119: 2052.73999 | D119: 2081.310059 | E119: 2052.73999 | F119: 2076.620117 | G119: 3065070000 | H119: 2076.620117 | I119: 1 | J119: 1 | K119: 2052.74 | L119: 2081.31 | M119: 2052.74 | N119: 2076.62 | O119: 3065070000
A120: 105 | B120: 2015-07-09 | C120: 2049.72998 | D120: 2074.280029 | E120: 2049.72998 | F120: 2051.310059 | G120: 3446810000 | H120: 2051.310059 | I120: 1 | J120: 1 | K120: 2049.73 | L120: 2074.28 | M120: 2049.73 | N120: 2051.31 | O120: 3446810000
A121: 106 | B121: 2015-07-08 | C121: 2077.659912 | D121: 2077.659912 | E121: 2044.660034 | F121: 2046.680054 | G121: 3608780000 | H121: 2046.680054 | I121: 1 | J121: 1 | K121: 2077.66 | L121: 2077.66 | M121: 2044.66 | N121: 2046.68 | O121: 3608780000
A122: 107 | B122: 2015-07-07 | C122: 2069.52002 | D122: 2083.73999 | E122: 2044.02002 | F122: 2081.340088 | G122: 4458660000 | H122: 2081.340088 | I122: 1 | J122: 1 | K122: 2069.52 | L122: 2083.74 | M122: 2044.02 | N122: 2081.34 | O122: 4458660000
A123: 108 | B123: 2015-07-06 | C123: 2073.949951 | D123: 2078.610107 | E123: 2058.399902 | F123: 2068.76001 | G123: 3486360000 | H123: 2068.76001 | I123: 1 | J123: 1 | K123: 2073.95 | L123: 2078.61 | M123: 2058.4 | N123: 2068.76 | O123: 3486360000
A124: 109 | B124: 2015-07-02 | C124: 2078.030029 | D124: 2085.060059 | E124: 2071.02002 | F124: 2076.780029 | G124: 2996540000 | H124: 2076.780029 | I124: 1 | J124: 1 | K124: 2078.03 | L124: 2085.06 | M124: 2071.02 | N124: 2076.78 | O124: 2996540000
A125: 110 | B125: 2015-07-01 | C125: 2067 | D125: 2082.780029 | E125: 2067 | F125: 2077.419922 | G125: 3727260000 | H125: 2077.419922 | I125: 1 | J125: 1 | K125: 2067 | L125: 2082.78 | M125: 2067 | N125: 2077.42 | O125: 3727260000
A126: 111 | B126: 2015-06-30 | C126: 2061.189941 | D126: 2074.280029 | E126: 2056.320068 | F126: 2063.110107 | G126: 4078540000 | H126: 2063.110107 | I126: 1 | J126: 1 | K126: 2061.19 | L126: 2074.28 | M126: 2056.32 | N126: 2063.11 | O126: 4078540000
A127: 112 | B127: 2015-06-29 | C127: 2098.629883 | D127: 2098.629883 | E127: 2056.639893 | F127: 2057.639893 | G127: 3678960000 | H127: 2057.639893 | I127: 1 | J127: 1 | K127: 2098.63 | L127: 2098.63 | M127: 2056.64 | N127: 2057.64 | O127: 3678960000
A128: 113 | B128: 2015-06-26 | C128: 2102.620117 | D128: 2108.919922 | E128: 2095.379883 | F128: 2101.48999 | G128: 5025470000 | H128: 2101.48999 | I128: 1 | J128: 1 | K128: 2102.62 | L128: 2108.92 | M128: 2095.38 | N128: 2101.49 | O128: 5025470000
A129: 114 | B129: 2015-06-25 | C129: 2109.959961 | D129: 2116.040039 | E129: 2101.780029 | F129: 2102.310059 | G129: 3214610000 | H129: 2102.310059 | I129: 1 | J129: 1 | K129: 2109.96 | L129: 2116.04 | M129: 2101.78 | N129: 2102.31 | O129: 3214610000
A130: 115 | B130: 2015-06-24 | C130: 2123.649902 | D130: 2125.100098 | E130: 2108.580078 | F130: 2108.580078 | G130: 3102480000 | H130: 2108.580078 | I130: 1 | J130: 1 | K130: 2123.65 | L130: 2125.1 | M130: 2108.58 | N130: 2108.58 | O130: 3102480000
A131: 116 | B131: 2015-06-23 | C131: 2123.159912 | D131: 2128.030029 | E131: 2119.889893 | F131: 2124.199951 | G131: 3091190000 | H131: 2124.199951 | I131: 1 | J131: 1 | K131: 2123.16 | L131: 2128.03 | M131: 2119.89 | N131: 2124.2 | O131: 3091190000
A132: 117 | B132: 2015-06-22 | C132: 2112.5 | D132: 2129.870117 | E132: 2112.5 | F132: 2122.850098 | G132: 3030020000 | H132: 2122.850098 | I132: 1 | J132: 1 | K132: 2112.5 | L132: 2129.87 | M132: 2112.5 | N132: 2122.85 | O132: 3030020000
A133: 118 | B133: 2015-06-19 | C133: 2121.060059 | D133: 2121.639893 | E133: 2109.449951 | F133: 2109.98999 | G133: 4449810000 | H133: 2109.98999 | I133: 1 | J133: 1 | K133: 2121.06 | L133: 2121.64 | M133: 2109.45 | N133: 2109.99 | O133: 4449810000
A134: 119 | B134: 2015-06-18 | C134: 2101.580078 | D134: 2126.649902 | E134: 2101.580078 | F134: 2121.23999 | G134: 3520360000 | H134: 2121.23999 | I134: 1 | J134: 1 | K134: 2101.58 | L134: 2126.65 | M134: 2101.58 | N134: 2121.24 | O134: 3520360000
A135: 120 | B135: 2015-06-17 | C135: 2097.399902 | D135: 2106.790039 | E135: 2088.860107 | F135: 2100.439941 | G135: 3222240000 | H135: 2100.439941 | I135: 1 | J135: 1 | K135: 2097.4 | L135: 2106.79 | M135: 2088.86 | N135: 2100.44 | O135: 3222240000
A136: 121 | B136: 2015-06-16 | C136: 2084.26001 | D136: 2097.399902 | E136: 2082.100098 | F136: 2096.290039 | G136: 2919900000 | H136: 2096.290039 | I136: 1 | J136: 1 | K136: 2084.26 | L136: 2097.4 | M136: 2082.1 | N136: 2096.29 | O136: 2919900000
A137: 122 | B137: 2015-06-15 | C137: 2091.340088 | D137: 2091.340088 | E137: 2072.48999 | F137: 2084.429932 | G137: 3061570000 | H137: 2084.429932 | I137: 1 | J137: 1 | K137: 2091.34 | L137: 2091.34 | M137: 2072.49 | N137: 2084.43 | O137: 3061570000
A138: 123 | B138: 2015-06-12 | C138: 2107.429932 | D138: 2107.429932 | E138: 2091.330078 | F138: 2094.110107 | G138: 2719400000 | H138: 2094.110107 | I138: 1 | J138: 1 | K138: 2107.43 | L138: 2107.43 | M138: 2091.33 | N138: 2094.11 | O138: 2719400000
A139: 124 | B139: 2015-06-11 | C139: 2106.23999 | D139: 2115.02002 | E139: 2106.23999 | F139: 2108.860107 | G139: 3128600000 | H139: 2108.860107 | I139: 1 | J139: 1 | K139: 2106.24 | L139: 2115.02 | M139: 2106.24 | N139: 2108.86 | O139: 3128600000
A140: 125 | B140: 2015-06-10 | C140: 2081.120117 | D140: 2108.5 | E140: 2081.120117 | F140: 2105.199951 | G140: 3414320000 | H140: 2105.199951 | I140: 1 | J140: 1 | K140: 2081.12 | L140: 2108.5 | M140: 2081.12 | N140: 2105.2 | O140: 3414320000
A141: 126 | B141: 2015-06-09 | C141: 2079.070068 | D141: 2085.620117 | E141: 2072.139893 | F141: 2080.149902 | G141: 3034580000 | H141: 2080.149902 | I141: 1 | J141: 1 | K141: 2079.07 | L141: 2085.62 | M141: 2072.14 | N141: 2080.15 | O141: 3034580000
A142: 127 | B142: 2015-06-08 | C142: 2092.340088 | D142: 2093.01001 | E142: 2079.110107 | F142: 2079.280029 | G142: 2917150000 | H142: 2079.280029 | I142: 1 | J142: 1 | K142: 2092.34 | L142: 2093.01 | M142: 2079.11 | N142: 2079.28 | O142: 2917150000
A143: 128 | B143: 2015-06-05 | C143: 2095.090088 | D143: 2100.98999 | E143: 2085.669922 | F143: 2092.830078 | G143: 3243690000 | H143: 2092.830078 | I143: 1 | J143: 1 | K143: 2095.09 | L143: 2100.99 | M143: 2085.67 | N143: 2092.83 | O143: 3243690000
A144: 129 | B144: 2015-06-04 | C144: 2112.350098 | D144: 2112.889893 | E144: 2093.22998 | F144: 2095.840088 | G144: 3200050000 | H144: 2095.840088 | I144: 1 | J144: 1 | K144: 2112.35 | L144: 2112.89 | M144: 2093.23 | N144: 2095.84 | O144: 3200050000
A145: 130 | B145: 2015-06-03 | C145: 2110.639893 | D145: 2121.919922 | E145: 2109.610107 | F145: 2114.070068 | G145: 3099980000 | H145: 2114.070068 | I145: =H145/F145 -> 1 | J145: =INDEX(OFFSET($T$15,0,0,$S$13+1,1),MATCH(B145,OFFSET($Q$15,0,0,$S$13+1,1),-1)) -> 1 | K145: =ROUND($I145*C145,2) -> 2110.64 | L145: =ROUND($I145*D145,2) -> 2121.92 | M145: =ROUND($I145*E145,2) -> 2109.61 | N145: =ROUND($I145*F145,2) -> 2114.07 | O145: =G145*J145 -> 3099980000
A146: 131 | B146: 2015-06-02 | C146: 2110.409912 | D146: 2117.590088 | E146: 2099.139893 | F146: 2109.600098 | G146: 3049350000 | H146: 2109.600098 | I146: 1 | J146: 1 | K146: 2110.41 | L146: 2117.59 | M146: 2099.14 | N146: 2109.6 | O146: 3049350000
A147: 132 | B147: 2015-06-01 | C147: 2108.639893 | D147: 2119.149902 | E147: 2102.540039 | F147: 2111.72998 | G147: 3011710000 | H147: 2111.72998 | I147: 1 | J147: 1 | K147: 2108.64 | L147: 2119.15 | M147: 2102.54 | N147: 2111.73 | O147: 3011710000
A148: 133 | B148: 2015-05-29 | C148: 2120.659912 | D148: 2120.659912 | E148: 2104.889893 | F148: 2107.389893 | G148: 3927390000 | H148: 2107.389893 | I148: 1 | J148: 1 | K148: 2120.66 | L148: 2120.66 | M148: 2104.89 | N148: 2107.39 | O148: 3927390000
A149: 134 | B149: 2015-05-28 | C149: 2122.27002 | D149: 2122.27002 | E149: 2112.860107 | F149: 2120.790039 | G149: 2980350000 | H149: 2120.790039 | I149: 1 | J149: 1 | K149: 2122.27 | L149: 2122.27 | M149: 2112.86 | N149: 2120.79 | O149: 2980350000
A150: 135 | B150: 2015-05-27 | C150: 2105.129883 | D150: 2126.219971 | E150: 2105.129883 | F150: 2123.47998 | G150: 3127960000 | H150: 2123.47998 | I150: 1 | J150: 1 | K150: 2105.13 | L150: 2126.22 | M150: 2105.13 | N150: 2123.48 | O150: 3127960000
A151: 136 | B151: 2015-05-26 | C151: 2125.340088 | D151: 2125.340088 | E151: 2099.179932 | F151: 2104.199951 | G151: 3342130000 | H151: 2104.199951 | I151: 1 | J151: 1 | K151: 2125.34 | L151: 2125.34 | M151: 2099.18 | N151: 2104.2 | O151: 3342130000
A152: 137 | B152: 2015-05-22 | C152: 2130.360107 | D152: 2132.149902 | E152: 2126.060059 | F152: 2126.060059 | G152: 2571860000 | H152: 2126.060059 | I152: 1 | J152: 1 | K152: 2130.36 | L152: 2132.15 | M152: 2126.06 | N152: 2126.06 | O152: 2571860000
A153: 138 | B153: 2015-05-21 | C153: 2125.550049 | D153: 2134.280029 | E153: 2122.949951 | F153: 2130.820068 | G153: 3070460000 | H153: 2130.820068 | I153: 1 | J153: 1 | K153: 2125.55 | L153: 2134.28 | M153: 2122.95 | N153: 2130.82 | O153: 3070460000
A154: 139 | B154: 2015-05-20 | C154: 2127.790039 | D154: 2134.719971 | E154: 2122.590088 | F154: 2125.850098 | G154: 3025880000 | H154: 2125.850098 | I154: 1 | J154: 1 | K154: 2127.79 | L154: 2134.72 | M154: 2122.59 | N154: 2125.85 | O154: 3025880000
A155: 140 | B155: 2015-05-19 | C155: 2129.449951 | D155: 2133.02002 | E155: 2124.5 | F155: 2127.830078 | G155: 3296030000 | H155: 2127.830078 | I155: 1 | J155: 1 | K155: 2129.45 | L155: 2133.02 | M155: 2124.5 | N155: 2127.83 | O155: 3296030000
A156: 141 | B156: 2015-05-18 | C156: 2121.300049 | D156: 2131.780029 | E156: 2120.01001 | F156: 2129.199951 | G156: 2888190000 | H156: 2129.199951 | I156: 1 | J156: 1 | K156: 2121.3 | L156: 2131.78 | M156: 2120.01 | N156: 2129.2 | O156: 2888190000
A157: 142 | B157: 2015-05-15 | C157: 2122.070068 | D157: 2123.889893 | E157: 2116.810059 | F157: 2122.72998 | G157: 3092080000 | H157: 2122.72998 | I157: 1 | J157: 1 | K157: 2122.07 | L157: 2123.89 | M157: 2116.81 | N157: 2122.73 | O157: 3092080000
A158: 143 | B158: 2015-05-14 | C158: 2100.429932 | D158: 2121.449951 | E158: 2100.429932 | F158: 2121.100098 | G158: 3225740000 | H158: 2121.100098 | I158: 1 | J158: 1 | K158: 2100.43 | L158: 2121.45 | M158: 2100.43 | N158: 2121.1 | O158: 3225740000
A159: 144 | B159: 2015-05-13 | C159: 2099.620117 | D159: 2110.189941 | E159: 2096.040039 | F159: 2098.47998 | G159: 3374260000 | H159: 2098.47998 | I159: 1 | J159: 1 | K159: 2099.62 | L159: 2110.19 | M159: 2096.04 | N159: 2098.48 | O159: 3374260000
A160: 145 | B160: 2015-05-12 | C160: 2102.870117 | D160: 2105.060059 | E160: 2085.570068 | F160: 2099.120117 | G160: 3139520000 | H160: 2099.120117 | I160: 1 | J160: 1 | K160: 2102.87 | L160: 2105.06 | M160: 2085.57 | N160: 2099.12 | O160: 3139520000
A161: 146 | B161: 2015-05-11 | C161: 2115.560059 | D161: 2117.689941 | E161: 2104.580078 | F161: 2105.330078 | G161: 2992670000 | H161: 2105.330078 | I161: 1 | J161: 1 | K161: 2115.56 | L161: 2117.69 | M161: 2104.58 | N161: 2105.33 | O161: 2992670000
A162: 147 | B162: 2015-05-08 | C162: 2092.129883 | D162: 2117.659912 | E162: 2092.129883 | F162: 2116.100098 | G162: 3399440000 | H162: 2116.100098 | I162: 1 | J162: 1 | K162: 2092.13 | L162: 2117.66 | M162: 2092.13 | N162: 2116.1 | O162: 3399440000
A163: 148 | B163: 2015-05-07 | C163: 2079.959961 | D163: 2092.899902 | E163: 2074.98999 | F163: 2088 | G163: 3676640000 | H163: 2088 | I163: 1 | J163: 1 | K163: 2079.96 | L163: 2092.9 | M163: 2074.99 | N163: 2088 | O163: 3676640000
A164: 149 | B164: 2015-05-06 | C164: 2091.26001 | D164: 2098.419922 | E164: 2067.929932 | F164: 2080.149902 | G164: 3792210000 | H164: 2080.149902 | I164: 1 | J164: 1 | K164: 2091.26 | L164: 2098.42 | M164: 2067.93 | N164: 2080.15 | O164: 3792210000
A165: 150 | B165: 2015-05-05 | C165: 2112.629883 | D165: 2115.23999 | E165: 2088.459961 | F165: 2089.459961 | G165: 3793950000 | H165: 2089.459961 | I165: 1 | J165: 1 | K165: 2112.63 | L165: 2115.24 | M165: 2088.46 | N165: 2089.46 | O165: 3793950000
A166: 151 | B166: 2015-05-04 | C166: 2110.22998 | D166: 2120.949951 | E166: 2110.22998 | F166: 2114.48999 | G166: 3091580000 | H166: 2114.48999 | I166: 1 | J166: 1 | K166: 2110.23 | L166: 2120.95 | M166: 2110.23 | N166: 2114.49 | O166: 3091580000
A167: 152 | B167: 2015-05-01 | C167: 2087.379883 | D167: 2108.409912 | E167: 2087.379883 | F167: 2108.290039 | G167: 3379390000 | H167: 2108.290039 | I167: 1 | J167: 1 | K167: 2087.38 | L167: 2108.41 | M167: 2087.38 | N167: 2108.29 | O167: 3379390000
A168: 153 | B168: 2015-04-30 | C168: 2105.52002 | D168: 2105.52002 | E168: 2077.590088 | F168: 2085.51001 | G168: 4509680000 | H168: 2085.51001 | I168: 1 | J168: 1 | K168: 2105.52 | L168: 2105.52 | M168: 2077.59 | N168: 2085.51 | O168: 4509680000
A169: 154 | B169: 2015-04-29 | C169: 2112.48999 | D169: 2113.649902 | E169: 2097.409912 | F169: 2106.850098 | G169: 4074970000 | H169: 2106.850098 | I169: 1 | J169: 1 | K169: 2112.49 | L169: 2113.65 | M169: 2097.41 | N169: 2106.85 | O169: 4074970000
A170: 155 | B170: 2015-04-28 | C170: 2108.350098 | D170: 2116.040039 | E170: 2094.889893 | F170: 2114.76001 | G170: 3546270000 | H170: 2114.76001 | I170: 1 | J170: 1 | K170: 2108.35 | L170: 2116.04 | M170: 2094.89 | N170: 2114.76 | O170: 3546270000
A171: 156 | B171: 2015-04-27 | C171: 2119.290039 | D171: 2125.919922 | E171: 2107.040039 | F171: 2108.919922 | G171: 3438750000 | H171: 2108.919922 | I171: 1 | J171: 1 | K171: 2119.29 | L171: 2125.92 | M171: 2107.04 | N171: 2108.92 | O171: 3438750000
A172: 157 | B172: 2015-04-24 | C172: 2112.800049 | D172: 2120.919922 | E172: 2112.800049 | F172: 2117.689941 | G172: 3375780000 | H172: 2117.689941 | I172: 1 | J172: 1 | K172: 2112.8 | L172: 2120.92 | M172: 2112.8 | N172: 2117.69 | O172: 3375780000
A173: 158 | B173: 2015-04-23 | C173: 2107.209961 | D173: 2120.48999 | E173: 2103.189941 | F173: 2112.929932 | G173: 3636670000 | H173: 2112.929932 | I173: 1 | J173: 1 | K173: 2107.21 | L173: 2120.49 | M173: 2103.19 | N173: 2112.93 | O173: 3636670000
A174: 159 | B174: 2015-04-22 | C174: 2098.27002 | D174: 2109.97998 | E174: 2091.050049 | F174: 2107.959961 | G174: 3348480000 | H174: 2107.959961 | I174: 1 | J174: 1 | K174: 2098.27 | L174: 2109.98 | M174: 2091.05 | N174: 2107.96 | O174: 3348480000
A175: 160 | B175: 2015-04-21 | C175: 2102.820068 | D175: 2109.639893 | E175: 2094.379883 | F175: 2097.290039 | G175: 3243410000 | H175: 2097.290039 | I175: 1 | J175: 1 | K175: 2102.82 | L175: 2109.64 | M175: 2094.38 | N175: 2097.29 | O175: 3243410000
A176: 161 | B176: 2015-04-20 | C176: 2084.110107 | D176: 2103.939941 | E176: 2084.110107 | F176: 2100.399902 | G176: 3000160000 | H176: 2100.399902 | I176: 1 | J176: 1 | K176: 2084.11 | L176: 2103.94 | M176: 2084.11 | N176: 2100.4 | O176: 3000160000
A177: 162 | B177: 2015-04-17 | C177: 2102.580078 | D177: 2102.580078 | E177: 2072.370117 | F177: 2081.179932 | G177: 3627600000 | H177: 2081.179932 | I177: 1 | J177: 1 | K177: 2102.58 | L177: 2102.58 | M177: 2072.37 | N177: 2081.18 | O177: 3627600000
A178: 163 | B178: 2015-04-16 | C178: 2105.959961 | D178: 2111.300049 | E178: 2100.02002 | F178: 2104.98999 | G178: 3434120000 | H178: 2104.98999 | I178: 1 | J178: 1 | K178: 2105.96 | L178: 2111.3 | M178: 2100.02 | N178: 2104.99 | O178: 3434120000
A179: 164 | B179: 2015-04-15 | C179: 2097.820068 | D179: 2111.909912 | E179: 2097.820068 | F179: 2106.629883 | G179: 4013760000 | H179: 2106.629883 | I179: 1 | J179: 1 | K179: 2097.82 | L179: 2111.91 | M179: 2097.82 | N179: 2106.63 | O179: 4013760000
A180: 165 | B180: 2015-04-14 | C180: 2092.280029 | D180: 2098.620117 | E180: 2083.23999 | F180: 2095.840088 | G180: 3301270000 | H180: 2095.840088 | I180: 1 | J180: 1 | K180: 2092.28 | L180: 2098.62 | M180: 2083.24 | N180: 2095.84 | O180: 3301270000
A181: 166 | B181: 2015-04-13 | C181: 2102.030029 | D181: 2107.649902 | E181: 2092.330078 | F181: 2092.429932 | G181: 2908420000 | H181: 2092.429932 | I181: 1 | J181: 1 | K181: 2102.03 | L181: 2107.65 | M181: 2092.33 | N181: 2092.43 | O181: 2908420000
A182: 167 | B182: 2015-04-10 | C182: 2091.51001 | D182: 2102.610107 | E182: 2091.51001 | F182: 2102.060059 | G182: 536200000 | H182: 2102.060059 | I182: 1 | J182: 1 | K182: 2091.51 | L182: 2102.61 | M182: 2091.51 | N182: 2102.06 | O182: 536200000
A183: 168 | B183: 2015-04-09 | C183: 2081.290039 | D183: 2093.310059 | E183: 2074.290039 | F183: 2091.179932 | G183: 3172360000 | H183: 2091.179932 | I183: 1 | J183: 1 | K183: 2081.29 | L183: 2093.31 | M183: 2074.29 | N183: 2091.18 | O183: 3172360000
A184: 169 | B184: 2015-04-08 | C184: 2076.939941 | D184: 2086.689941 | E184: 2073.300049 | F184: 2081.899902 | G184: 3265330000 | H184: 2081.899902 | I184: 1 | J184: 1 | K184: 2076.94 | L184: 2086.69 | M184: 2073.3 | N184: 2081.9 | O184: 3265330000
A185: 170 | B185: 2015-04-07 | C185: 2080.790039 | D185: 2089.810059 | E185: 2076.100098 | F185: 2076.330078 | G185: 3065510000 | H185: 2076.330078 | I185: 1 | J185: 1 | K185: 2080.79 | L185: 2089.81 | M185: 2076.1 | N185: 2076.33 | O185: 3065510000
A186: 171 | B186: 2015-04-06 | C186: 2064.870117 | D186: 2086.98999 | E186: 2056.52002 | F186: 2080.620117 | G186: 3302970000 | H186: 2080.620117 | I186: 1 | J186: 1 | K186: 2064.87 | L186: 2086.99 | M186: 2056.52 | N186: 2080.62 | O186: 3302970000
A187: 172 | B187: 2015-04-02 | C187: 2060.030029 | D187: 2072.169922 | E187: 2057.320068 | F187: 2066.959961 | G187: 3095960000 | H187: 2066.959961 | I187: 1 | J187: 1 | K187: 2060.03 | L187: 2072.17 | M187: 2057.32 | N187: 2066.96 | O187: 3095960000
A188: 173 | B188: 2015-04-01 | C188: 2067.629883 | D188: 2067.629883 | E188: 2048.379883 | F188: 2059.689941 | G188: 3543270000 | H188: 2059.689941 | I188: 1 | J188: 1 | K188: 2067.63 | L188: 2067.63 | M188: 2048.38 | N188: 2059.69 | O188: 3543270000
A189: 174 | B189: 2015-03-31 | C189: 2084.050049 | D189: 2084.050049 | E189: 2067.040039 | F189: 2067.889893 | G189: 3376550000 | H189: 2067.889893 | I189: 1 | J189: 1 | K189: 2084.05 | L189: 2084.05 | M189: 2067.04 | N189: 2067.89 | O189: 3376550000
A190: 175 | B190: 2015-03-30 | C190: 2064.110107 | D190: 2088.969971 | E190: 2064.110107 | F190: 2086.23999 | G190: 2917690000 | H190: 2086.23999 | I190: 1 | J190: 1 | K190: 2064.11 | L190: 2088.97 | M190: 2064.11 | N190: 2086.24 | O190: 2917690000
A191: 176 | B191: 2015-03-27 | C191: 2055.780029 | D191: 2062.830078 | E191: 2052.959961 | F191: 2061.02002 | G191: 3008550000 | H191: 2061.02002 | I191: 1 | J191: 1 | K191: 2055.78 | L191: 2062.83 | M191: 2052.96 | N191: 2061.02 | O191: 3008550000
A192: 177 | B192: 2015-03-26 | C192: 2059.939941 | D192: 2067.149902 | E192: 2045.5 | F192: 2056.149902 | G192: 3510670000 | H192: 2056.149902 | I192: 1 | J192: 1 | K192: 2059.94 | L192: 2067.15 | M192: 2045.5 | N192: 2056.15 | O192: 3510670000
A193: 178 | B193: 2015-03-25 | C193: 2093.100098 | D193: 2097.429932 | E193: 2061.050049 | F193: 2061.050049 | G193: 3521140000 | H193: 2061.050049 | I193: 1 | J193: 1 | K193: 2093.1 | L193: 2097.43 | M193: 2061.05 | N193: 2061.05 | O193: 3521140000
A194: 179 | B194: 2015-03-24 | C194: 2103.939941 | D194: 2107.629883 | E194: 2091.5 | F194: 2091.5 | G194: 3189820000 | H194: 2091.5 | I194: 1 | J194: 1 | K194: 2103.94 | L194: 2107.63 | M194: 2091.5 | N194: 2091.5 | O194: 3189820000
A195: 180 | B195: 2015-03-23 | C195: 2107.98999 | D195: 2114.860107 | E195: 2104.419922 | F195: 2104.419922 | G195: 3267960000 | H195: 2104.419922 | I195: 1 | J195: 1 | K195: 2107.99 | L195: 2114.86 | M195: 2104.42 | N195: 2104.42 | O195: 3267960000
A196: 181 | B196: 2015-03-20 | C196: 2090.320068 | D196: 2113.919922 | E196: 2090.320068 | F196: 2108.100098 | G196: 5554120000 | H196: 2108.100098 | I196: 1 | J196: 1 | K196: 2090.32 | L196: 2113.92 | M196: 2090.32 | N196: 2108.1 | O196: 5554120000
A197: 182 | B197: 2015-03-19 | C197: 2098.689941 | D197: 2098.689941 | E197: 2085.560059 | F197: 2089.27002 | G197: 3305220000 | H197: 2089.27002 | I197: 1 | J197: 1 | K197: 2098.69 | L197: 2098.69 | M197: 2085.56 | N197: 2089.27 | O197: 3305220000
A198: 183 | B198: 2015-03-18 | C198: 2072.840088 | D198: 2106.850098 | E198: 2061.22998 | F198: 2099.5 | G198: 4128210000 | H198: 2099.5 | I198: 1 | J198: 1 | K198: 2072.84 | L198: 2106.85 | M198: 2061.23 | N198: 2099.5 | O198: 4128210000
A199: 184 | B199: 2015-03-17 | C199: 2080.590088 | D199: 2080.590088 | E199: 2065.080078 | F199: 2074.280029 | G199: 3221840000 | H199: 2074.280029 | I199: 1 | J199: 1 | K199: 2080.59 | L199: 2080.59 | M199: 2065.08 | N199: 2074.28 | O199: 3221840000
A200: 185 | B200: 2015-03-16 | C200: 2055.350098 | D200: 2081.409912 | E200: 2055.350098 | F200: 2081.189941 | G200: 3295600000 | H200: 2081.189941 | I200: 1 | J200: 1 | K200: 2055.35 | L200: 2081.41 | M200: 2055.35 | N200: 2081.19 | O200: 3295600000
... 2415 more rows

Sheet InputIndexData
A1: SPDR S&P 500 (SPY) -PCX (Daily)
A2: Last Trade: | B2: 2015-12-03 | C2: 208.83 | D2: 209.15 | E2: 204.75 | F2: 205.61 | G2: 166132329 | H2: 4:00pm | I2: -2.92 | J2: =IFERROR(OFFSET(J2,0,-1,1,1)/(OFFSET(J2,0,-4,1,1)-OFFSET(J2,0,-1,1,1)),"") -> -0.01400278137 | L2: Notes: | M2: Online Yahoo Finance Query Interfaces used in the VBA code to obtain this data: | IJ2: 241.79
A3: Request Online Yahoo History for: | M3: A.) Price History Only: "http://ichart.finance.yahoo.com/table.csv"
A4: Symbol | B4: SPY | D4: Valid | I4: =OFFSET(I4,-2,0,1,1) -> -2.92 | M4: B.) Price History w/ imbedded divs n splits: "http://ichart.finance.yahoo.com/x"
A5: From | B5: 1977-01-07 | D5: Data | AF5: Trailing 12 Div return (Cur Close)
A6: To | B6: =TODAY() -> 2016-03-29 | D6: Types | E6: =VLOOKUP(B7,D7:E10,2,FALSE) -> d | M6: C.) Fundamentals (in this case name and exchange):
A7: Data Type | B7: Daily | D7: Daily | E7: d | M7: "http://download.finance.yahoo.com/d/quotes.csv?"
D8: Weekly | E8: w | M8: For some how-to doc regarding this particular interface, including a list of the
A9: Available Data | D9: Monthly | E9: m | M9: specific fields you can include in a request to this interface see:
A10: Bar Count: | B10: =COUNTA(B15:B64023)-1 -> 400 | M10: http://www.gummy-stuff.org/Yahoo-data.htm | AF10: =OFFSET(AC15,1,0,1,1)/OFFSET(N15,1,0,1,1) -> 0.02008170809
A11: From: | B11: =IF(B10<=0,"",OFFSET(B15,B10,IF(HistReqDataType="v",1,0),1,1)) -> 2014-05-06 | M11: This web site includes a downloadable working EXCEL/VBA example | W11: Trailing 12 Month Dividend Returns
A12: To: | B12: =IF(B10<=0,"",IF(HistReqDataType="v",OFFSET(B15,2,1,1,1),OFFSET(B15,1,0,1,1))) -> 2015-12-03 | M12: of the capabilities of this interface. | W12: Raw Close price on Dividend date | X12: Div Year and Month | Y12: Looking for year ago Div Year and Month | Z12: Year ago Div Date we found | AA12: row offset to year ago div Date | AB12: Same month flag | AC12: Trailing 12 Div Total | AD12: Trailing 12 Div return
Q13: Split History | S13: =COUNT(Q16:Q8761) -> 0 | T13: Running | U13: Dividend History
B14: Raw Data Values | H14: Adjusted | I14: Price Adjust | J14: Vol Adjust | K14: Adjusted Values | P14: Last | Q14: Effective | R14: Shares | T14: Vol Adjust | V14: =COUNT(U16:U8761) -> 95
A15: RelRow | B15: Date | C15: Open | D15: High | E15: Low | F15: Close | G15: Volume | H15: Close | I15: Factor | J15: Factor | K15: Open | L15: High | M15: Low | N15: Close | O15: Volume | P15: Trade | Q15: 42342 | R15: New | S15: Old | T15: 1 | U15: Date | V15: $ / Share
A16: 1 | B16: 2015-12-03 | C16: 208.83 | D16: 209.15 | E16: 204.75 | F16: 205.61 | G16: 166132329 | H16: 205.61 | I16: =H16/F16 -> 1 | J16: =INDEX(OFFSET($T$15,0,0,$S$13+1,1),MATCH(B16,OFFSET($Q$15,0,0,$S$13+1,1),-1)) -> 1 | K16: =ROUND($I16*C16,2) -> 208.83 | L16: =ROUND($I16*D16,2) -> 209.15 | M16: =ROUND($I16*E16,2) -> 204.75 | N16: =ROUND($I16*F16,2) -> 205.61 | O16: =G16*J16 -> 166132329 | P16: 4:00pm | U16: 2015-09-18 | V16: 1.033 | W16: =(INDEX(OFFSET($F$15,1,0,$B$10,1),MATCH(U16,OFFSET($B$15,1,0,$B$10,1),-1))) -> 195.449997 | X16: =YEAR(U16)&RIGHT("0"&MONTH(U16),2) -> 201509 | Y16: =YEAR(U16)-1&RIGHT("0"&MONTH(U16),2) -> 201409 | Z16: =OFFSET(U15,AA16,0,1,1) -> 2014-09-19 | AA16: =MATCH(Y16,OFFSET($X$15,A16,0,$V$14+1-A16,1),-1) -> 5 | AB16: =IF(OR(AND(YEAR(U16)=YEAR(Z16),MONTH(U16)=MONTH(Z16)),MONTH(U16)=MONTH(Z16)),1,0) -> 1 | AC16: =(V16+IF(AA16-AB16=0,0,IFERROR(SUM(OFFSET(V16,1,0,AA16-AB16-1,1)),0))) -> 4.129 | AD16: =AC16/(INDEX(OFFSET($F$15,1,0,$B$10,1),MATCH(U16,OFFSET($B$15,1,0,$B$10,1),-1))) -> 0.0211256079
A17: 2 | B17: 2015-12-02 | C17: 210.619995 | D17: 211 | E17: 208.229996 | F17: 208.529999 | G17: 105963100 | H17: 208.529999 | I17: =H17/F17 -> 1 | J17: =INDEX(OFFSET($T$15,0,0,$S$13+1,1),MATCH(B17,OFFSET($Q$15,0,0,$S$13+1,1),-1)) -> 1 | K17: 210.62 | L17: 211 | M17: 208.23 | N17: 208.53 | O17: =G17*J17 -> 105963100 | U17: 2015-06-19 | V17: 1.03 | W17: =(INDEX(OFFSET($F$15,1,0,$B$10,1),MATCH(U17,OFFSET($B$15,1,0,$B$10,1),-1))) -> 210.809998 | X17: =YEAR(U17)&RIGHT("0"&MONTH(U17),2) -> 201506 | Y17: =YEAR(U17)-1&RIGHT("0"&MONTH(U17),2) -> 201406 | Z17: =OFFSET(U16,AA17,0,1,1) -> 2014-06-20 | AA17: =MATCH(Y17,OFFSET($X$15,A17,0,$V$14+1-A17,1),-1) -> 5 | AB17: =IF(OR(AND(YEAR(U17)=YEAR(Z17),MONTH(U17)=MONTH(Z17)),MONTH(U17)=MONTH(Z17)),1,0) -> 1 | AC17: =(V17+IF(AA17-AB17=0,0,IFERROR(SUM(OFFSET(V17,1,0,AA17-AB17-1,1)),0))) -> 4.035 | AD17: =AC17/(INDEX(OFFSET($F$15,1,0,$B$10,1),MATCH(U17,OFFSET($B$15,1,0,$B$10,1),-1))) -> 0.01914045841
A18: 3 | B18: 2015-12-01 | C18: 209.440002 | D18: 210.820007 | E18: 209.110001 | F18: 210.679993 | G18: 95897700 | H18: 210.679993 | I18: =H18/F18 -> 1 | J18: =INDEX(OFFSET($T$15,0,0,$S$13+1,1),MATCH(B18,OFFSET($Q$15,0,0,$S$13+1,1),-1)) -> 1 | K18: 209.44 | L18: 210.82 | M18: 209.11 | N18: 210.68 | O18: =G18*J18 -> 95897700 | U18: 2015-03-20 | V18: 0.931 | W18: 210.410004 | X18: 201503 | Y18: 201403 | Z18: 2014-03-21 | AA18: 5 | AB18: 1 | AC18: 3.942 | AD18: 0.01873485065
A19: 4 | B19: 2015-11-30 | C19: 209.75 | D19: 209.889999 | E19: 208.559998 | F19: 208.690002 | G19: 104282700 | H19: 208.690002 | I19: 1 | J19: 1 | K19: 209.75 | L19: 209.89 | M19: 208.56 | N19: 208.69 | O19: 104282700 | U19: 2014-12-19 | V19: 1.135 | W19: 206.520004 | X19: 201412 | Y19: 201312 | Z19: 2013-12-20 | AA19: 5 | AB19: 1 | AC19: 3.836 | AD19: 0.01857447185
A20: 5 | B20: 2015-11-27 | C20: 209.429993 | D20: 209.800003 | E20: 208.860001 | F20: 209.559998 | G20: 37298600 | H20: 209.559998 | I20: 1 | J20: 1 | K20: 209.43 | L20: 209.8 | M20: 208.86 | N20: 209.56 | O20: 37298600 | U20: 2014-09-19 | V20: 0.939 | W20: 200.699997 | X20: 201409 | Y20: 201309 | Z20: 2013-09-20 | AA20: 5 | AB20: 1 | AC20: 3.681 | AD20: 0.01834080745
A21: 6 | B21: 2015-11-25 | C21: 209.5 | D21: 209.740005 | E21: 209.009995 | F21: 209.320007 | G21: 51980100 | H21: 209.320007 | I21: 1 | J21: 1 | K21: 209.5 | L21: 209.74 | M21: 209.01 | N21: 209.32 | O21: 51980100 | U21: 2014-06-20 | V21: 0.937 | W21: 195.940002 | X21: 201406 | Y21: 201306 | Z21: 2013-06-21 | AA21: 5 | AB21: 1 | AC21: 3.58 | AD21: 0.01827089907
A22: 7 | B22: 2015-11-24 | C22: 207.869995 | D22: 209.830002 | E22: 207.410004 | F22: 209.350006 | G22: 98874400 | H22: 209.350006 | I22: 1 | J22: 1 | K22: 207.87 | L22: 209.83 | M22: 207.41 | N22: 209.35 | O22: 98874400 | U22: 2014-03-21 | V22: 0.825 | W22: 186.779999 | X22: 201403 | Y22: 201303 | Z22: 2013-03-15 | AA22: 5 | AB22: 1 | AC22: 3.482 | AD22: 0.01864225302
A23: 8 | B23: 2015-11-23 | C23: 209.380005 | D23: 209.979996 | E23: 208.520004 | F23: 209.070007 | G23: 64931200 | H23: 209.070007 | I23: 1 | J23: 1 | K23: 209.38 | L23: 209.98 | M23: 208.52 | N23: 209.07 | O23: 64931200 | U23: 2013-12-20 | V23: 0.98 | W23: 186.779999 | X23: 201312 | Y23: 201212 | Z23: 2012-12-21 | AA23: 5 | AB23: 1 | AC23: 3.351 | AD23: 0.01794089313
A24: 9 | B24: 2015-11-20 | C24: 209.449997 | D24: 210.119995 | E24: 208.860001 | F24: 209.309998 | G24: 94011500 | H24: 209.309998 | I24: 1 | J24: 1 | K24: 209.45 | L24: 210.12 | M24: 208.86 | N24: 209.31 | O24: 94011500 | U24: 2013-09-20 | V24: 0.838 | W24: 186.779999 | X24: 201309 | Y24: 201209 | Z24: 2012-09-21 | AA24: 5 | AB24: 1 | AC24: 3.393 | AD24: 0.0181657566
A25: 10 | B25: 2015-11-19 | C25: 208.589996 | D25: 209.050003 | E25: 208.199997 | F25: 208.550003 | G25: 88220500 | H25: 208.550003 | I25: 1 | J25: 1 | K25: 208.59 | L25: 209.05 | M25: 208.2 | N25: 208.55 | O25: 88220500 | U25: 2013-06-21 | V25: 0.839 | W25: 186.779999 | X25: 201306 | Y25: 201206 | Z25: 2012-06-15 | AA25: 5 | AB25: 1 | AC25: 3.334 | AD25: 0.01784987696
A26: 11 | B26: 2015-11-18 | C26: 206.039993 | D26: 208.899994 | E26: 205.990005 | F26: 208.729996 | G26: 121342500 | H26: 208.729996 | I26: 1 | J26: 1 | K26: 206.04 | L26: 208.9 | M26: 205.99 | N26: 208.73 | O26: 121342500 | U26: 2013-03-15 | V26: 0.694 | W26: 186.779999 | X26: 201303 | Y26: 201203 | Z26: 2012-03-16 | AA26: 5 | AB26: 1 | AC26: 3.183 | AD26: 0.01704143922
A27: 12 | B27: 2015-11-17 | C27: 205.990005 | D27: 207.039993 | E27: 204.880005 | F27: 205.470001 | G27: 121123700 | H27: 205.470001 | I27: 1 | J27: 1 | K27: 205.99 | L27: 207.04 | M27: 204.88 | N27: 205.47 | O27: 121123700 | U27: 2012-12-21 | V27: 1.022 | W27: 186.779999 | X27: 201212 | Y27: 201112 | Z27: 2011-12-16 | AA27: 5 | AB27: 1 | AC27: 3.103 | AD27: 0.01661312783
A28: 13 | B28: 2015-11-16 | C28: 202.320007 | D28: 205.690002 | E28: 202.179993 | F28: 205.619995 | G28: 117645200 | H28: 205.619995 | I28: 1 | J28: 1 | K28: 202.32 | L28: 205.69 | M28: 202.18 | N28: 205.62 | O28: 117645200 | U28: 2012-09-21 | V28: 0.779 | W28: 186.779999 | X28: 201209 | Y28: 201109 | Z28: 2011-09-16 | AA28: 5 | AB28: 1 | AC28: 2.851 | AD28: 0.01526394697
A29: 14 | B29: 2015-11-13 | C29: 204.350006 | D29: 204.669998 | E29: 202.440002 | F29: 202.539993 | G29: 153577100 | H29: 202.539993 | I29: 1 | J29: 1 | K29: 204.35 | L29: 204.67 | M29: 202.44 | N29: 202.54 | O29: 153577100 | U29: 2012-06-15 | V29: 0.688 | W29: 186.779999 | X29: 201206 | Y29: 201106 | Z29: 2011-06-17 | AA29: 5 | AB29: 1 | AC29: 2.697 | AD29: 0.01443944756
A30: 15 | B30: 2015-11-12 | C30: 206.5 | D30: 207.059998 | E30: 204.820007 | F30: 204.839996 | G30: 121315200 | H30: 204.839996 | I30: 1 | J30: 1 | K30: 206.5 | L30: 207.06 | M30: 204.82 | N30: 204.84 | O30: 121315200 | U30: 2012-03-16 | V30: 0.614 | W30: 186.779999 | X30: 201203 | Y30: 201103 | Z30: 2011-03-18 | AA30: 5 | AB30: 1 | AC30: 2.637 | AD30: 0.01411821402
A31: 16 | B31: 2015-11-11 | C31: 208.880005 | D31: 208.940002 | E31: 207.660004 | F31: 207.740005 | G31: 67846000 | H31: 207.740005 | I31: 1 | J31: 1 | K31: 208.88 | L31: 208.94 | M31: 207.66 | N31: 207.74 | O31: 67846000 | U31: 2011-12-16 | V31: 0.77 | W31: 186.779999 | X31: 201112 | Y31: 201012 | Z31: 2010-12-17 | AA31: 5 | AB31: 1 | AC31: 2.576 | AD31: 0.01379162659
A32: 17 | B32: 2015-11-10 | C32: 207.509995 | D32: 208.600006 | E32: 207.190002 | F32: 208.559998 | G32: 75874600 | H32: 208.559998 | I32: 1 | J32: 1 | K32: 207.51 | L32: 208.6 | M32: 207.19 | N32: 208.56 | O32: 75874600 | U32: 2011-09-16 | V32: 0.625 | W32: 186.779999 | X32: 201109 | Y32: 201009 | Z32: 2010-09-17 | AA32: 5 | AB32: 1 | AC32: 2.459 | AD32: 0.01316522119
A33: 18 | B33: 2015-11-09 | C33: 209.309998 | D33: 209.490005 | E33: 206.949997 | F33: 208.080002 | G33: 131008700 | H33: 208.080002 | I33: 1 | J33: 1 | K33: 209.31 | L33: 209.49 | M33: 206.95 | N33: 208.08 | O33: 131008700 | U33: 2011-06-17 | V33: 0.628 | W33: 186.779999 | X33: 201106 | Y33: 201006 | Z33: 2010-06-18 | AA33: 5 | AB33: 1 | AC33: 2.436 | AD33: 0.01304208166
A34: 19 | B34: 2015-11-06 | C34: 209.740005 | D34: 210.320007 | E34: 208.460007 | F34: 210.039993 | G34: 110471500 | H34: 210.039993 | I34: 1 | J34: 1 | K34: 209.74 | L34: 210.32 | M34: 208.46 | N34: 210.04 | O34: 110471500 | U34: 2011-03-18 | V34: 0.553 | W34: 186.779999 | X34: 201103 | Y34: 201003 | Z34: 2010-03-19 | AA34: 5 | AB34: 1 | AC34: 2.339 | AD34: 0.01252275411
A35: 20 | B35: 2015-11-05 | C35: 210.429993 | D35: 210.979996 | E35: 209.089996 | F35: 210.149994 | G35: 78408700 | H35: 210.149994 | I35: 1 | J35: 1 | K35: 210.43 | L35: 210.98 | M35: 209.09 | N35: 210.15 | O35: 78408700 | U35: 2010-12-17 | V35: 0.653 | W35: 186.779999 | X35: 201012 | Y35: 200912 | Z35: 2009-12-18 | AA35: 5 | AB35: 1 | AC35: 2.266 | AD35: 0.01213191997
A36: 21 | B36: 2015-11-04 | C36: 211.350006 | D36: 211.5 | E36: 209.720001 | F36: 210.360001 | G36: 96224500 | H36: 210.360001 | I36: 1 | J36: 1 | K36: 211.35 | L36: 211.5 | M36: 209.72 | N36: 210.36 | O36: 96224500 | U36: 2010-09-17 | V36: 0.602 | W36: 186.779999 | X36: 201009 | Y36: 200909 | Z36: 2009-09-18 | AA36: 5 | AB36: 1 | AC36: 2.203 | AD36: 0.01179462476
A37: 22 | B37: 2015-11-03 | C37: 209.970001 | D37: 211.660004 | E37: 209.699997 | F37: 211 | G37: 95246100 | H37: 211 | I37: 1 | J37: 1 | K37: 209.97 | L37: 211.66 | M37: 209.7 | N37: 211 | O37: 95246100 | U37: 2010-06-18 | V37: 0.531 | W37: 186.779999 | X37: 201006 | Y37: 200906 | Z37: 2009-06-19 | AA37: 5 | AB37: 1 | AC37: 2.109 | AD37: 0.01129135888
A38: 23 | B38: 2015-11-02 | C38: 208.320007 | D38: 210.619995 | E38: 208.169998 | F38: 210.389999 | G38: 86270800 | H38: 210.389999 | I38: 1 | J38: 1 | K38: 208.32 | L38: 210.62 | M38: 208.17 | N38: 210.39 | O38: 86270800 | U38: 2010-03-19 | V38: 0.48 | W38: 186.779999 | X38: 201003 | Y38: 200903 | Z38: 2009-03-20 | AA38: 5 | AB38: 1 | AC38: 2.096 | AD38: 0.01122175828
A39: 24 | B39: 2015-10-30 | C39: 209.059998 | D39: 209.440002 | E39: 207.740005 | F39: 207.929993 | G39: 131076900 | H39: 207.929993 | I39: 1 | J39: 1 | K39: 209.06 | L39: 209.44 | M39: 207.74 | N39: 207.93 | O39: 131076900 | U39: 2009-12-18 | V39: 0.59 | W39: 186.779999 | X39: 200912 | Y39: 200812 | Z39: 2008-12-19 | AA39: 5 | AB39: 1 | AC39: 2.177 | AD39: 0.01165542356
A40: 25 | B40: 2015-10-29 | C40: 208.350006 | D40: 209.270004 | E40: 208.210007 | F40: 208.830002 | G40: 90525500 | H40: 208.830002 | I40: 1 | J40: 1 | K40: 208.35 | L40: 209.27 | M40: 208.21 | N40: 208.83 | O40: 90525500 | U40: 2009-09-18 | V40: 0.508 | W40: 186.779999 | X40: 200909 | Y40: 200809 | Z40: 2008-09-19 | AA40: 5 | AB40: 1 | AC40: 2.306 | AD40: 0.01234607566
A41: 26 | B41: 2015-10-28 | C41: 207 | D41: 208.979996 | E41: 206.210007 | F41: 208.949997 | G41: 135906700 | H41: 208.949997 | I41: 1 | J41: 1 | K41: 207 | L41: 208.98 | M41: 206.21 | N41: 208.95 | O41: 135906700 | U41: 2009-06-19 | V41: 0.518 | W41: 186.779999 | X41: 200906 | Y41: 200806 | Z41: 2008-06-20 | AA41: 5 | AB41: 1 | AC41: 2.489 | AD41: 0.01332583796
A42: 27 | B42: 2015-10-27 | C42: 206.199997 | D42: 207 | E42: 205.789993 | F42: 206.600006 | G42: 77905800 | H42: 206.600006 | I42: 1 | J42: 1 | K42: 206.2 | L42: 207 | M42: 205.79 | N42: 206.6 | O42: 77905800 | U42: 2009-03-20 | V42: 0.561 | W42: 186.779999 | X42: 200903 | Y42: 200803 | Z42: 2008-03-20 | AA42: 5 | AB42: 1 | AC42: 2.64 | AD42: 0.01413427569
A43: 28 | B43: 2015-10-26 | C43: 207.300003 | D43: 207.369995 | E43: 206.559998 | F43: 207 | G43: 69033000 | H43: 207 | I43: 1 | J43: 1 | K43: 207.3 | L43: 207.37 | M43: 206.56 | N43: 207 | O43: 69033000 | U43: 2008-12-19 | V43: 0.719 | W43: 186.779999 | X43: 200812 | Y43: 200712 | Z43: 2007-12-21 | AA43: 5 | AB43: 1 | AC43: 2.721 | AD43: 0.01456794097
A44: 29 | B44: 2015-10-23 | C44: 207.25 | D44: 207.949997 | E44: 206.300003 | F44: 207.509995 | G44: 144442300 | H44: 207.509995 | I44: 1 | J44: 1 | K44: 207.25 | L44: 207.95 | M44: 206.3 | N44: 207.51 | O44: 144442300 | U44: 2008-09-19 | V44: 0.691 | W44: 186.779999 | X44: 200809 | Y44: 200709 | Z44: 2007-09-21 | AA44: 5 | AB44: 1 | AC44: 2.777 | AD44: 0.01486775894
A45: 30 | B45: 2015-10-22 | C45: 202.979996 | D45: 205.509995 | E45: 201.850006 | F45: 205.259995 | G45: 174911700 | H45: 205.259995 | I45: 1 | J45: 1 | K45: 202.98 | L45: 205.51 | M45: 201.85 | N45: 205.26 | O45: 174911700 | U45: 2008-06-20 | V45: 0.669 | W45: 186.779999 | X45: 200806 | Y45: 200706 | Z45: 2007-06-15 | AA45: 5 | AB45: 1 | AC45: 2.805 | AD45: 0.01501766792
A46: 31 | B46: 2015-10-21 | C46: 203.610001 | D46: 203.789993 | E46: 201.649994 | F46: 201.850006 | G46: 102038000 | H46: 201.850006 | I46: 1 | J46: 1 | K46: 203.61 | L46: 203.79 | M46: 201.65 | N46: 201.85 | O46: 102038000 | U46: 2008-03-20 | V46: 0.642 | W46: 186.779999 | X46: 200803 | Y46: 200703 | Z46: 2007-03-16 | AA46: 5 | AB46: 1 | AC46: 2.792 | AD46: 0.01494806732
A47: 32 | B47: 2015-10-20 | C47: 202.850006 | D47: 203.839996 | E47: 202.550003 | F47: 203.110001 | G47: 78448500 | H47: 203.110001 | I47: 1 | J47: 1 | K47: 202.85 | L47: 203.84 | M47: 202.55 | N47: 203.11 | O47: 78448500 | U47: 2007-12-21 | V47: 0.775 | W47: 186.779999 | X47: 200712 | Y47: 200612 | Z47: 2006-12-15 | AA47: 5 | AB47: 1 | AC47: 2.701 | AD47: 0.01446086312
A48: 33 | B48: 2015-10-19 | C48: 202.5 | D48: 203.369995 | E48: 202.130005 | F48: 203.369995 | G48: 76523900 | H48: 203.369995 | I48: 1 | J48: 1 | K48: 202.5 | L48: 203.37 | M48: 202.13 | N48: 203.37 | O48: 76523900 | U48: 2007-09-21 | V48: 0.719 | W48: 186.779999 | X48: 200709 | Y48: 200609 | Z48: 2006-09-15 | AA48: 5 | AB48: 1 | AC48: 2.719 | AD48: 0.01455723319
A49: 34 | B49: 2015-10-16 | C49: 202.830002 | D49: 203.289993 | E49: 201.919998 | F49: 203.270004 | G49: 109692900 | H49: 203.270004 | I49: 1 | J49: 1 | K49: 202.83 | L49: 203.29 | M49: 201.92 | N49: 203.27 | O49: 109692900 | U49: 2007-06-15 | V49: 0.656 | W49: 186.779999 | X49: 200706 | Y49: 200606 | Z49: 2006-06-16 | AA49: 5 | AB49: 1 | AC49: 2.579 | AD49: 0.01380768826
A50: 35 | B50: 2015-10-15 | C50: 200.080002 | D50: 202.360001 | E50: 199.639999 | F50: 202.350006 | G50: 134142200 | H50: 202.350006 | I50: 1 | J50: 1 | K50: 200.08 | L50: 202.36 | M50: 199.64 | N50: 202.35 | O50: 134142200 | U50: 2007-03-16 | V50: 0.551 | W50: 186.779999 | X50: 200703 | Y50: 200603 | Z50: 2006-03-17 | AA50: 5 | AB50: 1 | AC50: 2.478 | AD50: 0.01326694514
A51: 36 | B51: 2015-10-14 | C51: 200.179993 | D51: 200.869995 | E51: 198.940002 | F51: 199.289993 | G51: 99106200 | H51: 199.289993 | I51: 1 | J51: 1 | K51: 200.18 | L51: 200.87 | M51: 198.94 | N51: 199.29 | O51: 99106200 | U51: 2006-12-15 | V51: 0.793 | W51: 186.779999 | X51: 200612 | Y51: 200512 | Z51: 2005-12-16 | AA51: 5 | AB51: 1 | AC51: 2.446 | AD51: 0.01309562059
A52: 37 | B52: 2015-10-13 | C52: 200.649994 | D52: 202.160004 | E52: 200.050003 | F52: 200.25 | G52: 88038700 | H52: 200.25 | I52: 1 | J52: 1 | K52: 200.65 | L52: 202.16 | M52: 200.05 | N52: 200.25 | O52: 88038700 | U52: 2006-09-15 | V52: 0.579 | W52: 186.779999 | X52: 200609 | Y52: 200509 | Z52: 2005-09-16 | AA52: 5 | AB52: 1 | AC52: 2.325 | AD52: 0.01244779962
A53: 38 | B53: 2015-10-12 | C53: 201.419998 | D53: 201.759995 | E53: 200.910004 | F53: 201.520004 | G53: 56395600 | H53: 201.520004 | I53: 1 | J53: 1 | K53: 201.42 | L53: 201.76 | M53: 200.91 | N53: 201.52 | O53: 56395600 | U53: 2006-06-16 | V53: 0.555 | W53: 186.779999 | X53: 200606 | Y53: 200506 | Z53: 2005-06-17 | AA53: 5 | AB53: 1 | AC53: 2.268 | AD53: 0.01214262776
A54: 39 | B54: 2015-10-09 | C54: 201.380005 | D54: 201.899994 | E54: 200.580002 | F54: 201.330002 | G54: 107069200 | H54: 201.330002 | I54: 1 | J54: 1 | K54: 201.38 | L54: 201.9 | M54: 200.58 | N54: 201.33 | O54: 107069200 | U54: 2006-03-17 | V54: 0.519 | W54: 186.779999 | X54: 200603 | Y54: 200503 | Z54: 2005-03-18 | AA54: 5 | AB54: 1 | AC54: 2.201 | AD54: 0.01178391697
A55: 40 | B55: 2015-10-08 | C55: 198.949997 | D55: 201.550003 | E55: 198.589996 | F55: 201.210007 | G55: 153055200 | H55: 201.210007 | I55: 1 | J55: 1 | K55: 198.95 | L55: 201.55 | M55: 198.59 | N55: 201.21 | O55: 153055200 | U55: 2005-12-16 | V55: 0.672 | W55: 186.779999 | X55: 200512 | Y55: 200412 | Z55: 2004-12-17 | AA55: 5 | AB55: 1 | AC55: 2.149 | AD55: 0.01150551457
A56: 41 | B56: 2015-10-07 | C56: 198.899994 | D56: 199.830002 | E56: 197.479996 | F56: 199.410004 | G56: 124307300 | H56: 199.410004 | I56: 1 | J56: 1 | K56: 198.9 | L56: 199.83 | M56: 197.48 | N56: 199.41 | O56: 124307300 | U56: 2005-09-16 | V56: 0.522 | W56: 186.779999 | X56: 200509 | Y56: 200409 | Z56: 2004-09-17 | AA56: 6 | AB56: 1 | AC56: 2.396 | AD56: 0.01282792597
A57: 42 | B57: 2015-10-06 | C57: 198.309998 | D57: 198.979996 | E57: 197 | F57: 197.789993 | G57: 110274500 | H57: 197.789993 | I57: 1 | J57: 1 | K57: 198.31 | L57: 198.98 | M57: 197 | N57: 197.79 | O57: 110274500 | U57: 2005-06-17 | V57: 0.488 | W57: 186.779999 | X57: 200506 | Y57: 200406 | Z57: 2004-06-18 | AA57: 6 | AB57: 1 | AC57: 2.343 | AD57: 0.01254416968
A58: 43 | B58: 2015-10-05 | C58: 196.460007 | D58: 198.740005 | E58: 196.330002 | F58: 198.470001 | G58: 126320800 | H58: 198.470001 | I58: 1 | J58: 1 | K58: 196.46 | L58: 198.74 | M58: 196.33 | N58: 198.47 | O58: 126320800 | U58: 2005-03-18 | V58: 0.467 | W58: 186.779999 | X58: 200503 | Y58: 200403 | Z58: 2004-03-19 | AA58: 6 | AB58: 1 | AC58: 2.269 | AD58: 0.01214798165
A59: 44 | B59: 2015-10-02 | C59: 189.770004 | D59: 195.029999 | E59: 189.119995 | F59: 195 | G59: 211003300 | H59: 195 | I59: 1 | J59: 1 | K59: 189.77 | L59: 195.03 | M59: 189.12 | N59: 195 | O59: 211003300 | U59: 2004-12-17 | V59: 0.568 | W59: 186.779999 | X59: 200412 | Y59: 200312 | Z59: 2003-12-19 | AA59: 6 | AB59: 1 | AC59: 2.197 | AD59: 0.0117625014
A60: 45 | B60: 2015-10-01 | C60: 192.080002 | D60: 192.490005 | E60: 189.820007 | F60: 192.130005 | G60: 131079000 | H60: 192.130005 | I60: 1 | J60: 1 | K60: 192.08 | L60: 192.49 | M60: 189.82 | N60: 192.13 | O60: 131079000 | U60: 2004-11-15 | V60: 0.351 | W60: 186.779999 | X60: 200411 | Y60: 200311 | Z60: 2003-12-19 | AA60: 5 | AB60: 0 | AC60: 2.145 | AD60: 0.011484099
A61: 46 | B61: 2015-09-30 | C61: 190.369995 | D61: 191.830002 | E61: 189.440002 | F61: 191.630005 | G61: 163452000 | H61: 191.630005 | I61: 1 | J61: 1 | K61: 190.37 | L61: 191.83 | M61: 189.44 | N61: 191.63 | O61: 163452000 | U61: 2004-09-17 | V61: 0.469 | W61: 186.779999 | X61: 200409 | Y61: 200309 | Z61: 2003-09-19 | AA61: 5 | AB61: 1 | AC61: 1.794 | AD61: 0.009604882801
A62: 47 | B62: 2015-09-29 | C62: 188.270004 | D62: 189.740005 | E62: 186.929993 | F62: 188.119995 | G62: 159045600 | H62: 188.119995 | I62: 1 | J62: 1 | K62: 188.27 | L62: 189.74 | M62: 186.93 | N62: 188.12 | O62: 159045600 | U62: 2004-06-18 | V62: 0.414 | W62: 186.779999 | X62: 200406 | Y62: 200306 | Z62: 2003-06-20 | AA62: 5 | AB62: 1 | AC62: 1.725 | AD62: 0.009235464232
A63: 48 | B63: 2015-09-28 | C63: 191.779999 | D63: 191.910004 | E63: 187.639999 | F63: 188.009995 | G63: 178515900 | H63: 188.009995 | I63: 1 | J63: 1 | K63: 191.78 | L63: 191.91 | M63: 187.64 | N63: 188.01 | O63: 178515900 | U63: 2004-03-19 | V63: 0.395 | W63: 186.779999 | X63: 200403 | Y63: 200303 | Z63: 2003-03-21 | AA63: 5 | AB63: 1 | AC63: 1.671 | AD63: 0.008946354047
A64: 49 | B64: 2015-09-25 | C64: 194.639999 | D64: 195 | E64: 191.809998 | F64: 192.869995 | G64: 155054800 | H64: 192.869995 | I64: 1 | J64: 1 | K64: 194.64 | L64: 195 | M64: 191.81 | N64: 192.87 | O64: 155054800 | U64: 2003-12-19 | V64: 0.516 | W64: 186.779999 | X64: 200312 | Y64: 200212 | Z64: 2002-12-20 | AA64: 5 | AB64: 1 | AC64: 1.63 | AD64: 0.008726844463
A65: 50 | B65: 2015-09-24 | C65: 192.149994 | D65: 193.449997 | E65: 190.559998 | F65: 192.899994 | G65: 159378800 | H65: 192.899994 | I65: 1 | J65: 1 | K65: 192.15 | L65: 193.45 | M65: 190.56 | N65: 192.9 | O65: 159378800 | U65: 2003-09-19 | V65: 0.4 | W65: 186.779999 | X65: 200309 | Y65: 200209 | Z65: 2002-09-20 | AA65: 5 | AB65: 1 | AC65: 1.55 | AD65: 0.008298533078
A66: 51 | B66: 2015-09-23 | C66: 194.110001 | D66: 194.669998 | E66: 192.910004 | F66: 193.600006 | G66: 92790600 | H66: 193.600006 | I66: 1 | J66: 1 | K66: 194.11 | L66: 194.67 | M66: 192.91 | N66: 193.6 | O66: 92790600 | U66: 2003-06-20 | V66: 0.36 | W66: 186.779999 | X66: 200306 | Y66: 200206 | Z66: 2002-06-21 | AA66: 5 | AB66: 1 | AC66: 1.528 | AD66: 0.008180747447
A67: 52 | B67: 2015-09-22 | C67: 193.880005 | D67: 194.460007 | E67: 192.559998 | F67: 193.899994 | G67: 153890900 | H67: 193.899994 | I67: 1 | J67: 1 | K67: 193.88 | L67: 194.46 | M67: 192.56 | N67: 193.9 | O67: 153890900 | U67: 2003-03-21 | V67: 0.354 | W67: 186.779999 | X67: 200303 | Y67: 200203 | Z67: 2002-03-15 | AA67: 5 | AB67: 1 | AC67: 1.521 | AD67: 0.008143270201
A68: 53 | B68: 2015-09-21 | C68: 196.440002 | D68: 197.679993 | E68: 195.210007 | F68: 196.460007 | G68: 105726200 | H68: 196.460007 | I68: 1 | J68: 1 | K68: 196.44 | L68: 197.68 | M68: 195.21 | N68: 196.46 | O68: 105726200 | U68: 2002-12-20 | V68: 0.436 | W68: 186.779999 | X68: 200212 | Y68: 200112 | Z68: 2001-12-21 | AA68: 5 | AB68: 1 | AC68: 1.498 | AD68: 0.008020130678
A69: 54 | B69: 2015-09-18 | C69: 195.710007 | D69: 198.679993 | E69: 194.960007 | F69: 195.449997 | G69: 223657500 | H69: 195.449997 | I69: 1 | J69: 1 | K69: 195.71 | L69: 198.68 | M69: 194.96 | N69: 195.45 | O69: 223657500 | U69: 2002-09-20 | V69: 0.378 | W69: 186.779999 | X69: 200209 | Y69: 200109 | Z69: 2001-09-21 | AA69: 5 | AB69: 1 | AC69: 1.455 | AD69: 0.007789913309
A70: 55 | B70: 2015-09-17 | C70: 200.020004 | D70: 202.889999 | E70: 199.279999 | F70: 199.729996 | G70: 276046600 | H70: 198.697001 | I70: 0.9948280428 | J70: 1 | K70: 198.99 | L70: 201.84 | M70: 198.25 | N70: 198.7 | O70: 276046600 | U70: 2002-06-21 | V70: 0.353 | W70: 186.779999 | X70: 200206 | Y70: 200106 | Z70: 2001-06-15 | AA70: 5 | AB70: 1 | AC70: 1.446 | AD70: 0.007741728278
A71: 56 | B71: 2015-09-16 | C71: 198.820007 | D71: 200.410004 | E71: 198.410004 | F71: 200.179993 | G71: 99581600 | H71: 199.144671 | I71: 0.9948280446 | J71: 1 | K71: 197.79 | L71: 199.37 | M71: 197.38 | N71: 199.14 | O71: 99581600 | U71: 2002-03-15 | V71: 0.331 | W71: 186.779999 | X71: 200203 | Y71: 200103 | Z71: 2001-03-16 | AA71: 5 | AB71: 1 | AC71: 1.439 | AD71: 0.007704251032
A72: 57 | B72: 2015-09-15 | C72: 196.610001 | D72: 198.990005 | E72: 195.960007 | F72: 198.449997 | G72: 113806200 | H72: 197.423623 | I72: 0.9948280473 | J72: 1 | K72: 195.59 | L72: 197.96 | M72: 194.95 | N72: 197.42 | O72: 113806200 | U72: 2001-12-21 | V72: 0.393 | W72: 186.779999 | X72: 200112 | Y72: 200012 | Z72: 2000-12-27 | AA72: 5 | AB72: 1 | AC72: 1.424 | AD72: 0.007623942647
A73: 58 | B73: 2015-09-14 | C73: 196.949997 | D73: 197.009995 | E73: 195.429993 | F73: 196.009995 | G73: 79452000 | H73: 194.99624 | I73: 0.9948280444 | J73: 1 | K73: 195.93 | L73: 195.99 | M73: 194.42 | N73: 195 | O73: 79452000 | U73: 2001-09-21 | V73: 0.369 | W73: 186.779999 | X73: 200109 | Y73: 200009 | Z73: 2000-09-15 | AA73: 6 | AB73: 1 | AC73: 1.442 | AD73: 0.007720312709
A74: 59 | B74: 2015-09-11 | C74: 195.380005 | D74: 196.820007 | E74: 194.529999 | F74: 196.740005 | G74: 119691200 | H74: 195.722475 | I74: 0.9948280473 | J74: 1 | K74: 194.37 | L74: 195.8 | M74: 193.52 | N74: 195.72 | O74: 119691200 | U74: 2001-06-15 | V74: 0.346 | W74: 186.779999 | X74: 200106 | Y74: 200006 | Z74: 2000-06-16 | AA74: 7 | AB74: 1 | AC74: 1.448 | AD74: 0.007752436062
A75: 60 | B75: 2015-09-10 | C75: 194.559998 | D75: 197.220001 | E75: 194.25 | F75: 195.850006 | G75: 158611100 | H75: 194.837079 | I75: 0.9948280471 | J75: 1 | K75: 193.55 | L75: 196.2 | M75: 193.25 | N75: 194.84 | O75: 158611100 | U75: 2001-03-16 | V75: 0.316 | W75: 186.779999 | X75: 200103 | Y75: 200003 | Z75: 2000-03-17 | AA75: 7 | AB75: 1 | AC75: 1.45 | AD75: 0.007763143847
A76: 61 | B76: 2015-09-09 | C76: 199.320007 | D76: 199.470001 | E76: 194.350006 | F76: 194.789993 | G76: 149347700 | H76: 193.782548 | I76: 0.9948280454 | J76: 1 | K76: 198.29 | L76: 198.44 | M76: 193.34 | N76: 193.78 | O76: 149347700 | U76: 2000-12-27 | V76: 0 | W76: 186.779999 | X76: 200012 | Y76: 199912 | Z76: 1999-12-17 | AA76: 7 | AB76: 1 | AC76: 1.505 | AD76: 0.008057607924
A77: 62 | B77: 2015-09-08 | C77: 195.940002 | D77: 197.610001 | E77: 195.169998 | F77: 197.429993 | G77: 116025700 | H77: 196.408894 | I77: 0.9948280452 | J77: 1 | K77: 194.93 | L77: 196.59 | M77: 194.16 | N77: 196.41 | O77: 116025700 | U77: 2000-12-15 | V77: 0.411 | W77: 186.779999 | X77: 200012 | Y77: 199912 | Z77: 1999-12-17 | AA77: 6 | AB77: 1 | AC77: 1.505 | AD77: 0.008057607924
A78: 63 | B78: 2015-09-04 | C78: 192.850006 | D78: 193.860001 | E78: 191.610001 | F78: 192.589996 | G78: 207081000 | H78: 191.59393 | I78: 0.9948280491 | J78: 1 | K78: 191.85 | L78: 192.86 | M78: 190.62 | N78: 191.59 | O78: 207081000 | U78: 2000-09-15 | V78: 0.375 | W78: 186.779999 | X78: 200009 | Y78: 199909 | Z78: 1999-09-17 | AA78: 6 | AB78: 1 | AC78: 1.442 | AD78: 0.007720312709
A79: 64 | B79: 2015-09-03 | C79: 196.259995 | D79: 198.050003 | E79: 194.960007 | F79: 195.550003 | G79: 152087800 | H79: 194.538627 | I79: 0.9948280441 | J79: 1 | K79: 195.24 | L79: 197.03 | M79: 193.95 | N79: 194.54 | O79: 152087800 | U79: 2000-09-14 | V79: 0 | W79: 186.779999 | X79: 200009 | Y79: 199909 | Z79: 1999-09-17 | AA79: 5 | AB79: 1 | AC79: 1.067 | AD79: 0.005712603093
A80: 65 | B80: 2015-09-02 | C80: 194.619995 | D80: 195.460007 | E80: 192.419998 | F80: 195.410004 | G80: 160269300 | H80: 194.399352 | I80: 0.9948280437 | J80: 1 | K80: =ROUND($I80*C80,2) -> 193.61 | L80: =ROUND($I80*D80,2) -> 194.45 | M80: =ROUND($I80*E80,2) -> 191.42 | N80: =ROUND($I80*F80,2) -> 194.4 | O80: 160269300 | U80: 2000-06-16 | V80: 0.348 | W80: 186.779999 | X80: 200006 | Y80: 199906 | Z80: 1999-06-18 | AA80: 5 | AB80: 1 | AC80: 1.439 | AD80: 0.007704251032
A81: 66 | B81: 2015-09-01 | C81: 193.119995 | D81: 194.770004 | E81: 190.729996 | F81: 191.770004 | G81: 256000400 | H81: 190.778179 | I81: 0.9948280493 | J81: 1 | K81: 192.12 | L81: 193.76 | M81: 189.74 | N81: 190.78 | O81: 256000400 | U81: 2000-03-17 | V81: 0.371 | W81: =(INDEX(OFFSET($F$15,1,0,$B$10,1),MATCH(U81,OFFSET($B$15,1,0,$B$10,1),-1))) -> 186.779999 | X81: =YEAR(U81)&RIGHT("0"&MONTH(U81),2) -> 200003 | Y81: =YEAR(U81)-1&RIGHT("0"&MONTH(U81),2) -> 199903 | Z81: =OFFSET(U80,AA81,0,1,1) -> 1999-03-19 | AA81: =MATCH(Y81,OFFSET($X$15,A81,0,$V$14+1-A81,1),-1) -> 5 | AB81: =IF(OR(AND(YEAR(U81)=YEAR(Z81),MONTH(U81)=MONTH(Z81)),MONTH(U81)=MONTH(Z81)),1,0) -> 1 | AC81: =(V81+IF(AA81-AB81=0,0,IFERROR(SUM(OFFSET(V81,1,0,AA81-AB81-1,1)),0))) -> 1.496 | AD81: =AC81/(INDEX(OFFSET($F$15,1,0,$B$10,1),MATCH(U81,OFFSET($B$15,1,0,$B$10,1),-1))) -> 0.008009422893
A82: 67 | B82: 2015-08-31 | C82: 198.110001 | D82: 199.130005 | E82: 197.009995 | F82: 197.669998 | G82: 163298800 | H82: 196.647658 | I82: =H82/F82 -> 0.9948280467 | J82: =INDEX(OFFSET($T$15,0,0,$S$13+1,1),MATCH(B82,OFFSET($Q$15,0,0,$S$13+1,1),-1)) -> 1 | K82: 197.09 | L82: 198.1 | M82: 195.99 | N82: 196.65 | O82: =G82*J82 -> 163298800 | U82: 1999-12-17 | V82: 0.348 | W82: 186.779999 | X82: 199912 | Y82: 199812 | Z82: 1998-12-18 | AA82: 5 | AB82: 1 | AC82: 1.445 | AD82: 0.007736374386
A83: 68 | B83: 2015-08-28 | C83: 198.5 | D83: 199.839996 | E83: 197.919998 | F83: 199.279999 | G83: 160414400 | H83: 198.249332 | I83: 0.9948280459 | J83: 1 | K83: 197.47 | L83: 198.81 | M83: 196.9 | N83: 198.25 | O83: 160414400 | U83: 1999-09-17 | V83: 0.372 | W83: 186.779999 | X83: 199909 | Y83: 199809 | Z83: 1998-09-18 | AA83: 5 | AB83: 1 | AC83: 1.489 | AD83: 0.007971945647
A84: 69 | B84: 2015-08-27 | C84: 197.020004 | D84: 199.419998 | E84: 195.210007 | F84: 199.270004 | G84: 274143900 | H84: 198.239389 | I84: 0.9948280475 | J84: 1 | K84: 196 | L84: 198.39 | M84: 194.2 | N84: 198.24 | O84: 274143900 | U84: 1999-06-18 | V84: 0.405 | W84: 186.779999 | X84: 199906 | Y84: 199806 | Z84: 1998-06-19 | AA84: 5 | AB84: 1 | AC84: 1.476 | AD84: 0.007902345047
A85: 70 | B85: 2015-08-26 | C85: 192.080002 | D85: 194.789993 | E85: 188.369995 | F85: 194.460007 | G85: 339257000 | H85: 193.454268 | I85: 0.9948280419 | J85: 1 | K85: 191.09 | L85: 193.78 | M85: 187.4 | N85: 193.45 | O85: 339257000 | U85: 1999-03-19 | V85: 0.32 | W85: 186.779999 | X85: 199903 | Y85: 199803 | Z85: 1998-03-20 | AA85: 5 | AB85: 1 | AC85: 1.423 | AD85: 0.007618588755
A86: 71 | B86: 2015-08-25 | C86: 195.429993 | D86: 195.449997 | E86: 186.919998 | F86: 187.270004 | G86: 369833100 | H86: 186.301452 | I86: 0.9948280452 | J86: 1 | K86: 194.42 | L86: 194.44 | M86: 185.95 | N86: 186.3 | O86: 369833100 | U86: 1998-12-18 | V86: 0.392 | W86: 186.779999 | X86: 199812 | Y86: 199712 | Z86: 1997-12-19 | AA86: 5 | AB86: 1 | AC86: 1.416 | AD86: 0.007581111509
A87: 72 | B87: 2015-08-24 | C87: 187.490005 | D87: 197.479996 | E87: 182.399994 | F87: 189.5 | G87: 507244300 | H87: 188.519915 | I87: 0.9948280475 | J87: 1 | K87: 186.52 | L87: 196.46 | M87: 181.46 | N87: 188.52 | O87: 507244300 | U87: 1998-09-18 | V87: 0.359 | W87: 186.779999 | X87: 199809 | Y87: 199709 | Z87: 1997-09-19 | AA87: 5 | AB87: 1 | AC87: 1.404 | AD87: 0.007516864801
A88: 73 | B88: 2015-08-21 | C88: 201.729996 | D88: 203.940002 | E88: 197.520004 | F88: 197.830002 | G88: 346588500 | H88: 196.806834 | I88: 0.9948280443 | J88: 1 | K88: 200.69 | L88: 202.89 | M88: 196.5 | N88: 196.81 | O88: 346588500 | U88: 1998-06-19 | V88: 0.352 | W88: 186.779999 | X88: 199806 | Y88: 199706 | Z88: 1997-06-20 | AA88: 5 | AB88: 1 | AC88: 1.393 | AD88: 0.007457971986
A89: 74 | B89: 2015-08-20 | C89: 206.509995 | D89: 208.289993 | E89: 203.899994 | F89: 203.970001 | G89: 194327900 | H89: 202.915078 | I89: 0.9948280483 | J89: 1 | K89: 205.44 | L89: 207.21 | M89: 202.85 | N89: 202.92 | O89: 194327900 | U89: 1998-03-20 | V89: 0.313 | W89: 186.779999 | X89: 199803 | Y89: 199703 | Z89: 1997-03-21 | AA89: 5 | AB89: 1 | AC89: 1.391 | AD89: 0.007447264201
A90: 75 | B90: 2015-08-19 | C90: 209.089996 | D90: 210.009995 | E90: 207.350006 | F90: 208.320007 | G90: 172946000 | H90: 207.242586 | I90: 0.9948280484 | J90: 1 | K90: 208.01 | L90: 208.92 | M90: 206.28 | N90: 207.24 | O90: 172946000 | U90: 1997-12-19 | V90: 0.38 | W90: 186.779999 | X90: 199712 | Y90: 199612 | Z90: 1996-12-20 | AA90: 5 | AB90: 1 | AC90: 1.377 | AD90: 0.007372309709
A91: 76 | B91: 2015-08-18 | C91: 210.259995 | D91: 210.679993 | E91: 209.699997 | F91: 209.979996 | G91: 71692700 | H91: 208.893989 | I91: 0.9948280454 | J91: 1 | K91: 209.17 | L91: 209.59 | M91: 208.62 | N91: 208.89 | O91: 71692700 | U91: 1997-09-19 | V91: 0.348 | W91: 186.779999 | X91: 199709 | Y91: 199609 | Z91: 1996-09-20 | AA91: 5 | AB91: 1 | AC91: 1.364 | AD91: 0.007302709109
A92: 77 | B92: 2015-08-17 | C92: 208.710007 | D92: 210.589996 | E92: 208.160004 | F92: 210.589996 | G92: 79072600 | H92: 209.500834 | I92: 0.9948280449 | J92: 1 | K92: 207.63 | L92: 209.5 | M92: 207.08 | N92: 209.5 | O92: 79072600 | U92: 1997-06-20 | V92: 0.35 | W92: 186.779999 | X92: 199706 | Y92: 199606 | Z92: 1996-06-21 | AA92: 5 | AB92: 1 | AC92: 1.368 | AD92: 0.007324124678
A93: 78 | B93: 2015-08-14 | C93: 208.429993 | D93: 209.509995 | E93: 208.259995 | F93: 209.419998 | G93: 72786500 | H93: 208.336887 | I93: 0.9948280441 | J93: 1 | K93: 207.35 | L93: 208.43 | M93: 207.18 | N93: 208.34 | O93: 72786500 | U93: 1997-03-21 | V93: 0.299 | W93: 186.779999 | X93: 199703 | Y93: 199603 | Z93: 1996-03-15 | AA93: 5 | AB93: 1 | AC93: 1.369 | AD93: 0.00732947857
A94: 79 | B94: 2015-08-13 | C94: 208.729996 | D94: 209.550003 | E94: 208.009995 | F94: 208.660004 | G94: 89383300 | H94: 207.580824 | I94: 0.9948280457 | J94: 1 | K94: 207.65 | L94: 208.47 | M94: 206.93 | N94: 207.58 | O94: 89383300 | U94: 1996-12-20 | V94: 0.367 | W94: 186.779999 | X94: 199612 | Y94: 199512 | Z94: 1995-12-15 | AA94: 5 | AB94: 1 | AC94: 1.355 | AD94: 0.007254524078
A95: 80 | B95: 2015-08-12 | C95: 207.110001 | D95: 209.139999 | E95: 205.360001 | F95: 208.919998 | G95: 172123700 | H95: 207.839473 | I95: 0.9948280442 | J95: 1 | K95: 206.04 | L95: 208.06 | M95: 204.3 | N95: 207.84 | O95: 172123700 | U95: 1996-09-20 | V95: 0.352 | W95: 186.779999 | X95: 199609 | Y95: 199509 | Z95: 1995-09-15 | AA95: 5 | AB95: 1 | AC95: 1.37 | AD95: 0.007334832462
A96: 81 | B96: 2015-08-11 | C96: 208.970001 | D96: 209.470001 | E96: 207.759995 | F96: 208.660004 | G96: 126081400 | H96: 207.580824 | I96: 0.9948280457 | J96: 1 | K96: 207.89 | L96: 208.39 | M96: 206.69 | N96: 207.58 | O96: 126081400 | U96: 1996-06-21 | V96: 0.351 | W96: 186.779999 | X96: 199606 | Y96: 199506 | Z96: 1995-06-16 | AA96: 5 | AB96: 1 | AC96: 1.33 | AD96: 0.00712067677
A97: 82 | B97: 2015-08-10 | C97: 209.279999 | D97: 210.669998 | E97: 209.279999 | F97: 210.570007 | G97: 80270700 | H97: 209.480949 | I97: 0.9948280479 | J97: 1 | K97: 208.2 | L97: 209.58 | M97: 208.2 | N97: 209.48 | O97: 80270700 | U97: 1996-03-15 | V97: 0.285 | W97: 186.779999 | X97: 199603 | Y97: 199503 | Z97: 1995-03-17 | AA97: 5 | AB97: 1 | AC97: 1.295 | AD97: 0.006933290539
A98: 83 | B98: 2015-08-07 | C98: 208.160004 | D98: 208.339996 | E98: 206.869995 | F98: 207.949997 | G98: 117858000 | H98: 206.874489 | I98: 0.9948280451 | J98: 1 | K98: 207.08 | L98: 207.26 | M98: 205.8 | N98: 206.87 | O98: 117858000 | U98: 1995-12-15 | V98: 0.382 | W98: 186.779999 | X98: 199512 | Y98: 199412 | Z98: 1994-12-16 | AA98: 5 | AB98: 1 | AC98: 1.278 | AD98: 0.00684227437
A99: 84 | B99: 2015-08-06 | C99: 210.289993 | D99: 210.419998 | E99: 207.649994 | F99: 208.350006 | G99: 116030800 | H99: 207.272429 | I99: 0.9948280443 | J99: 1 | K99: 209.2 | L99: 209.33 | M99: 206.58 | N99: 207.27 | O99: 116030800 | U99: 1995-09-15 | V99: 0.312 | W99: 186.779999 | X99: 199509 | Y99: 199409 | Z99: 1994-09-19 | AA99: 5 | AB99: 1 | AC99: 1.259 | AD99: 0.006740550416
A100: 85 | B100: 2015-08-05 | C100: 210.449997 | D100: 211.309998 | E100: 209.729996 | F100: 210.070007 | G100: 85786800 | H100: 208.983535 | I100: 0.994828048 | J100: 1 | K100: 209.36 | L100: 210.22 | M100: 208.65 | N100: 208.98 | O100: 85786800 | U100: 1995-06-16 | V100: 0.316 | W100: 186.779999 | X100: 199506 | Y100: 199406 | Z100: 1994-06-17 | AA100: 6 | AB100: 1 | AC100: 1.235 | AD100: 0.006612057001
A101: 86 | B101: 2015-08-04 | C101: 209.699997 | D101: 210.25 | E101: 208.800003 | F101: 209.380005 | G101: 81820800 | H101: 208.297101 | I101: 0.9948280448 | J101: 1 | K101: 208.62 | L101: 209.16 | M101: 207.72 | N101: 208.3 | O101: 81820800 | U101: 1995-03-17 | V101: 0.268 | W101: 186.779999 | X101: 199503 | Y101: 199403 | Z101: 1994-03-18 | AA101: 6 | AB101: 1 | AC101: 1.224 | AD101: 0.006553164185
A102: 87 | B102: 2015-08-03 | C102: 210.460007 | D102: 210.529999 | E102: 208.649994 | F102: 209.789993 | G102: 113965700 | H102: 208.704969 | I102: 0.9948280469 | J102: 1 | K102: 209.37 | L102: 209.44 | M102: 207.57 | N102: 208.7 | O102: 113965700 | U102: 1994-12-16 | V102: 0.363 | W102: 186.779999 | X102: 199412 | Y102: 199312 | Z102: 1993-12-17 | AA102: 6 | AB102: 1 | AC102: 1.227 | AD102: 0.006569225862
A103: 88 | B103: 2015-07-31 | C103: 211.419998 | D103: 211.449997 | E103: 210.160004 | F103: 210.5 | G103: 103266900 | H103: 209.411304 | I103: 0.9948280475 | J103: 1 | K103: 210.33 | L103: 210.36 | M103: 209.07 | N103: 209.41 | O103: 103266900 | U103: 1994-09-19 | V103: 0 | W103: 186.779999 | X103: 199409 | Y103: 199309 | Z103: 1993-09-17 | AA103: 6 | AB103: 1 | AC103: 1.181 | AD103: 0.006322946816
A104: 89 | B104: 2015-07-30 | C104: 210.160004 | D104: 211.020004 | E104: 209.419998 | F104: 210.820007 | G104: 91304400 | H104: 209.729656 | I104: 0.9948280478 | J104: 1 | K104: 209.07 | L104: 209.93 | M104: 208.34 | N104: 209.73 | O104: 91304400 | U104: 1994-09-16 | V104: 0.288 | W104: 186.779999 | X104: 199409 | Y104: 199309 | Z104: 1993-09-17 | AA104: 5 | AB104: 1 | AC104: 1.181 | AD104: 0.006322946816
A105: 90 | B105: 2015-07-29 | C105: 209.479996 | D105: 211.039993 | E105: 209.309998 | F105: 210.770004 | G105: 105791300 | H105: 209.679911 | I105: 0.9948280449 | J105: 1 | K105: 208.4 | L105: 209.95 | M105: 208.23 | N105: 209.68 | O105: 105791300 | U105: 1994-06-17 | V105: 0.305 | W105: 186.779999 | X105: 199406 | Y105: 199306 | Z105: 1993-06-18 | AA105: 5 | AB105: 1 | AC105: 1.179 | AD105: 0.006312239032
A106: 91 | B106: 2015-07-28 | C106: 207.789993 | D106: 209.5 | E106: 206.800003 | F106: 209.330002 | G106: 123544800 | H106: 208.247357 | I106: 0.9948280467 | J106: 1 | K106: 206.72 | L106: 208.42 | M106: 205.73 | N106: 208.25 | O106: 123544800 | U106: 1994-03-18 | V106: 0.271 | W106: 186.779999 | X106: 199403 | Y106: 199303 | Z106: 1993-03-19 | AA106: 5 | AB106: 1 | AC106: 1.192 | AD106: 0.006381839632
A107: 92 | B107: 2015-07-27 | C107: 206.940002 | D107: 207.550003 | E107: 206.259995 | F107: 206.789993 | G107: 132361100 | H107: 205.720485 | I107: 0.9948280476 | J107: 1 | K107: 205.87 | L107: 206.48 | M107: 205.19 | N107: 205.72 | O107: 132361100 | U107: 1993-12-17 | V107: 0.317 | W107: 186.779999 | X107: 199312 | Y107: 199212 | Z107: 1993-03-19 | AA107: 4 | AB107: 0 | AC107: 1.134 | AD107: 0.006071313878
A108: 93 | B108: 2015-07-24 | C108: 210.300003 | D108: 210.369995 | E108: 207.600006 | F108: 208 | G108: 117755000 | H108: 206.924233 | I108: 0.9948280433 | J108: 1 | K108: 209.21 | L108: 209.28 | M108: 206.53 | N108: 206.92 | O108: 117755000 | U108: 1993-09-17 | V108: 0.286 | W108: 186.779999 | X108: 199309 | Y108: 199209 | Z108: 1993-03-19 | AA108: 3 | AB108: 0 | AC108: 0.817 | AD108: 0.004374130016
A109: 94 | B109: 2015-07-23 | C109: 211.529999 | D109: 211.649994 | E109: 209.75 | F109: 210.179993 | G109: 90509100 | H109: 209.092951 | I109: 0.9948280425 | J109: 1 | K109: 210.44 | L109: 210.56 | M109: 208.67 | N109: 209.09 | O109: 90509100 | U109: 1993-06-18 | V109: 0.318 | W109: 186.779999 | X109: 199306 | Y109: 199206 | Z109: 1993-03-19 | AA109: 2 | AB109: 0 | AC109: 0.531 | AD109: 0.002842916816
A110: 95 | B110: 2015-07-22 | C110: 210.929993 | D110: 211.770004 | E110: 210.889999 | F110: 211.369995 | G110: 88667900 | H110: 210.276799 | I110: 0.9948280455 | J110: 1 | K110: 209.84 | L110: 210.67 | M110: 209.8 | N110: 210.28 | O110: 88667900 | U110: 1993-03-19 | V110: 0.213 | W110: 186.779999 | X110: 199303 | Y110: 199203 | Z110: 1993-03-19 | AA110: 1 | AB110: 1 | AC110: 0.213 | AD110: 0.001140379062
A111: 96 | B111: 2015-07-21 | C111: 212.429993 | D111: 212.740005 | E111: 211.389999 | F111: 211.759995 | G111: 77965000 | H111: 210.664781 | I111: 0.9948280411 | J111: 1 | K111: 211.33 | L111: 211.64 | M111: 210.3 | N111: 210.66 | O111: 77965000
A112: 97 | B112: 2015-07-20 | C112: 212.75 | D112: 213.179993 | E112: 212.210007 | F112: 212.589996 | G112: 70446800 | H112: 211.490491 | I112: 0.9948280492 | J112: 1 | K112: 211.65 | L112: 212.08 | M112: 211.11 | N112: 211.49 | O112: 70446800
A113: 98 | B113: 2015-07-17 | C113: 212.289993 | D113: 212.550003 | E113: 211.800003 | F113: 212.470001 | G113: 89030000 | H113: 211.371116 | I113: 0.9948280463 | J113: 1 | K113: 211.19 | L113: 211.45 | M113: 210.7 | N113: 211.37 | O113: 89030000
A114: 99 | B114: 2015-07-16 | C114: 211.869995 | D114: 212.300003 | E114: 211.580002 | F114: 212.300003 | G114: 106683300 | H114: 211.201997 | I114: 0.9948280453 | J114: 1 | K114: 210.77 | L114: 211.2 | M114: 210.49 | N114: 211.2 | O114: 106683300
A115: 100 | B115: 2015-07-15 | C115: 210.729996 | D115: 211.279999 | E115: 210.039993 | F115: 210.610001 | G115: 97914100 | H115: 209.520735 | I115: 0.9948280424 | J115: 1 | K115: 209.64 | L115: 210.19 | M115: 208.95 | N115: 209.52 | O115: 97914100
A116: 101 | B116: 2015-07-14 | C116: 209.720001 | D116: 211.050003 | E116: 209.649994 | F116: 210.679993 | G116: 81709600 | H116: 209.590365 | I116: 0.9948280424 | J116: 1 | K116: 208.64 | L116: 209.96 | M116: 208.57 | N116: 209.59 | O116: 81709600
A117: 102 | B117: 2015-07-13 | C117: 208.990005 | D117: 209.899994 | E117: 208.940002 | F117: 209.759995 | G117: 106069400 | H117: 208.675125 | I117: 0.9948280414 | J117: 1 | K117: 207.91 | L117: 208.81 | M117: 207.86 | N117: 208.68 | O117: 106069400
A118: 103 | B118: 2015-07-10 | C118: 207.289993 | D118: 207.979996 | E118: 204.949997 | F118: 207.479996 | G118: 129456900 | H118: 206.406919 | I118: 0.994828046 | J118: 1 | K118: 206.22 | L118: 206.9 | M118: 203.89 | N118: 206.41 | O118: 129456900
A119: 104 | B119: 2015-07-09 | C119: 207.039993 | D119: 207.350006 | E119: 204.770004 | F119: 204.899994 | G119: 144113100 | H119: 203.84026 | I119: 0.9948280428 | J119: 1 | K119: 205.97 | L119: 206.28 | M119: 203.71 | N119: 203.84 | O119: 144113100
A120: 105 | B120: 2015-07-08 | C120: 206.419998 | D120: 206.759995 | E120: 204.25 | F120: 204.529999 | G120: 164020100 | H120: 203.472179 | I120: 0.9948280448 | J120: 1 | K120: 205.35 | L120: 205.69 | M120: 203.19 | N120: 203.47 | O120: 164020100
A121: 106 | B121: 2015-07-07 | C121: 206.960007 | D121: 208.169998 | E121: 204.110001 | F121: 208.009995 | G121: 173820200 | H121: 206.934176 | I121: 0.9948280418 | J121: 1 | K121: 205.89 | L121: 207.09 | M121: 203.05 | N121: 206.93 | O121: 173820200
A122: 107 | B122: 2015-07-06 | C122: 205.770004 | D122: 207.649994 | E122: 205.529999 | F122: 206.720001 | G122: 117975400 | H122: 205.650855 | I122: 0.9948280476 | J122: 1 | K122: 204.71 | L122: 206.58 | M122: 204.47 | N122: 205.65 | O122: 117975400
A123: 108 | B123: 2015-07-02 | C123: 208.070007 | D123: 208.270004 | E123: 206.809998 | F123: 207.320007 | G123: 104373700 | H123: 206.247758 | I123: 0.9948280486 | J123: 1 | K123: 206.99 | L123: 207.19 | M123: 205.74 | N123: 206.25 | O123: 104373700
A124: 109 | B124: 2015-07-01 | C124: 207.729996 | D124: 208.029999 | E124: 206.559998 | F124: 207.5 | G124: 135979900 | H124: 206.426819 | I124: 0.9948280434 | J124: 1 | K124: 206.66 | L124: 206.95 | M124: 205.49 | N124: 206.43 | O124: 135979900
A125: 110 | B125: 2015-06-30 | C125: 207.259995 | D125: 207.320007 | E125: 205.279999 | F125: 205.850006 | G125: 182925100 | H125: 204.785359 | I125: 0.9948280448 | J125: 1 | K125: 206.19 | L125: 206.25 | M125: 204.22 | N125: 204.79 | O125: 182925100
A126: 111 | B126: 2015-06-29 | C126: 208.050003 | D126: 209.830002 | E126: 205.330002 | F126: 205.419998 | G126: 202621300 | H126: 204.357575 | I126: 0.9948280449 | J126: 1 | K126: 206.97 | L126: 208.74 | M126: 204.27 | N126: 204.36 | O126: 202621300
A127: 112 | B127: 2015-06-26 | C127: 210.289993 | D127: 210.580002 | E127: 209.160004 | F127: 209.820007 | G127: 104174800 | H127: 208.734828 | I127: 0.994828048 | J127: 1 | K127: 209.2 | L127: 209.49 | M127: 208.08 | N127: 208.73 | O127: 104174800
A128: 113 | B128: 2015-06-25 | C128: 211.100006 | D128: 211.25 | E128: 209.770004 | F128: 209.860001 | G128: 97107400 | H128: 208.774614 | I128: 0.9948280425 | J128: 1 | K128: 210.01 | L128: 210.16 | M128: 208.69 | N128: 208.77 | O128: 97107400
A129: 114 | B129: 2015-06-24 | C129: 211.720001 | D129: 212.169998 | E129: 210.470001 | F129: 210.509995 | G129: 92307300 | H129: 209.421246 | I129: 0.9948280413 | J129: 1 | K129: 210.62 | L129: 211.07 | M129: 209.38 | N129: 209.42 | O129: 92307300
A130: 115 | B130: 2015-06-23 | C130: 212.139999 | D130: 212.440002 | E130: 211.570007 | F130: 212.050003 | G130: 68476800 | H130: 210.95329 | I130: 0.9948280453 | J130: 1 | K130: 211.04 | L130: 211.34 | M130: 210.48 | N130: 210.95 | O130: 68476800
A131: 116 | B131: 2015-06-22 | C131: 211.910004 | D131: 212.589996 | E131: 211.639999 | F131: 211.889999 | G131: 70696000 | H131: 210.794114 | I131: 0.9948280475 | J131: 1 | K131: 210.81 | L131: 211.49 | M131: 210.55 | N131: 210.79 | O131: 70696000
A132: 117 | B132: 2015-06-19 | C132: 211.460007 | D132: 211.550003 | E132: 210.360001 | F132: 210.809998 | G132: 130478700 | H132: 209.719698 | I132: 0.9948280442 | J132: 1 | K132: 210.37 | L132: 210.46 | M132: 209.27 | N132: 209.72 | O132: 130478700
A133: 118 | B133: 2015-06-18 | C133: 211.309998 | D133: 213.339996 | E133: 210.630005 | F133: 212.779999 | G133: 165867900 | H133: 210.654826 | I133: 0.990012346 | J133: 1 | K133: 209.2 | L133: 211.21 | M133: 208.53 | N133: 210.65 | O133: 165867900
A134: 119 | B134: 2015-06-17 | C134: 210.589996 | D134: 211.320007 | E134: 209.360001 | F134: 210.589996 | G134: 126708600 | H134: 208.486697 | I134: 0.9900123508 | J134: 1 | K134: 208.49 | L134: 209.21 | M134: 207.27 | N134: 208.49 | O134: 126708600
A135: 120 | B135: 2015-06-16 | C135: 208.929993 | D135: 210.350006 | E135: 208.720001 | F135: 210.25 | G135: 85308200 | H135: 208.150096 | I135: 0.9900123472 | J135: 1 | K135: 206.84 | L135: 208.25 | M135: 206.64 | N135: 208.15 | O135: 85308200
A136: 121 | B136: 2015-06-15 | C136: 208.639999 | D136: 209.449997 | E136: 207.789993 | F136: 209.100006 | G136: 124384200 | H136: 207.011588 | I136: 0.9900123484 | J136: 1 | K136: 206.56 | L136: 207.36 | M136: 205.71 | N136: 207.01 | O136: 124384200
A137: 122 | B137: 2015-06-12 | C137: 210.639999 | D137: 211.479996 | E137: 209.679993 | F137: 210.009995 | G137: 135382400 | H137: 207.912488 | I137: 0.9900123468 | J137: 1 | K137: 208.54 | L137: 209.37 | M137: 207.59 | N137: 207.91 | O137: 135382400
A138: 123 | B138: 2015-06-11 | C138: 211.479996 | D138: 212.089996 | E138: 211.199997 | F138: 211.630005 | G138: 73876400 | H138: 209.516318 | I138: 0.9900123473 | J138: 1 | K138: 209.37 | L138: 209.97 | M138: 209.09 | N138: 209.52 | O138: 73876400
A139: 124 | B139: 2015-06-10 | C139: 209.369995 | D139: 211.410004 | E139: 209.300003 | F139: 210.960007 | G139: 134551300 | H139: 208.853012 | I139: 0.9900123486 | J139: 1 | K139: 207.28 | L139: 209.3 | M139: 207.21 | N139: 208.85 | O139: 134551300
A140: 125 | B140: 2015-06-09 | C140: 208.449997 | D140: 209.100006 | E140: 207.690002 | F140: 208.449997 | G140: 105034700 | H140: 206.368071 | I140: 0.9900123481 | J140: 1 | K140: 206.37 | L140: 207.01 | M140: 205.62 | N140: 206.37 | O140: 105034700
A141: 126 | B141: 2015-06-08 | C141: 209.639999 | D141: 209.820007 | E141: 208.389999 | F141: 208.479996 | G141: 89063300 | H141: 206.39777 | I141: 0.9900123463 | J141: 1 | K141: 207.55 | L141: 207.72 | M141: 206.31 | N141: 206.4 | O141: 89063300
A142: 127 | B142: 2015-06-05 | C142: 209.949997 | D142: 210.580002 | E142: 208.979996 | F142: 209.770004 | G142: 121704700 | H142: 207.674894 | I142: 0.990012347 | J142: 1 | K142: 207.85 | L142: 208.48 | M142: 206.89 | N142: 207.67 | O142: 121704700
A143: 128 | B143: 2015-06-04 | C143: 211.070007 | D143: 211.860001 | E143: 209.75 | F143: 210.130005 | G143: 151882800 | H143: 208.031299 | I143: 0.990012345 | J143: 1 | K143: 208.96 | L143: 209.74 | M143: 207.66 | N143: 208.03 | O143: 151882800
A144: 129 | B144: 2015-06-03 | C144: 212 | D144: 212.669998 | E144: 211.330002 | F144: 211.919998 | G144: 87820900 | H144: 209.803415 | I144: 0.9900123489 | J144: 1 | K144: =ROUND($I144*C144,2) -> 209.88 | L144: =ROUND($I144*D144,2) -> 210.55 | M144: =ROUND($I144*E144,2) -> 209.22 | N144: =ROUND($I144*F144,2) -> 209.8 | O144: 87820900
A145: 130 | B145: 2015-06-02 | C145: 211.020004 | D145: 212.190002 | E145: 210.270004 | F145: 211.360001 | G145: 91531000 | H145: 209.24901 | I145: 0.9900123439 | J145: 1 | K145: 208.91 | L145: 210.07 | M145: 208.17 | N145: 209.25 | O145: 91531000
A146: 131 | B146: 2015-06-01 | C146: 211.940002 | D146: 212.339996 | E146: 210.619995 | F146: 211.570007 | G146: 93338800 | H146: 209.45692 | I146: =H146/F146 -> 0.9900123509 | J146: =INDEX(OFFSET($T$15,0,0,$S$13+1,1),MATCH(B146,OFFSET($Q$15,0,0,$S$13+1,1),-1)) -> 1 | K146: 209.82 | L146: 210.22 | M146: 208.52 | N146: 209.46 | O146: =G146*J146 -> 93338800
A147: 132 | B147: 2015-05-29 | C147: 212.380005 | D147: 212.429993 | E147: 210.820007 | F147: 211.139999 | G147: 124919600 | H147: 209.031206 | I147: 0.9900123472 | J147: 1 | K147: 210.26 | L147: 210.31 | M147: 208.71 | N147: 209.03 | O147: 124919600
A148: 133 | B148: 2015-05-28 | C148: 212.330002 | D148: 212.589996 | E148: 211.630005 | F148: 212.460007 | G148: 74974600 | H148: 210.33803 | I148: 0.9900123462 | J148: 1 | K148: 210.21 | L148: 210.47 | M148: 209.52 | N148: 210.34 | O148: 74974600
A149: 134 | B149: 2015-05-27 | C149: 211.25 | D149: 212.979996 | E149: 210.759995 | F149: 212.699997 | G149: 93214000 | H149: 210.575623 | I149: 0.9900123459 | J149: 1 | K149: 209.14 | L149: 210.85 | M149: 208.65 | N149: 210.58 | O149: 93214000
A150: 135 | B150: 2015-05-26 | C150: 212.399994 | D150: 212.910004 | E150: 210.199997 | F150: 210.699997 | G150: 124308600 | H150: 208.595599 | I150: 0.9900123492 | J150: 1 | K150: 210.28 | L150: 210.78 | M150: 208.1 | N150: 208.6 | O150: 124308600
A151: 136 | B151: 2015-05-22 | C151: 213.039993 | D151: 213.539993 | E151: 212.910004 | F151: 212.990005 | G151: 57433500 | H151: 210.862735 | I151: 0.9900123482 | J151: 1 | K151: 210.91 | L151: 211.41 | M151: 210.78 | N151: 210.86 | O151: 57433500
A152: 137 | B152: 2015-05-21 | C152: 212.710007 | D152: 213.75 | E152: 212.509995 | F152: 213.5 | G152: 64764600 | H152: 211.367636 | I152: 0.9900123466 | J152: 1 | K152: 210.59 | L152: 211.62 | M152: 210.39 | N152: 211.37 | O152: 64764600
A153: 138 | B153: 2015-05-20 | C153: 213.149994 | D153: 213.779999 | E153: 212.5 | F153: 212.880005 | G153: 76857500 | H153: 210.753833 | I153: 0.9900123452 | J153: 1 | K153: 211.02 | L153: 211.64 | M153: 210.38 | N153: 210.75 | O153: 76857500
A154: 139 | B154: 2015-05-19 | C154: 213.240005 | D154: 213.570007 | E154: 212.690002 | F154: 213.029999 | G154: 72114600 | H154: 210.902329 | I154: 0.9900123456 | J154: 1 | K154: 211.11 | L154: 211.44 | M154: 210.57 | N154: 210.9 | O154: 72114600
A155: 140 | B155: 2015-05-18 | C155: 212.240005 | D155: 213.399994 | E155: 212.160004 | F155: 213.100006 | G155: 74549700 | H155: 210.971637 | I155: 0.9900123466 | J155: 1 | K155: 210.12 | L155: 211.27 | M155: 210.04 | N155: 210.97 | O155: 74549700
A156: 141 | B156: 2015-05-15 | C156: 212.440002 | D156: 212.610001 | E156: 211.860001 | F156: 212.440002 | G156: 76510100 | H156: 210.318226 | I156: 0.9900123518 | J156: 1 | K156: 210.32 | L156: 210.49 | M156: 209.74 | N156: 210.32 | O156: 76510100
A157: 142 | B157: 2015-05-14 | C157: 211.240005 | D157: 212.320007 | E157: 210.910004 | F157: 212.210007 | G157: 95934000 | H157: 210.090527 | I157: 0.9900123466 | J157: 1 | K157: 209.13 | L157: 210.2 | M157: 208.8 | N157: 210.09 | O157: 95934000
A158: 143 | B158: 2015-05-13 | C158: 210.470001 | D158: 211.220001 | E158: 209.740005 | F158: 210.020004 | G158: 94667900 | H158: 207.922397 | I158: 0.9900123466 | J158: 1 | K158: 208.37 | L158: 209.11 | M158: 207.65 | N158: 207.92 | O158: 94667900
A159: 144 | B159: 2015-05-12 | C159: 209.610001 | D159: 210.630005 | E159: 208.619995 | F159: 209.979996 | G159: 119727600 | H159: 207.882789 | I159: 0.9900123486 | J159: 1 | K159: 207.52 | L159: 208.53 | M159: 206.54 | N159: 207.88 | O159: 119727600
A160: 145 | B160: 2015-05-11 | C160: 211.570007 | D160: 211.889999 | E160: 210.520004 | F160: 210.610001 | G160: 75708100 | H160: 208.506501 | I160: 0.9900123451 | J160: 1 | K160: 209.46 | L160: 209.77 | M160: 208.42 | N160: 208.51 | O160: 75708100
A161: 146 | B161: 2015-05-08 | C161: 210.880005 | D161: 211.860001 | E161: 210.779999 | F161: 211.619995 | G161: 155877300 | H161: 209.506408 | I161: 0.9900123474 | J161: 1 | K161: 208.77 | L161: 209.74 | M161: 208.67 | N161: 209.51 | O161: 155877300
A162: 147 | B162: 2015-05-07 | C162: 207.919998 | D162: 209.380005 | E162: 207.520004 | F162: 208.869995 | G162: 88244900 | H162: 206.783874 | I162: 0.9900123472 | J162: 1 | K162: 205.84 | L162: 207.29 | M162: 205.45 | N162: 206.78 | O162: 88244900
A163: 148 | B163: 2015-05-06 | C163: 209.559998 | D163: 209.929993 | E163: 206.759995 | F163: 208.039993 | G163: 135060200 | H163: 205.962162 | I163: 0.9900123483 | J163: 1 | K163: 207.47 | L163: 207.83 | M163: 204.69 | N163: 205.96 | O163: 135060200
A164: 149 | B164: 2015-05-05 | C164: 211.029999 | D164: 211.460007 | E164: 208.729996 | F164: 208.899994 | G164: 113326200 | H164: 206.813573 | I164: 0.9900123453 | J164: 1 | K164: 208.92 | L164: 209.35 | M164: 206.65 | N164: 206.81 | O164: 113326200
A165: 150 | B165: 2015-05-04 | C165: 211.229996 | D165: 212.020004 | E165: 211.100006 | F165: 211.320007 | G165: 70927200 | H165: 209.209417 | I165: 0.9900123513 | J165: 1 | K165: 209.12 | L165: 209.9 | M165: 208.99 | N165: 209.21 | O165: 70927200
A166: 151 | B166: 2015-05-01 | C166: 209.399994 | D166: 210.770004 | E166: 209.279999 | F166: 210.720001 | G166: 103399700 | H166: 208.615403 | I166: 0.9900123482 | J166: 1 | K166: 207.31 | L166: 208.66 | M166: 207.19 | N166: 208.62 | O166: 103399700
A167: 152 | B167: 2015-04-30 | C167: 209.880005 | D167: 210.350006 | E167: 207.619995 | F167: 208.460007 | G167: 161304900 | H167: 206.377981 | I167: 0.990012348 | J167: 1 | K167: 207.78 | L167: 208.25 | M167: 205.55 | N167: 206.38 | O167: 161304900
A168: 153 | B168: 2015-04-29 | C168: 210.369995 | D168: 211.289993 | E168: 209.600006 | F168: 210.570007 | G168: 125684900 | H168: 208.466907 | I168: 0.9900123478 | J168: 1 | K168: 208.27 | L168: 209.18 | M168: 207.51 | N168: 208.47 | O168: 125684900
A169: 154 | B169: 2015-04-28 | C169: 210.740005 | D169: 211.5 | E169: 209.330002 | F169: 211.440002 | G169: 86863500 | H169: 209.328213 | I169: 0.9900123488 | J169: 1 | K169: 208.64 | L169: 209.39 | M169: 207.24 | N169: 209.33 | O169: 86863500
A170: 155 | B170: 2015-04-27 | C170: 212.330002 | D170: 212.479996 | E170: 210.539993 | F170: 210.770004 | G170: 79358100 | H170: 208.664907 | I170: 0.9900123501 | J170: 1 | K170: 210.21 | L170: 210.36 | M170: 208.44 | N170: 208.66 | O170: 79358100
A171: 156 | B171: 2015-04-24 | C171: 211.660004 | D171: 211.970001 | E171: 211.110001 | F171: 211.649994 | G171: 61327400 | H171: 209.536107 | I171: 0.9900123456 | J171: 1 | K171: 209.55 | L171: 209.85 | M171: 209 | N171: 209.54 | O171: 61327400
A172: 157 | B172: 2015-04-23 | C172: 210.149994 | D172: 211.940002 | E172: 210.009995 | F172: 211.160004 | G172: 102585900 | H172: 209.051011 | I172: 0.9900123463 | J172: 1 | K172: 208.05 | L172: 209.82 | M172: 207.91 | N172: 209.05 | O172: 102585900
A173: 158 | B173: 2015-04-22 | C173: 210.009995 | D173: 210.850006 | E173: 208.899994 | F173: 210.630005 | G173: 78264600 | H173: 208.526306 | I173: 0.9900123489 | J173: 1 | K173: 207.91 | L173: 208.74 | M173: 206.81 | N173: 208.53 | O173: 78264600
A174: 159 | B174: 2015-04-21 | C174: 210.669998 | D174: 210.860001 | E174: 209.240005 | F174: 209.600006 | G174: 72559800 | H174: 207.506594 | I174: 0.9900123476 | J174: 1 | K174: 208.57 | L174: 208.75 | M174: 207.15 | N174: 207.51 | O174: 72559800
A175: 160 | B175: 2015-04-20 | C175: 209.059998 | D175: 210.25 | E175: 208.960007 | F175: 209.850006 | G175: 92189500 | H175: 207.754097 | I175: 0.9900123472 | J175: 1 | K175: 206.97 | L175: 208.15 | M175: 206.87 | N175: 207.75 | O175: 92189500
A176: 161 | B176: 2015-04-17 | C176: 208.940002 | D176: 209.229996 | E176: 207.009995 | F176: 207.949997 | G176: 191113200 | H176: 205.873065 | I176: 0.990012349 | J176: 1 | K176: 206.85 | L176: 207.14 | M176: 204.94 | N176: 205.87 | O176: 191113200
A177: 162 | B177: 2015-04-16 | C177: 210.029999 | D177: 210.979996 | E177: 209.789993 | F177: 210.369995 | G177: 68934900 | H177: 208.268893 | I177: 0.9900123494 | J177: 1 | K177: 207.93 | L177: 208.87 | M177: 207.69 | N177: 208.27 | O177: 68934900
A178: 163 | B178: 2015-04-15 | C178: 210.050003 | D178: 211.039993 | E178: 209.949997 | F178: 210.429993 | G178: 99529300 | H178: 208.328291 | I178: 0.9900123458 | J178: 1 | K178: 207.95 | L178: 208.93 | M178: 207.85 | N178: 208.33 | O178: 99529300
A179: 164 | B179: 2015-04-14 | C179: 208.850006 | D179: 209.710007 | E179: 208.100006 | F179: 209.490005 | G179: 75099900 | H179: 207.397692 | I179: 0.9900123493 | J179: 1 | K179: 206.76 | L179: 207.62 | M179: 206.02 | N179: 207.4 | O179: 75099900
A180: 165 | B180: 2015-04-13 | C180: 209.869995 | D180: 210.630005 | E180: 209.029999 | F180: 209.089996 | G180: 74436600 | H180: 207.001678 | I180: 0.9900123486 | J180: 1 | K180: 207.77 | L180: 208.53 | M180: 206.94 | N180: 207 | O180: 74436600
A181: 166 | B181: 2015-04-10 | C181: 209.199997 | D181: 210.089996 | E181: 208.960007 | F181: 210.039993 | G181: 72722900 | H181: 207.942187 | I181: 0.9900123497 | J181: 1 | K181: 207.11 | L181: 207.99 | M181: 206.87 | N181: 207.94 | O181: 72722900
A182: 167 | B182: 2015-04-09 | C182: 207.779999 | D182: 209.179993 | E182: 207.190002 | F182: 208.899994 | G182: 85548900 | H182: 206.813573 | I182: 0.9900123453 | J182: 1 | K182: 205.7 | L182: 207.09 | M182: 205.12 | N182: 206.81 | O182: 85548900
A183: 168 | B183: 2015-04-08 | C183: 207.550003 | D183: 208.509995 | E183: 207.080002 | F183: 207.979996 | G183: 89351900 | H183: 205.902764 | I183: 0.9900123471 | J183: 1 | K183: 205.48 | L183: 206.43 | M183: 205.01 | N183: 205.9 | O183: 89351900
A184: 169 | B184: 2015-04-07 | C184: 207.860001 | D184: 208.759995 | E184: 207.240005 | F184: 207.279999 | G184: 81236300 | H184: 205.209758 | I184: 0.9900123456 | J184: 1 | K184: 205.78 | L184: 206.67 | M184: 205.17 | N184: 205.21 | O184: 81236300
A185: 170 | B185: 2015-04-06 | C185: 205.369995 | D185: 208.449997 | E185: 205.210007 | F185: 207.830002 | G185: 114368200 | H185: 205.754268 | I185: 0.9900123467 | J185: 1 | K185: 203.32 | L185: 206.37 | M185: 203.16 | N185: 205.75 | O185: 114368200
A186: 171 | B186: 2015-04-02 | C186: 205.619995 | D186: 206.979996 | E186: 205.399994 | F186: 206.440002 | G186: 86900900 | H186: 204.378151 | I186: 0.9900123475 | J186: 1 | K186: 203.57 | L186: 204.91 | M186: 203.35 | N186: 204.38 | O186: 86900900
A187: 172 | B187: 2015-04-01 | C187: 206.389999 | D187: 206.419998 | E187: 204.509995 | F187: 205.699997 | G187: 137303600 | H187: 203.645537 | I187: 0.9900123479 | J187: 1 | K187: 204.33 | L187: 204.36 | M187: 202.47 | N187: 203.65 | O187: 137303600
A188: 173 | B188: 2015-03-31 | C188: 207.259995 | D188: 208.100006 | E188: 206.360001 | F188: 206.429993 | G188: 126768700 | H188: 204.368242 | I188: 0.9900123477 | J188: 1 | K188: 205.19 | L188: 206.02 | M188: 204.3 | N188: 204.37 | O188: 126768700
A189: 174 | B189: 2015-03-30 | C189: 206.979996 | D189: 208.610001 | E189: 206.960007 | F189: 208.25 | G189: 96180400 | H189: 206.170071 | I189: 0.9900123457 | J189: 1 | K189: 204.91 | L189: 206.53 | M189: 204.89 | N189: 206.17 | O189: 96180400
A190: 175 | B190: 2015-03-27 | C190: 205.130005 | D190: 205.949997 | E190: 204.899994 | F190: 205.740005 | G190: 118939000 | H190: 203.685146 | I190: 0.9900123508 | J190: 1 | K190: 203.08 | L190: 203.89 | M190: 202.85 | N190: 203.69 | O190: 118939000
A191: 176 | B191: 2015-03-26 | C191: 204.960007 | D191: 206.369995 | E191: 204.119995 | F191: 205.270004 | G191: 153067200 | H191: 203.219839 | I191: 0.9900123498 | J191: 1 | K191: 202.91 | L191: 204.31 | M191: 202.08 | N191: 203.22 | O191: 153067200
A192: 177 | B192: 2015-03-25 | C192: 209.070007 | D192: 209.350006 | E192: 205.710007 | F192: 205.759995 | G192: 159521700 | H192: 203.704935 | I192: 0.9900123442 | J192: 1 | K192: 206.98 | L192: 207.26 | M192: 203.66 | N192: 203.7 | O192: 159521700
A193: 178 | B193: 2015-03-24 | C193: 209.850006 | D193: 210.399994 | E193: 208.740005 | F193: 208.820007 | G193: 77805300 | H193: 206.734386 | I193: 0.9900123507 | J193: 1 | K193: 207.75 | L193: 208.3 | M193: 206.66 | N193: 206.73 | O193: 77805300
A194: 179 | B194: 2015-03-23 | C194: 210.419998 | D194: 211.110001 | E194: 210 | F194: 210 | G194: 71784500 | H194: 207.902593 | I194: 0.9900123476 | J194: 1 | K194: 208.32 | L194: 209 | M194: 207.9 | N194: 207.9 | O194: 71784500
A195: 180 | B195: 2015-03-20 | C195: 209.710007 | D195: 211.020004 | E195: 209.490005 | F195: 210.410004 | G195: 177715100 | H195: 208.308502 | I195: 0.9900123475 | J195: 1 | K195: 207.62 | L195: 208.91 | M195: 207.4 | N195: 208.31 | O195: 177715100
A196: 181 | B196: 2015-03-19 | C196: 209.960007 | D196: 210.470001 | E196: 209.029999 | F196: 209.5 | G196: 117917300 | H196: 206.485896 | I196: 0.9856128687 | J196: 1 | K196: 206.94 | L196: 207.44 | M196: 206.02 | N196: 206.49 | O196: 117917300
A197: 182 | B197: 2015-03-18 | C197: 207.389999 | D197: 211.270004 | E197: 206.619995 | F197: 210.460007 | G197: 228808500 | H197: 207.432091 | I197: 0.9856128675 | J197: 1 | K197: 204.41 | L197: 208.23 | M197: 203.65 | N197: 207.43 | O197: 228808500
A198: 183 | B198: 2015-03-17 | C198: 207.690002 | D198: 208.419998 | E198: 206.979996 | F198: 207.960007 | G198: 94510400 | H198: 204.968059 | I198: 0.9856128683 | J198: 1 | K198: 204.7 | L198: 205.42 | M198: 204 | N198: 204.97 | O198: 94510400
A199: 184 | B199: 2015-03-16 | C199: 206.710007 | D199: 208.690002 | E199: 205.860001 | F199: 208.580002 | G199: 136099200 | H199: 205.579134 | I199: 0.9856128681 | J199: 1 | K199: 203.74 | L199: 205.69 | M199: 202.9 | N199: 205.58 | O199: 136099200
A200: 185 | B200: 2015-03-13 | C200: 206.770004 | D200: 207.929993 | E200: 204.580002 | F200: 205.830002 | G200: 162410900 | H200: 202.868699 | I200: 0.98561287 | J200: 1 | K200: 203.8 | L200: 204.94 | M200: 201.64 | N200: 202.87 | O200: 162410900
... 215 more rows

Sheet CalculationsAndCharts
A1: Higher Highs n Lower Lows
A2: =InputPriceData!A1 -> S&P 500 (^GSPC) -SNP (Daily)
A4: User Charting Controls | AW4: =2*26+3 -> 55
A5: Data Control
A6: =InputPriceData!$B$10 -> 2600 | B6: Available Input Data Rows | E6: Earliest: | F6: =OFFSET(InputPriceData!B15,CalculationsAndCharts!A6,0,1,1) -> 2005-08-09
B7: Use Close Adjusted: | C7: TRUE | E7: Latest: | F7: =OFFSET(InputPriceData!B15,1,0,1,1) -> 2015-12-04
A8: =MIN(A6-A11,LastUsedRowInColumn(A:A)-32) -> 2500 | B8: Logically Available for Calc / Plot | E8: $ Change: | F8: =InputPriceData!I4 -> 42.07
A10: Price Chart Windowing Controls | F10: Y-axis Range
A11: 14 | B11: Input Data Offset (Pan) | E11: Max High+ | F11: =CEILING(MAX(MAX(OFFSET($E$33,0,0,$A$12,1)),MAX(OFFSET($J$33,0,0,$A$12,1)))+2*F14,0.1) -> 2166.3
A12: 311 | B12: Data Points to Plot (Zoom) | E12: Min Low- | F12: =FLOOR(MIN(MIN(OFFSET($F$33,0,0,$A$12,1)),MIN(OFFSET($J$33,0,0,$A$12,1)))-2*F14,0.1) -> 1789.1
B13: First: | C13: =OFFSET(B32,A12,0,1,1) -> 2014-08-22 | E13: White space %: | F13: 0.05
B14: ="Last: " & OFFSET(InputPriceData!P15,1+A11,0,1,1) -> Last: | C14: =B33 -> 2015-11-13 | E14: Allowance: | F14: =FLOOR((CEILING(MAX(MAX(OFFSET($E$33,0,0,$A$12,1)),MAX(OFFSET($J$33,0,0,$A$12,1))),1)-FLOOR(MIN(MIN(OFFSET($F$33,0,0,$A$12,1)),MIN(OFFSET($J$33,0,0,$A$12,1))),1))*F13,0.01) -> 15.75
A15: User Controls for Indicator Calculations
A16: HHLLS Controls | E16: Price Chart EMA Period | F16: 50
A17: 20 | B17: Bar HS / LS Look Back Period | E17: Alpha | F17: =2/(F16+1) -> 0.03921568627
A18: 20 | B18: Bar HHS / LLS EMA Period | E18: 1-Alpha | F18: =1-F17 -> 0.9607843137
B19: Alpha: | C19: =2/(A18+1) -> 0.09523809524 | D19: HHS LLS Signal Line Levels:
B20: 1-Alpha: | C20: =1-C19 -> 0.9047619048 | D20: 60
D21: 50
D22: 10
A23: Help! I would like to plot data
A24: From | B24: 2014-08-22 | C24: =OFFSET(InputPriceData!$A$15,MATCH(B24,OFFSET(InputPriceData!B15,1,0,InputPriceData!$B$10,1),0),0,1,1)-C25 -> 311 | E24: 283
A25: To | B25: 2015-11-13 | C25: =OFFSET(InputPriceData!$A$15,MATCH(B25,OFFSET(InputPriceData!$B$15,1,0,InputPriceData!$B$10,1),0),0,1,1)-1 -> 14 | E25: =$A$12-$E$24+1 -> 29
H28: @ Cursor => | I28: =OFFSET(A32,$E$25,0,1,1)&"(RR)" -> 29(RR) | J28: =OFFSET($B$32,E25,0,1,1) -> 2015-10-06 | K28: =TEXT(OFFSET(D32,$E$25,0,1,1),"#,##0.00")&"(o)" -> 1,986.63(o) | L28: =TEXT(OFFSET(E32,$E$25,0,1,1),"#,##0.00")&"(h)" -> 1,991.62(h) | M28: =TEXT(OFFSET(F32,$E$25,0,1,1),"#,##0.00")&"(l)" -> 1,971.99(l) | N28: =TEXT(OFFSET(G32,$E$25,0,1,1),"#,##0.00")&"(c)" -> 1,979.92(c)
Q29: <== Cursor | AW29: HHS LLS Chart Max
AW30: =MIN(100,CEILING(MAX(OFFSET(M33,0,0,$A$12,1),OFFSET(P33,0,0,$A$12,1),D20:D22)+4,5)) -> 75 | AY30: Volume Cursor
A31: Rel Row | H31: Up Bar Volume | I31: Down Bar Volume | J31: ="EMA(" & $F$16 & ")" -> EMA(50) | K31: ="HS(" & $A$17& ")" -> HS(20) | L31: ="EMA(HS, " & $A$18 &")" -> EMA(HS, 20) | M31: HHS | N31: ="LS(" & $A$17& ")" -> LS(20) | O31: ="EMA(LS, " & $A$18 &")" -> EMA(LS, 20) | P31: LLS | Q31: HHS LLS Signal Lines
B32: Date | C32: Volume | D32: Open | E32: High | F32: Low | G32: Close | Q32: =$D$22 -> 10 | R32: =$D$21 -> 50 | S32: =$D$20 -> 60 | AW32: HHS LLS Cursor | AY32: =MAX(OFFSET(C33,0,0,$A$12,1)) -> 6612690000 | AZ32: 0 | BA32: Price Chart Cursor
A33: 1 | B33: =OFFSET(InputPriceData!B$15,CalculationsAndCharts!$A33+$A$11,0,1,1) -> 2015-11-13 | C33: =OFFSET(InputPriceData!G$15,CalculationsAndCharts!$A33+$A$11,IF($C$7,8,0),1,1) -> 4278750000 | D33: =OFFSET(InputPriceData!C$15,CalculationsAndCharts!$A33+$A$11,IF($C$7,8,0),1,1) -> 2044.64 | E33: =OFFSET(InputPriceData!D$15,CalculationsAndCharts!$A33+$A$11,IF($C$7,8,0),1,1) -> 2044.64 | F33: =OFFSET(InputPriceData!E$15,CalculationsAndCharts!$A33+$A$11,IF($C$7,8,0),1,1) -> 2022.02 | G33: =OFFSET(InputPriceData!F$15,CalculationsAndCharts!$A33+$A$11,IF($C$7,8,0),1,1) -> 2023.04 | H33: =IF(D33<=G33,C33,NA()) ->  | I33: =IF(D33<=G33,NA(),C33) -> 4278750000 | J33: =IF(A33>$A$8,0,IF(A33=$A$8,G33,G33*$F$17+$F$18*J34)) -> 2037.370964 | K33: =IF($A33>$A$8-$A$17,0,IF($E33<=$E34,0,($E33-MIN(OFFSET($E33,0,0,$A$17,1)))/(MAX(OFFSET($E33,0,0,$A$17,1))-MIN(OFFSET($E33,0,0,$A$17,1))))) -> 0 | L33: =IF(A33>($A$8-$A$18-$A$17),0,IF(A33=($A$8-$A$18-$A$17),AVERAGE(OFFSET(K33,0,0,$A$18,1)),(K33*$C$19+L34*$C$20))) -> 0.3696545789 | M33: =L33*100 -> 36.96545789 | N33: =IF($A33>$A$8-$A$17,0,IF($F33>=$F34,0,(MAX(OFFSET($F33,0,0,$A$17,1))-$F33)/(MAX(OFFSET($F33,0,0,$A$17,1))-MIN(OFFSET($F33,0,0,$A$17,1))))) -> 0.9402167144 | O33: =IF($A33>($A$8-$A$18-$A$17),0,IF(D33=($A$8-$A$18-$A$17),AVERAGE(OFFSET(N33,0,0,$A$18,1)),(N33*$C$19+O34*$C$20))) -> 0.1968858155 | P33: =O33*100 -> 19.68858155 | Q33: 10 | R33: 50 | S33: 60 | AW33: =$E$25 -> 29 | AX33: 0 | AY33: =$E$25 -> 29 | AZ33: =AY32*1.1 -> 7273959000 | BA33: =$E$25 -> 29 | BB33: =$F$11 -> 2166.3
A34: 2 | B34: =OFFSET(InputPriceData!B$15,CalculationsAndCharts!$A34+$A$11,0,1,1) -> 2015-11-12 | C34: =OFFSET(InputPriceData!G$15,CalculationsAndCharts!$A34+$A$11,IF($C$7,8,0),1,1) -> 4016370000 | D34: =OFFSET(InputPriceData!C$15,CalculationsAndCharts!$A34+$A$11,IF($C$7,8,0),1,1) -> 2072.29 | E34: =OFFSET(InputPriceData!D$15,CalculationsAndCharts!$A34+$A$11,IF($C$7,8,0),1,1) -> 2072.29 | F34: =OFFSET(InputPriceData!E$15,CalculationsAndCharts!$A34+$A$11,IF($C$7,8,0),1,1) -> 2045.66 | G34: =OFFSET(InputPriceData!F$15,CalculationsAndCharts!$A34+$A$11,IF($C$7,8,0),1,1) -> 2045.97 | I34: 4016370000 | J34: 2037.955901 | K34: 0 | L34: =IF(A34>($A$8-$A$18-$A$17),0,IF(A34=($A$8-$A$18-$A$17),AVERAGE(OFFSET(K34,0,0,$A$18,1)),(K34*$C$19+L35*$C$20))) -> 0.4085655872 | M34: =L34*100 -> 40.85655872 | N34: 0.6457840329 | O34: 0.1186404578 | P34: =O34*100 -> 11.86404578 | Q34: 10 | R34: 50 | S34: 60 | AW34: =$E$25 -> 29 | AX34: =AW30 -> 75 | AY34: =$E$25 -> 29 | AZ34: 0 | BA34: =$E$25 -> 29 | BB34: =$F$12 -> 1789.1
A35: 3 | B35: =OFFSET(InputPriceData!B$15,CalculationsAndCharts!$A35+$A$11,0,1,1) -> 2015-11-11 | C35: =OFFSET(InputPriceData!G$15,CalculationsAndCharts!$A35+$A$11,IF($C$7,8,0),1,1) -> 3692410000 | D35: =OFFSET(InputPriceData!C$15,CalculationsAndCharts!$A35+$A$11,IF($C$7,8,0),1,1) -> 2083.41 | E35: =OFFSET(InputPriceData!D$15,CalculationsAndCharts!$A35+$A$11,IF($C$7,8,0),1,1) -> 2086.94 | F35: =OFFSET(InputPriceData!E$15,CalculationsAndCharts!$A35+$A$11,IF($C$7,8,0),1,1) -> 2074.85 | G35: =OFFSET(InputPriceData!F$15,CalculationsAndCharts!$A35+$A$11,IF($C$7,8,0),1,1) -> 2075 | I35: 3692410000 | J35: 2037.628795 | K35: 0.680060652 | L35: 0.4515724911 | M35: 45.15724911 | N35: 0 | O35: 0.06315166038 | P35: 6.315166038 | Q35: 10 | R35: 50 | S35: 60
A36: 4 | B36: =OFFSET(InputPriceData!B$15,CalculationsAndCharts!$A36+$A$11,0,1,1) -> 2015-11-10 | C36: =OFFSET(InputPriceData!G$15,CalculationsAndCharts!$A36+$A$11,IF($C$7,8,0),1,1) -> 3821440000 | D36: =OFFSET(InputPriceData!C$15,CalculationsAndCharts!$A36+$A$11,IF($C$7,8,0),1,1) -> 2077.19 | E36: =OFFSET(InputPriceData!D$15,CalculationsAndCharts!$A36+$A$11,IF($C$7,8,0),1,1) -> 2083.67 | F36: =OFFSET(InputPriceData!E$15,CalculationsAndCharts!$A36+$A$11,IF($C$7,8,0),1,1) -> 2069.91 | G36: =OFFSET(InputPriceData!F$15,CalculationsAndCharts!$A36+$A$11,IF($C$7,8,0),1,1) -> 2081.72 | H36: 3821440000 | J36: 2036.10344 | K36: 0 | L36: 0.4275211057 | M36: 42.75211057 | N36: 0 | O36: 0.06979920357 | P36: 6.979920357 | Q36: 10 | R36: 50 | S36: 60
A37: 5 | B37: =OFFSET(InputPriceData!B$15,CalculationsAndCharts!$A37+$A$11,0,1,1) -> 2015-11-09 | C37: =OFFSET(InputPriceData!G$15,CalculationsAndCharts!$A37+$A$11,IF($C$7,8,0),1,1) -> 3882350000 | D37: =OFFSET(InputPriceData!C$15,CalculationsAndCharts!$A37+$A$11,IF($C$7,8,0),1,1) -> 2096.56 | E37: =OFFSET(InputPriceData!D$15,CalculationsAndCharts!$A37+$A$11,IF($C$7,8,0),1,1) -> 2096.56 | F37: =OFFSET(InputPriceData!E$15,CalculationsAndCharts!$A37+$A$11,IF($C$7,8,0),1,1) -> 2068.24 | G37: =OFFSET(InputPriceData!F$15,CalculationsAndCharts!$A37+$A$11,IF($C$7,8,0),1,1) -> 2078.58 | I37: 3882350000 | J37: 2034.241539 | K37: 0 | L37: 0.4725233274 | M37: 47.25233274 | N37: 0.2741150028 | O37: 0.07714648816 | P37: 7.714648816 | Q37: 10 | R37: 50 | S37: 60
A38: 6 | B38: =OFFSET(InputPriceData!B$15,CalculationsAndCharts!$A38+$A$11,0,1,1) -> 2015-11-06 | C38: =OFFSET(InputPriceData!G$15,CalculationsAndCharts!$A38+$A$11,IF($C$7,8,0),1,1) -> 4369020000 | D38: =OFFSET(InputPriceData!C$15,CalculationsAndCharts!$A38+$A$11,IF($C$7,8,0),1,1) -> 2098.6 | E38: =OFFSET(InputPriceData!D$15,CalculationsAndCharts!$A38+$A$11,IF($C$7,8,0),1,1) -> 2101.91 | F38: =OFFSET(InputPriceData!E$15,CalculationsAndCharts!$A38+$A$11,IF($C$7,8,0),1,1) -> 2083.74 | G38: =OFFSET(InputPriceData!F$15,CalculationsAndCharts!$A38+$A$11,IF($C$7,8,0),1,1) -> 2099.2 | H38: 4369020000 | J38: 2032.431806 | K38: 0 | L38: 0.522262625 | M38: 52.2262625 | N38: 0.1289567335 | O38: 0.0564129603 | P38: 5.64129603 | Q38: 10 | R38: 50 | S38: 60
A39: 7 | B39: =OFFSET(InputPriceData!B$15,CalculationsAndCharts!$A39+$A$11,0,1,1) -> 2015-11-05 | C39: =OFFSET(InputPriceData!G$15,CalculationsAndCharts!$A39+$A$11,IF($C$7,8,0),1,1) -> 4051890000 | D39: =OFFSET(InputPriceData!C$15,CalculationsAndCharts!$A39+$A$11,IF($C$7,8,0),1,1) -> 2101.68 | E39: =OFFSET(InputPriceData!D$15,CalculationsAndCharts!$A39+$A$11,IF($C$7,8,0),1,1) -> 2108.78 | F39: =OFFSET(InputPriceData!E$15,CalculationsAndCharts!$A39+$A$11,IF($C$7,8,0),1,1) -> 2090.41 | G39: =OFFSET(InputPriceData!F$15,CalculationsAndCharts!$A39+$A$11,IF($C$7,8,0),1,1) -> 2099.93 | I39: 4051890000 | J39: 2029.706574 | K39: 0 | L39: 0.5772376382 | M39: 57.72376382 | N39: 0.06649185241 | O39: 0.04877677365 | P39: 4.877677365 | Q39: 10 | R39: 50 | S39: 60
A40: 8 | B40: =OFFSET(InputPriceData!B$15,CalculationsAndCharts!$A40+$A$11,0,1,1) -> 2015-11-04 | C40: =OFFSET(InputPriceData!G$15,CalculationsAndCharts!$A40+$A$11,IF($C$7,8,0),1,1) -> 4078870000 | D40: =OFFSET(InputPriceData!C$15,CalculationsAndCharts!$A40+$A$11,IF($C$7,8,0),1,1) -> 2110.6 | E40: =OFFSET(InputPriceData!D$15,CalculationsAndCharts!$A40+$A$11,IF($C$7,8,0),1,1) -> 2114.59 | F40: =OFFSET(InputPriceData!E$15,CalculationsAndCharts!$A40+$A$11,IF($C$7,8,0),1,1) -> 2096.98 | G40: =OFFSET(InputPriceData!F$15,CalculationsAndCharts!$A40+$A$11,IF($C$7,8,0),1,1) -> 2102.31 | I40: 4078870000 | J40: 2026.840312 | K40: 0 | L40: 0.6379994948 | M40: 63.79994948 | N40: 0.004819058011 | O40: 0.04691202852 | P40: 4.691202852 | Q40: 10 | R40: 50 | S40: 60
A41: 9 | B41: =OFFSET(InputPriceData!B$15,CalculationsAndCharts!$A41+$A$11,0,1,1) -> 2015-11-03 | C41: =OFFSET(InputPriceData!G$15,CalculationsAndCharts!$A41+$A$11,IF($C$7,8,0),1,1) -> 4272060000 | D41: =OFFSET(InputPriceData!C$15,CalculationsAndCharts!$A41+$A$11,IF($C$7,8,0),1,1) -> 2102.63 | E41: =OFFSET(InputPriceData!D$15,CalculationsAndCharts!$A41+$A$11,IF($C$7,8,0),1,1) -> 2116.48 | F41: =OFFSET(InputPriceData!E$15,CalculationsAndCharts!$A41+$A$11,IF($C$7,8,0),1,1) -> 2097.51 | G41: =OFFSET(InputPriceData!F$15,CalculationsAndCharts!$A41+$A$11,IF($C$7,8,0),1,1) -> 2109.79 | H41: 4272060000 | J41: 2023.759916 | K41: 1 | L41: 0.7051573364 | M41: 70.51573364 | N41: 0 | O41: 0.05134286752 | P41: 5.134286752 | Q41: 10 | R41: 50 | S41: 60
A42: 10 | B42: =OFFSET(InputPriceData!B$15,CalculationsAndCharts!$A42+$A$11,0,1,1) -> 2015-11-02 | C42: =OFFSET(InputPriceData!G$15,CalculationsAndCharts!$A42+$A$11,IF($C$7,8,0),1,1) -> 3760020000 | D42: =OFFSET(InputPriceData!C$15,CalculationsAndCharts!$A42+$A$11,IF($C$7,8,0),1,1) -> 2080.76 | E42: =OFFSET(InputPriceData!D$15,CalculationsAndCharts!$A42+$A$11,IF($C$7,8,0),1,1) -> 2106.2 | F42: =OFFSET(InputPriceData!E$15,CalculationsAndCharts!$A42+$A$11,IF($C$7,8,0),1,1) -> 2080.76 | G42: =OFFSET(InputPriceData!F$15,CalculationsAndCharts!$A42+$A$11,IF($C$7,8,0),1,1) -> 2104.05 | H42: 3760020000 | J42: 2020.248484 | K42: 1 | L42: 0.6741212665 | M42: 67.41212665 | N42: 0 | O42: 0.05674737989 | P42: 5.674737989 | Q42: 10 | R42: 50 | S42: 60
A43: 11 | B43: =OFFSET(InputPriceData!B$15,CalculationsAndCharts!$A43+$A$11,0,1,1) -> 2015-10-30 | C43: =OFFSET(InputPriceData!G$15,CalculationsAndCharts!$A43+$A$11,IF($C$7,8,0),1,1) -> 4256200000 | D43: =OFFSET(InputPriceData!C$15,CalculationsAndCharts!$A43+$A$11,IF($C$7,8,0),1,1) -> 2090 | E43: =OFFSET(InputPriceData!D$15,CalculationsAndCharts!$A43+$A$11,IF($C$7,8,0),1,1) -> 2094.32 | F43: =OFFSET(InputPriceData!E$15,CalculationsAndCharts!$A43+$A$11,IF($C$7,8,0),1,1) -> 2079.34 | G43: =OFFSET(InputPriceData!F$15,CalculationsAndCharts!$A43+$A$11,IF($C$7,8,0),1,1) -> 2079.36 | I43: 4256200000 | J43: 2016.828014 | K43: 1 | L43: 0.6398182419 | M43: 63.98182419 | N43: 0.02564302416 | O43: 0.0627207883 | P43: 6.27207883 | Q43: 10 | R43: 50 | S43: 60
A44: 12 | B44: =OFFSET(InputPriceData!B$15,CalculationsAndCharts!$A44+$A$11,0,1,1) -> 2015-10-29 | C44: =OFFSET(InputPriceData!G$15,CalculationsAndCharts!$A44+$A$11,IF($C$7,8,0),1,1) -> 4008940000 | D44: =OFFSET(InputPriceData!C$15,CalculationsAndCharts!$A44+$A$11,IF($C$7,8,0),1,1) -> 2088.35 | E44: =OFFSET(InputPriceData!D$15,CalculationsAndCharts!$A44+$A$11,IF($C$7,8,0),1,1) -> 2092.52 | F44: =OFFSET(InputPriceData!E$15,CalculationsAndCharts!$A44+$A$11,IF($C$7,8,0),1,1) -> 2082.63 | G44: =OFFSET(InputPriceData!F$15,CalculationsAndCharts!$A44+$A$11,IF($C$7,8,0),1,1) -> 2089.41 | H44: 4008940000 | J44: 2014.275688 | K44: 1 | L44: 0.6019043726 | M44: 60.19043726 | N44: 0 | O44: 0.06662371085 | P44: 6.662371085 | Q44: 10 | R44: 50 | S44: 60
A45: 13 | B45: =OFFSET(InputPriceData!B$15,CalculationsAndCharts!$A45+$A$11,0,1,1) -> 2015-10-28 | C45: =OFFSET(InputPriceData!G$15,CalculationsAndCharts!$A45+$A$11,IF($C$7,8,0),1,1) -> 4698110000 | D45: =OFFSET(InputPriceData!C$15,CalculationsAndCharts!$A45+$A$11,IF($C$7,8,0),1,1) -> 2066.48 | E45: =OFFSET(InputPriceData!D$15,CalculationsAndCharts!$A45+$A$11,IF($C$7,8,0),1,1) -> 2090.35 | F45: =OFFSET(InputPriceData!E$15,CalculationsAndCharts!$A45+$A$11,IF($C$7,8,0),1,1) -> 2063.11 | G45: =OFFSET(InputPriceData!F$15,CalculationsAndCharts!$A45+$A$11,IF($C$7,8,0),1,1) -> 2090.35 | H45: 4698110000 | J45: 2011.208982 | K45: 1 | L45: 0.5599995698 | M45: 55.99995698 | N45: 0 | O45: 0.07363673304 | P45: 7.363673304 | Q45: 10 | R45: 50 | S45: 60
A46: 14 | B46: =OFFSET(InputPriceData!B$15,CalculationsAndCharts!$A46+$A$11,0,1,1) -> 2015-10-27 | C46: =OFFSET(InputPriceData!G$15,CalculationsAndCharts!$A46+$A$11,IF($C$7,8,0),1,1) -> 4216880000 | D46: =OFFSET(InputPriceData!C$15,CalculationsAndCharts!$A46+$A$11,IF($C$7,8,0),1,1) -> 2068.75 | E46: =OFFSET(InputPriceData!D$15,CalculationsAndCharts!$A46+$A$11,IF($C$7,8,0),1,1) -> 2070.37 | F46: =OFFSET(InputPriceData!E$15,CalculationsAndCharts!$A46+$A$11,IF($C$7,8,0),1,1) -> 2058.84 | G46: =OFFSET(InputPriceData!F$15,CalculationsAndCharts!$A46+$A$11,IF($C$7,8,0),1,1) -> 2065.89 | I46: 4216880000 | J46: 2007.978736 | K46: 0 | L46: 0.513683735 | M46: 51.3683735 | N46: 0.0428674954 | O46: 0.0813879681 | P46: 8.13879681 | Q46: 10 | R46: 50 | S46: 60
A47: 15 | B47: =OFFSET(InputPriceData!B$15,CalculationsAndCharts!$A47+$A$11,0,1,1) -> 2015-10-26 | C47: =OFFSET(InputPriceData!G$15,CalculationsAndCharts!$A47+$A$11,IF($C$7,8,0),1,1) -> 3385800000 | D47: =OFFSET(InputPriceData!C$15,CalculationsAndCharts!$A47+$A$11,IF($C$7,8,0),1,1) -> 2075.08 | E47: =OFFSET(InputPriceData!D$15,CalculationsAndCharts!$A47+$A$11,IF($C$7,8,0),1,1) -> 2075.14 | F47: =OFFSET(InputPriceData!E$15,CalculationsAndCharts!$A47+$A$11,IF($C$7,8,0),1,1) -> 2066.53 | G47: =OFFSET(InputPriceData!F$15,CalculationsAndCharts!$A47+$A$11,IF($C$7,8,0),1,1) -> 2071.18 | I47: 3385800000 | J47: 2005.615011 | K47: 0 | L47: 0.5677557071 | M47: 56.77557071 | N47: 0 | O47: 0.0854427547 | P47: 8.54427547 | Q47: 10 | R47: 50 | S47: 60
A48: 16 | B48: =OFFSET(InputPriceData!B$15,CalculationsAndCharts!$A48+$A$11,0,1,1) -> 2015-10-23 | C48: =OFFSET(InputPriceData!G$15,CalculationsAndCharts!$A48+$A$11,IF($C$7,8,0),1,1) -> 4108460000 | D48: =OFFSET(InputPriceData!C$15,CalculationsAndCharts!$A48+$A$11,IF($C$7,8,0),1,1) -> 2058.19 | E48: =OFFSET(InputPriceData!D$15,CalculationsAndCharts!$A48+$A$11,IF($C$7,8,0),1,1) -> 2079.74 | F48: =OFFSET(InputPriceData!E$15,CalculationsAndCharts!$A48+$A$11,IF($C$7,8,0),1,1) -> 2058.19 | G48: =OFFSET(InputPriceData!F$15,CalculationsAndCharts!$A48+$A$11,IF($C$7,8,0),1,1) -> 2075.15 | H48: 4108460000 | J48: 2002.938889 | K48: 1 | L48: 0.6275194658 | M48: 62.75194658 | N48: 0 | O48: 0.09443672888 | P48: 9.443672888 | Q48: 10 | R48: 50 | S48: 60
A49: 17 | B49: =OFFSET(InputPriceData!B$15,CalculationsAndCharts!$A49+$A$11,0,1,1) -> 2015-10-22 | C49: =OFFSET(InputPriceData!G$15,CalculationsAndCharts!$A49+$A$11,IF($C$7,8,0),1,1) -> 4430850000 | D49: =OFFSET(InputPriceData!C$15,CalculationsAndCharts!$A49+$A$11,IF($C$7,8,0),1,1) -> 2021.88 | E49: =OFFSET(InputPriceData!D$15,CalculationsAndCharts!$A49+$A$11,IF($C$7,8,0),1,1) -> 2055.2 | F49: =OFFSET(InputPriceData!E$15,CalculationsAndCharts!$A49+$A$11,IF($C$7,8,0),1,1) -> 2021.88 | G49: =OFFSET(InputPriceData!F$15,CalculationsAndCharts!$A49+$A$11,IF($C$7,8,0),1,1) -> 2052.51 | H49: 4430850000 | J49: 1999.991497 | K49: 1 | L49: 0.5883109885 | M49: 58.83109885 | N49: 0 | O49: 0.1043774372 | P49: 10.43774372 | Q49: 10 | R49: 50 | S49: 60
A50: 18 | B50: =OFFSET(InputPriceData!B$15,CalculationsAndCharts!$A50+$A$11,0,1,1) -> 2015-10-21 | C50: =OFFSET(InputPriceData!G$15,CalculationsAndCharts!$A50+$A$11,IF($C$7,8,0),1,1) -> 3627790000 | D50: =OFFSET(InputPriceData!C$15,CalculationsAndCharts!$A50+$A$11,IF($C$7,8,0),1,1) -> 2033.47 | E50: =OFFSET(InputPriceData!D$15,CalculationsAndCharts!$A50+$A$11,IF($C$7,8,0),1,1) -> 2037.97 | F50: =OFFSET(InputPriceData!E$15,CalculationsAndCharts!$A50+$A$11,IF($C$7,8,0),1,1) -> 2017.22 | G50: =OFFSET(InputPriceData!F$15,CalculationsAndCharts!$A50+$A$11,IF($C$7,8,0),1,1) -> 2018.94 | I50: 3627790000 | J50: 1997.847884 | K50: 0 | L50: 0.544975303 | M50: 54.4975303 | N50: 0.0606981254 | O50: 0.1153645358 | P50: 11.53645358 | Q50: 10 | R50: 50 | S50: 60
A51: 19 | B51: =OFFSET(InputPriceData!B$15,CalculationsAndCharts!$A51+$A$11,0,1,1) -> 2015-10-20 | C51: =OFFSET(InputPriceData!G$15,CalculationsAndCharts!$A51+$A$11,IF($C$7,8,0),1,1) -> 3331500000 | D51: =OFFSET(InputPriceData!C$15,CalculationsAndCharts!$A51+$A$11,IF($C$7,8,0),1,1) -> 2033.13 | E51: =OFFSET(InputPriceData!D$15,CalculationsAndCharts!$A51+$A$11,IF($C$7,8,0),1,1) -> 2039.12 | F51: =OFFSET(InputPriceData!E$15,CalculationsAndCharts!$A51+$A$11,IF($C$7,8,0),1,1) -> 2026.61 | G51: =OFFSET(InputPriceData!F$15,CalculationsAndCharts!$A51+$A$11,IF($C$7,8,0),1,1) -> 2030.77 | I51: 3331500000 | J51: 1996.986982 | K51: 1 | L51: 0.6023411244 | M51: 60.23411244 | N51: 0 | O51: 0.1211188948 | P51: 12.11188948 | Q51: 10 | R51: 50 | S51: 60
A52: 20 | B52: =OFFSET(InputPriceData!B$15,CalculationsAndCharts!$A52+$A$11,0,1,1) -> 2015-10-19 | C52: =OFFSET(InputPriceData!G$15,CalculationsAndCharts!$A52+$A$11,IF($C$7,8,0),1,1) -> 3287320000 | D52: =OFFSET(InputPriceData!C$15,CalculationsAndCharts!$A52+$A$11,IF($C$7,8,0),1,1) -> 2031.73 | E52: =OFFSET(InputPriceData!D$15,CalculationsAndCharts!$A52+$A$11,IF($C$7,8,0),1,1) -> 2034.45 | F52: =OFFSET(InputPriceData!E$15,CalculationsAndCharts!$A52+$A$11,IF($C$7,8,0),1,1) -> 2022.31 | G52: =OFFSET(InputPriceData!F$15,CalculationsAndCharts!$A52+$A$11,IF($C$7,8,0),1,1) -> 2033.66 | H52: 3287320000 | J52: 1995.608083 | K52: 1 | L52: 0.5604822954 | M52: 56.04822954 | N52: 0 | O52: 0.1338682522 | P52: 13.38682522 | Q52: 10 | R52: 50 | S52: 60
A53: 21 | B53: =OFFSET(InputPriceData!B$15,CalculationsAndCharts!$A53+$A$11,0,1,1) -> 2015-10-16 | C53: =OFFSET(InputPriceData!G$15,CalculationsAndCharts!$A53+$A$11,IF($C$7,8,0),1,1) -> 3595430000 | D53: =OFFSET(InputPriceData!C$15,CalculationsAndCharts!$A53+$A$11,IF($C$7,8,0),1,1) -> 2024.37 | E53: =OFFSET(InputPriceData!D$15,CalculationsAndCharts!$A53+$A$11,IF($C$7,8,0),1,1) -> 2033.54 | F53: =OFFSET(InputPriceData!E$15,CalculationsAndCharts!$A53+$A$11,IF($C$7,8,0),1,1) -> 2020.46 | G53: =OFFSET(InputPriceData!F$15,CalculationsAndCharts!$A53+$A$11,IF($C$7,8,0),1,1) -> 2033.11 | H53: 3595430000 | J53: 1994.054944 | K53: 1 | L53: 0.5142172739 | M53: 51.42172739 | N53: 0 | O53: 0.1479596471 | P53: 14.79596471 | Q53: 10 | R53: 50 | S53: 60
A54: 22 | B54: =OFFSET(InputPriceData!B$15,CalculationsAndCharts!$A54+$A$11,0,1,1) -> 2015-10-15 | C54: =OFFSET(InputPriceData!G$15,CalculationsAndCharts!$A54+$A$11,IF($C$7,8,0),1,1) -> 3746290000 | D54: =OFFSET(InputPriceData!C$15,CalculationsAndCharts!$A54+$A$11,IF($C$7,8,0),1,1) -> 1996.47 | E54: =OFFSET(InputPriceData!D$15,CalculationsAndCharts!$A54+$A$11,IF($C$7,8,0),1,1) -> 2024.15 | F54: =OFFSET(InputPriceData!E$15,CalculationsAndCharts!$A54+$A$11,IF($C$7,8,0),1,1) -> 1996.47 | G54: =OFFSET(InputPriceData!F$15,CalculationsAndCharts!$A54+$A$11,IF($C$7,8,0),1,1) -> 2023.86 | H54: 3746290000 | J54: 1992.46086 | K54: 1 | L54: 0.4630822501 | M54: 46.30822501 | N54: 0 | O54: 0.1635343468 | P54: 16.35343468 | Q54: 10 | R54: 50 | S54: 60
A55: 23 | B55: =OFFSET(InputPriceData!B$15,CalculationsAndCharts!$A55+$A$11,0,1,1) -> 2015-10-14 | C55: =OFFSET(InputPriceData!G$15,CalculationsAndCharts!$A55+$A$11,IF($C$7,8,0),1,1) -> 3644590000 | D55: =OFFSET(InputPriceData!C$15,CalculationsAndCharts!$A55+$A$11,IF($C$7,8,0),1,1) -> 2003.66 | E55: =OFFSET(InputPriceData!D$15,CalculationsAndCharts!$A55+$A$11,IF($C$7,8,0),1,1) -> 2009.56 | F55: =OFFSET(InputPriceData!E$15,CalculationsAndCharts!$A55+$A$11,IF($C$7,8,0),1,1) -> 1990.73 | G55: =OFFSET(InputPriceData!F$15,CalculationsAndCharts!$A55+$A$11,IF($C$7,8,0),1,1) -> 1994.24 | I55: 3644590000 | J55: 1991.179262 | K55: 0 | L55: 0.4065645922 | M55: 40.65645922 | N55: 0.1429601847 | O55: 0.1807484886 | P55: 18.07484886 | Q55: 10 | R55: 50 | S55: 60
A56: 24 | B56: =OFFSET(InputPriceData!B$15,CalculationsAndCharts!$A56+$A$11,0,1,1) -> 2015-10-13 | C56: =OFFSET(InputPriceData!G$15,CalculationsAndCharts!$A56+$A$11,IF($C$7,8,0),1,1) -> 3401920000 | D56: =OFFSET(InputPriceData!C$15,CalculationsAndCharts!$A56+$A$11,IF($C$7,8,0),1,1) -> 2015 | E56: =OFFSET(InputPriceData!D$15,CalculationsAndCharts!$A56+$A$11,IF($C$7,8,0),1,1) -> 2022.34 | F56: =OFFSET(InputPriceData!E$15,CalculationsAndCharts!$A56+$A$11,IF($C$7,8,0),1,1) -> 2001.78 | G56: =OFFSET(InputPriceData!F$15,CalculationsAndCharts!$A56+$A$11,IF($C$7,8,0),1,1) -> 2003.69 | I56: 3401920000 | J56: 1991.054334 | K56: 1 | L56: 0.449360865 | M56: 44.9360865 | N56: 0.06325735718 | O56: 0.1847262048 | P56: 18.47262048 | Q56: 10 | R56: 50 | S56: 60
A57: 25 | B57: =OFFSET(InputPriceData!B$15,CalculationsAndCharts!$A57+$A$11,0,1,1) -> 2015-10-12 | C57: =OFFSET(InputPriceData!G$15,CalculationsAndCharts!$A57+$A$11,IF($C$7,8,0),1,1) -> 2893250000 | D57: =OFFSET(InputPriceData!C$15,CalculationsAndCharts!$A57+$A$11,IF($C$7,8,0),1,1) -> 2015.65 | E57: =OFFSET(InputPriceData!D$15,CalculationsAndCharts!$A57+$A$11,IF($C$7,8,0),1,1) -> 2018.66 | F57: =OFFSET(InputPriceData!E$15,CalculationsAndCharts!$A57+$A$11,IF($C$7,8,0),1,1) -> 2010.55 | G57: =OFFSET(InputPriceData!F$15,CalculationsAndCharts!$A57+$A$11,IF($C$7,8,0),1,1) -> 2017.46 | H57: 2893250000 | J57: 1990.538592 | K57: 0 | L57: 0.3913988508 | M57: 39.13988508 | N57: 0 | O57: 0.1975123993 | P57: 19.75123993 | Q57: 10 | R57: 50 | S57: 60
A58: 26 | B58: =OFFSET(InputPriceData!B$15,CalculationsAndCharts!$A58+$A$11,0,1,1) -> 2015-10-09 | C58: =OFFSET(InputPriceData!G$15,CalculationsAndCharts!$A58+$A$11,IF($C$7,8,0),1,1) -> 3706900000 | D58: =OFFSET(InputPriceData!C$15,CalculationsAndCharts!$A58+$A$11,IF($C$7,8,0),1,1) -> 2013.73 | E58: =OFFSET(InputPriceData!D$15,CalculationsAndCharts!$A58+$A$11,IF($C$7,8,0),1,1) -> 2020.13 | F58: =OFFSET(InputPriceData!E$15,CalculationsAndCharts!$A58+$A$11,IF($C$7,8,0),1,1) -> 2007.61 | G58: =OFFSET(InputPriceData!F$15,CalculationsAndCharts!$A58+$A$11,IF($C$7,8,0),1,1) -> 2014.89 | H58: 3706900000 | J58: 1989.43976 | K58: 0.9939858296 | L58: 0.4325987299 | M58: 43.25987299 | N58: 0 | O58: 0.2183031782 | P58: 21.83031782 | Q58: 10 | R58: 50 | S58: 60
A59: 27 | B59: =OFFSET(InputPriceData!B$15,CalculationsAndCharts!$A59+$A$11,0,1,1) -> 2015-10-08 | C59: =OFFSET(InputPriceData!G$15,CalculationsAndCharts!$A59+$A$11,IF($C$7,8,0),1,1) -> 3939140000 | D59: =OFFSET(InputPriceData!C$15,CalculationsAndCharts!$A59+$A$11,IF($C$7,8,0),1,1) -> 1994.01 | E59: =OFFSET(InputPriceData!D$15,CalculationsAndCharts!$A59+$A$11,IF($C$7,8,0),1,1) -> 2016.5 | F59: =OFFSET(InputPriceData!E$15,CalculationsAndCharts!$A59+$A$11,IF($C$7,8,0),1,1) -> 1987.53 | G59: =OFFSET(InputPriceData!F$15,CalculationsAndCharts!$A59+$A$11,IF($C$7,8,0),1,1) -> 2013.43 | H59: 3939140000 | J59: 1988.400974 | K59: 0.9640797495 | L59: 0.373505351 | M59: 37.3505351 | N59: 0 | O59: 0.2412824601 | P59: 24.12824601 | Q59: 10 | R59: 50 | S59: 60
A60: 28 | B60: =OFFSET(InputPriceData!B$15,CalculationsAndCharts!$A60+$A$11,0,1,1) -> 2015-10-07 | C60: =OFFSET(InputPriceData!G$15,CalculationsAndCharts!$A60+$A$11,IF($C$7,8,0),1,1) -> 4666470000 | D60: =OFFSET(InputPriceData!C$15,CalculationsAndCharts!$A60+$A$11,IF($C$7,8,0),1,1) -> 1982.34 | E60: =OFFSET(InputPriceData!D$15,CalculationsAndCharts!$A60+$A$11,IF($C$7,8,0),1,1) -> 1999.31 | F60: =OFFSET(InputPriceData!E$15,CalculationsAndCharts!$A60+$A$11,IF($C$7,8,0),1,1) -> 1976.44 | G60: =OFFSET(InputPriceData!F$15,CalculationsAndCharts!$A60+$A$11,IF($C$7,8,0),1,1) -> 1995.83 | H60: 4666470000 | J60: 1987.379381 | K60: 0.8224583951 | L60: 0.3113396248 | M60: 31.13396248 | N60: 0 | O60: 0.2666806138 | P60: 26.66806138 | Q60: 10 | R60: 50 | S60: 60
A61: 29 | B61: =OFFSET(InputPriceData!B$15,CalculationsAndCharts!$A61+$A$11,0,1,1) -> 2015-10-06 | C61: =OFFSET(InputPriceData!G$15,CalculationsAndCharts!$A61+$A$11,IF($C$7,8,0),1,1) -> 4202400000 | D61: =OFFSET(InputPriceData!C$15,CalculationsAndCharts!$A61+$A$11,IF($C$7,8,0),1,1) -> 1986.63 | E61: =OFFSET(InputPriceData!D$15,CalculationsAndCharts!$A61+$A$11,IF($C$7,8,0),1,1) -> 1991.62 | F61: =OFFSET(InputPriceData!E$15,CalculationsAndCharts!$A61+$A$11,IF($C$7,8,0),1,1) -> 1971.99 | G61: =OFFSET(InputPriceData!F$15,CalculationsAndCharts!$A61+$A$11,IF($C$7,8,0),1,1) -> 1979.92 | I61: 4202400000 | J61: 1987.034458 | K61: 0.7591036415 | L61: 0.257537649 | M61: 25.7537649 | N61: 0 | O61: 0.2947522573 | P61: 29.47522573 | Q61: 10 | R61: 50 | S61: 60
A62: 30 | B62: =OFFSET(InputPriceData!B$15,CalculationsAndCharts!$A62+$A$11,0,1,1) -> 2015-10-05 | C62: =OFFSET(InputPriceData!G$15,CalculationsAndCharts!$A62+$A$11,IF($C$7,8,0),1,1) -> 4334490000 | D62: =OFFSET(InputPriceData!C$15,CalculationsAndCharts!$A62+$A$11,IF($C$7,8,0),1,1) -> 1954.33 | E62: =OFFSET(InputPriceData!D$15,CalculationsAndCharts!$A62+$A$11,IF($C$7,8,0),1,1) -> 1989.17 | F62: =OFFSET(InputPriceData!E$15,CalculationsAndCharts!$A62+$A$11,IF($C$7,8,0),1,1) -> 1954.33 | G62: =OFFSET(InputPriceData!F$15,CalculationsAndCharts!$A62+$A$11,IF($C$7,8,0),1,1) -> 1987.05 | H62: 4334490000 | J62: 1987.324844 | K62: 0.7389190971 | L62: 0.2047412287 | M62: 20.47412287 | N62: 0 | O62: 0.3257788107 | P62: 32.57788107 | Q62: 10 | R62: 50 | S62: 60
A63: 31 | B63: =OFFSET(InputPriceData!B$15,CalculationsAndCharts!$A63+$A$11,0,1,1) -> 2015-10-02 | C63: =OFFSET(InputPriceData!G$15,CalculationsAndCharts!$A63+$A$11,IF($C$7,8,0),1,1) -> 4378570000 | D63: =OFFSET(InputPriceData!C$15,CalculationsAndCharts!$A63+$A$11,IF($C$7,8,0),1,1) -> 1921.77 | E63: =OFFSET(InputPriceData!D$15,CalculationsAndCharts!$A63+$A$11,IF($C$7,8,0),1,1) -> 1951.36 | F63: =OFFSET(InputPriceData!E$15,CalculationsAndCharts!$A63+$A$11,IF($C$7,8,0),1,1) -> 1893.7 | G63: =OFFSET(InputPriceData!F$15,CalculationsAndCharts!$A63+$A$11,IF($C$7,8,0),1,1) -> 1951.36 | H63: 4378570000 | J63: 1987.336062 | K63: 0.427418026 | L63: 0.1485119794 | M63: 14.85119794 | N63: 0.8102246995 | O63: 0.3600713171 | P63: 36.00713171 | Q63: 10 | R63: 50 | S63: 60
A64: 32 | B64: =OFFSET(InputPriceData!B$15,CalculationsAndCharts!$A64+$A$11,0,1,1) -> 2015-10-01 | C64: =OFFSET(InputPriceData!G$15,CalculationsAndCharts!$A64+$A$11,IF($C$7,8,0),1,1) -> 3983600000 | D64: =OFFSET(InputPriceData!C$15,CalculationsAndCharts!$A64+$A$11,IF($C$7,8,0),1,1) -> 1919.65 | E64: =OFFSET(InputPriceData!D$15,CalculationsAndCharts!$A64+$A$11,IF($C$7,8,0),1,1) -> 1927.21 | F64: =OFFSET(InputPriceData!E$15,CalculationsAndCharts!$A64+$A$11,IF($C$7,8,0),1,1) -> 1900.7 | G64: =OFFSET(InputPriceData!F$15,CalculationsAndCharts!$A64+$A$11,IF($C$7,8,0),1,1) -> 1923.82 | H64: 3983600000 | J64: 1988.804473 | K64: 0.2284560883 | L64: 0.1191534482 | M64: 11.91534482 | N64: 0 | O64: 0.3126867506 | P64: 31.26867506 | Q64: 10 | R64: 50 | S64: 60
A65: 33 | B65: =OFFSET(InputPriceData!B$15,CalculationsAndCharts!$A65+$A$11,0,1,1) -> 2015-09-30 | C65: =OFFSET(InputPriceData!G$15,CalculationsAndCharts!$A65+$A$11,IF($C$7,8,0),1,1) -> 4525070000 | D65: =OFFSET(InputPriceData!C$15,CalculationsAndCharts!$A65+$A$11,IF($C$7,8,0),1,1) -> 1887.14 | E65: =OFFSET(InputPriceData!D$15,CalculationsAndCharts!$A65+$A$11,IF($C$7,8,0),1,1) -> 1920.53 | F65: =OFFSET(InputPriceData!E$15,CalculationsAndCharts!$A65+$A$11,IF($C$7,8,0),1,1) -> 1887.14 | G65: =OFFSET(InputPriceData!F$15,CalculationsAndCharts!$A65+$A$11,IF($C$7,8,0),1,1) -> 1920.03 | H65: 4525070000 | J65: 1991.4569 | K65: 0.1734223101 | L65: 0.1076479071 | M65: 10.76479071 | N65: 0 | O65: 0.3456011454 | P65: 34.56011454 | Q65: 10 | R65: 50 | S65: 60
A66: 34 | B66: =OFFSET(InputPriceData!B$15,CalculationsAndCharts!$A66+$A$11,0,1,1) -> 2015-09-29 | C66: =OFFSET(InputPriceData!G$15,CalculationsAndCharts!$A66+$A$11,IF($C$7,8,0),1,1) -> 4132390000 | D66: =OFFSET(InputPriceData!C$15,CalculationsAndCharts!$A66+$A$11,IF($C$7,8,0),1,1) -> 1881.9 | E66: =OFFSET(InputPriceData!D$15,CalculationsAndCharts!$A66+$A$11,IF($C$7,8,0),1,1) -> 1899.48 | F66: =OFFSET(InputPriceData!E$15,CalculationsAndCharts!$A66+$A$11,IF($C$7,8,0),1,1) -> 1871.91 | G66: =OFFSET(InputPriceData!F$15,CalculationsAndCharts!$A66+$A$11,IF($C$7,8,0),1,1) -> 1884.09 | H66: 4132390000 | J66: 1994.372284 | K66: 0 | L66: 0.1007242857 | M66: 10.07242857 | N66: 1 | O66: 0.3819802133 | P66: 38.19802133 | Q66: 10 | R66: 50 | S66: 60
A67: 35 | B67: =OFFSET(InputPriceData!B$15,CalculationsAndCharts!$A67+$A$11,0,1,1) -> 2015-09-28 | C67: =OFFSET(InputPriceData!G$15,CalculationsAndCharts!$A67+$A$11,IF($C$7,8,0),1,1) -> 4326660000 | D67: =OFFSET(InputPriceData!C$15,CalculationsAndCharts!$A67+$A$11,IF($C$7,8,0),1,1) -> 1929.18 | E67: =OFFSET(InputPriceData!D$15,CalculationsAndCharts!$A67+$A$11,IF($C$7,8,0),1,1) -> 1929.18 | F67: =OFFSET(InputPriceData!E$15,CalculationsAndCharts!$A67+$A$11,IF($C$7,8,0),1,1) -> 1879.21 | G67: =OFFSET(InputPriceData!F$15,CalculationsAndCharts!$A67+$A$11,IF($C$7,8,0),1,1) -> 1881.77 | I67: 4326660000 | J67: 1998.873602 | K67: 0 | L67: 0.1113268421 | M67: 11.13268421 | N67: 1 | O67: 0.3169254989 | P67: 31.69254989 | Q67: 10 | R67: 50 | S67: 60
A68: 36 | B68: =OFFSET(InputPriceData!B$15,CalculationsAndCharts!$A68+$A$11,0,1,1) -> 2015-09-25 | C68: =OFFSET(InputPriceData!G$15,CalculationsAndCharts!$A68+$A$11,IF($C$7,8,0),1,1) -> 3721870000 | D68: =OFFSET(InputPriceData!C$15,CalculationsAndCharts!$A68+$A$11,IF($C$7,8,0),1,1) -> 1935.93 | E68: =OFFSET(InputPriceData!D$15,CalculationsAndCharts!$A68+$A$11,IF($C$7,8,0),1,1) -> 1952.89 | F68: =OFFSET(InputPriceData!E$15,CalculationsAndCharts!$A68+$A$11,IF($C$7,8,0),1,1) -> 1921.5 | G68: =OFFSET(InputPriceData!F$15,CalculationsAndCharts!$A68+$A$11,IF($C$7,8,0),1,1) -> 1931.34 | I68: 3721870000 | J68: 2003.653341 | K68: 0.1878360617 | L68: 0.1230454571 | M68: 12.30454571 | N68: 0 | O68: 0.2450229198 | P68: 24.50229198 | Q68: 10 | R68: 50 | S68: 60
A69: 37 | B69: =OFFSET(InputPriceData!B$15,CalculationsAndCharts!$A69+$A$11,0,1,1) -> 2015-09-24 | C69: =OFFSET(InputPriceData!G$15,CalculationsAndCharts!$A69+$A$11,IF($C$7,8,0),1,1) -> 4091530000 | D69: =OFFSET(InputPriceData!C$15,CalculationsAndCharts!$A69+$A$11,IF($C$7,8,0),1,1) -> 1934.81 | E69: =OFFSET(InputPriceData!D$15,CalculationsAndCharts!$A69+$A$11,IF($C$7,8,0),1,1) -> 1937.17 | F69: =OFFSET(InputPriceData!E$15,CalculationsAndCharts!$A69+$A$11,IF($C$7,8,0),1,1) -> 1908.92 | G69: =OFFSET(InputPriceData!F$15,CalculationsAndCharts!$A69+$A$11,IF($C$7,8,0),1,1) -> 1932.24 | I69: 4091530000 | J69: 2006.604906 | K69: 0 | L69: 0.1162253934 | M69: 11.62253934 | N69: 0.9300741095 | O69: 0.2708148061 | P69: 27.08148061 | Q69: 10 | R69: 50 | S69: 60
A70: 38 | B70: =OFFSET(InputPriceData!B$15,CalculationsAndCharts!$A70+$A$11,0,1,1) -> 2015-09-23 | C70: =OFFSET(InputPriceData!G$15,CalculationsAndCharts!$A70+$A$11,IF($C$7,8,0),1,1) -> 3190530000 | D70: =OFFSET(InputPriceData!C$15,CalculationsAndCharts!$A70+$A$11,IF($C$7,8,0),1,1) -> 1943.24 | E70: =OFFSET(InputPriceData!D$15,CalculationsAndCharts!$A70+$A$11,IF($C$7,8,0),1,1) -> 1949.52 | F70: =OFFSET(InputPriceData!E$15,CalculationsAndCharts!$A70+$A$11,IF($C$7,8,0),1,1) -> 1932.57 | G70: =OFFSET(InputPriceData!F$15,CalculationsAndCharts!$A70+$A$11,IF($C$7,8,0),1,1) -> 1938.76 | I70: 3190530000 | J70: 2009.640208 | K70: 0 | L70: 0.1284596454 | M70: 12.84596454 | N70: 0 | O70: 0.20141909 | P70: 20.141909 | Q70: 10 | R70: 50 | S70: 60
A71: 39 | B71: =OFFSET(InputPriceData!B$15,CalculationsAndCharts!$A71+$A$11,0,1,1) -> 2015-09-22 | C71: =OFFSET(InputPriceData!G$15,CalculationsAndCharts!$A71+$A$11,IF($C$7,8,0),1,1) -> 3808260000 | D71: =OFFSET(InputPriceData!C$15,CalculationsAndCharts!$A71+$A$11,IF($C$7,8,0),1,1) -> 1961.39 | E71: =OFFSET(InputPriceData!D$15,CalculationsAndCharts!$A71+$A$11,IF($C$7,8,0),1,1) -> 1961.39 | F71: =OFFSET(InputPriceData!E$15,CalculationsAndCharts!$A71+$A$11,IF($C$7,8,0),1,1) -> 1929.22 | G71: =OFFSET(InputPriceData!F$15,CalculationsAndCharts!$A71+$A$11,IF($C$7,8,0),1,1) -> 1942.74 | I71: 3808260000 | J71: 2012.533278 | K71: 0 | L71: 0.1419817133 | M71: 14.19817133 | N71: 0.4806519014 | O71: 0.2226210995 | P71: 22.26210995 | Q71: 10 | R71: 50 | S71: 60
A72: 40 | B72: =OFFSET(InputPriceData!B$15,CalculationsAndCharts!$A72+$A$11,0,1,1) -> 2015-09-21 | C72: =OFFSET(InputPriceData!G$15,CalculationsAndCharts!$A72+$A$11,IF($C$7,8,0),1,1) -> 3269350000 | D72: =OFFSET(InputPriceData!C$15,CalculationsAndCharts!$A72+$A$11,IF($C$7,8,0),1,1) -> 1960.84 | E72: =OFFSET(InputPriceData!D$15,CalculationsAndCharts!$A72+$A$11,IF($C$7,8,0),1,1) -> 1979.64 | F72: =OFFSET(InputPriceData!E$15,CalculationsAndCharts!$A72+$A$11,IF($C$7,8,0),1,1) -> 1955.8 | G72: =OFFSET(InputPriceData!F$15,CalculationsAndCharts!$A72+$A$11,IF($C$7,8,0),1,1) -> 1966.97 | H72: 3269350000 | J72: 2015.381983 | K72: 0 | L72: 0.1569271568 | M72: 15.69271568 | N72: 0 | O72: 0.1954599624 | P72: 19.54599624 | Q72: 10 | R72: 50 | S72: 60
A73: 41 | B73: =OFFSET(InputPriceData!B$15,CalculationsAndCharts!$A73+$A$11,0,1,1) -> 2015-09-18 | C73: =OFFSET(InputPriceData!G$15,CalculationsAndCharts!$A73+$A$11,IF($C$7,8,0),1,1) -> 6021240000 | D73: =OFFSET(InputPriceData!C$15,CalculationsAndCharts!$A73+$A$11,IF($C$7,8,0),1,1) -> 1989.66 | E73: =OFFSET(InputPriceData!D$15,CalculationsAndCharts!$A73+$A$11,IF($C$7,8,0),1,1) -> 1989.66 | F73: =OFFSET(InputPriceData!E$15,CalculationsAndCharts!$A73+$A$11,IF($C$7,8,0),1,1) -> 1953.45 | G73: =OFFSET(InputPriceData!F$15,CalculationsAndCharts!$A73+$A$11,IF($C$7,8,0),1,1) -> 1958.03 | I73: 6021240000 | J73: 2017.357982 | K73: 0 | L73: 0.1734458049 | M73: 17.34458049 | N73: 0.2779819579 | O73: 0.2160346953 | P73: 21.60346953 | Q73: 10 | R73: 50 | S73: 60
A74: 42 | B74: =OFFSET(InputPriceData!B$15,CalculationsAndCharts!$A74+$A$11,0,1,1) -> 2015-09-17 | C74: =OFFSET(InputPriceData!G$15,CalculationsAndCharts!$A74+$A$11,IF($C$7,8,0),1,1) -> 4183790000 | D74: =OFFSET(InputPriceData!C$15,CalculationsAndCharts!$A74+$A$11,IF($C$7,8,0),1,1) -> 1995.33 | E74: =OFFSET(InputPriceData!D$15,CalculationsAndCharts!$A74+$A$11,IF($C$7,8,0),1,1) -> 2020.86 | F74: =OFFSET(InputPriceData!E$15,CalculationsAndCharts!$A74+$A$11,IF($C$7,8,0),1,1) -> 1986.73 | G74: =OFFSET(InputPriceData!F$15,CalculationsAndCharts!$A74+$A$11,IF($C$7,8,0),1,1) -> 1990.2 | I74: 4183790000 | J74: 2019.779532 | K74: 0.5824595566 | L74: 0.1917032581 | M74: 19.17032581 | N74: 0 | O74: 0.2095139308 | P74: 20.95139308 | Q74: 10 | R74: 50 | S74: 60
A75: 43 | B75: =OFFSET(InputPriceData!B$15,CalculationsAndCharts!$A75+$A$11,0,1,1) -> 2015-09-16 | C75: =OFFSET(InputPriceData!G$15,CalculationsAndCharts!$A75+$A$11,IF($C$7,8,0),1,1) -> 3630680000 | D75: =OFFSET(InputPriceData!C$15,CalculationsAndCharts!$A75+$A$11,IF($C$7,8,0),1,1) -> 1978.02 | E75: =OFFSET(InputPriceData!D$15,CalculationsAndCharts!$A75+$A$11,IF($C$7,8,0),1,1) -> 1997.26 | F75: =OFFSET(InputPriceData!E$15,CalculationsAndCharts!$A75+$A$11,IF($C$7,8,0),1,1) -> 1977.93 | G75: =OFFSET(InputPriceData!F$15,CalculationsAndCharts!$A75+$A$11,IF($C$7,8,0),1,1) -> 1995.31 | H75: 3630680000 | J75: 2020.98686 | K75: 0.3538672589 | L75: 0.1505710161 | M75: 15.05710161 | N75: 0 | O75: 0.2315680288 | P75: 23.15680288 | Q75: 10 | R75: 50 | S75: 60
A76: 44 | B76: =OFFSET(InputPriceData!B$15,CalculationsAndCharts!$A76+$A$11,0,1,1) -> 2015-09-15 | C76: =OFFSET(InputPriceData!G$15,CalculationsAndCharts!$A76+$A$11,IF($C$7,8,0),1,1) -> 3239860000 | D76: =OFFSET(InputPriceData!C$15,CalculationsAndCharts!$A76+$A$11,IF($C$7,8,0),1,1) -> 1955.1 | E76: =OFFSET(InputPriceData!D$15,CalculationsAndCharts!$A76+$A$11,IF($C$7,8,0),1,1) -> 1983.19 | F76: =OFFSET(InputPriceData!E$15,CalculationsAndCharts!$A76+$A$11,IF($C$7,8,0),1,1) -> 1954.3 | G76: =OFFSET(InputPriceData!F$15,CalculationsAndCharts!$A76+$A$11,IF($C$7,8,0),1,1) -> 1978.09 | H76: 3239860000 | J76: 2022.034895 | K76: 0.250031176 | L76: 0.1291714116 | M76: 12.91714116 | N76: 0 | O76: 0.2559436108 | P76: 25.59436108 | Q76: 10 | R76: 50 | S76: 60
A77: 45 | B77: =OFFSET(InputPriceData!B$15,CalculationsAndCharts!$A77+$A$11,0,1,1) -> 2015-09-14 | C77: =OFFSET(InputPriceData!G$15,CalculationsAndCharts!$A77+$A$11,IF($C$7,8,0),1,1) -> 3000200000 | D77: =OFFSET(InputPriceData!C$15,CalculationsAndCharts!$A77+$A$11,IF($C$7,8,0),1,1) -> 1963.06 | E77: =OFFSET(InputPriceData!D$15,CalculationsAndCharts!$A77+$A$11,IF($C$7,8,0),1,1) -> 1963.06 | F77: =OFFSET(InputPriceData!E$15,CalculationsAndCharts!$A77+$A$11,IF($C$7,8,0),1,1) -> 1948.27 | G77: =OFFSET(InputPriceData!F$15,CalculationsAndCharts!$A77+$A$11,IF($C$7,8,0),1,1) -> 1953.03 | I77: 3000200000 | J77: 2023.828565 | K77: 0.1245167727 | L77: 0.1164493311 | M77: 11.64493311 | N77: 0 | O77: 0.2828850435 | P77: 28.28850435 | Q77: 10 | R77: 50 | S77: 60
A78: 46 | B78: =OFFSET(InputPriceData!B$15,CalculationsAndCharts!$A78+$A$11,0,1,1) -> 2015-09-11 | C78: =OFFSET(InputPriceData!G$15,CalculationsAndCharts!$A78+$A$11,IF($C$7,8,0),1,1) -> 3218590000 | D78: =OFFSET(InputPriceData!C$15,CalculationsAndCharts!$A78+$A$11,IF($C$7,8,0),1,1) -> 1951.45 | E78: =OFFSET(InputPriceData!D$15,CalculationsAndCharts!$A78+$A$11,IF($C$7,8,0),1,1) -> 1961.05 | F78: =OFFSET(InputPriceData!E$15,CalculationsAndCharts!$A78+$A$11,IF($C$7,8,0),1,1) -> 1939.19 | G78: =OFFSET(InputPriceData!F$15,CalculationsAndCharts!$A78+$A$11,IF($C$7,8,0),1,1) -> 1961.05 | H78: 3218590000 | J78: 2026.718302 | K78: 0 | L78: 0.1156001268 | M78: 11.56001268 | N78: 0 | O78: 0.3126624165 | P78: 31.26624165 | Q78: 10 | R78: 50 | S78: 60
A79: 47 | B79: =OFFSET(InputPriceData!B$15,CalculationsAndCharts!$A79+$A$11,0,1,1) -> 2015-09-10 | C79: =OFFSET(InputPriceData!G$15,CalculationsAndCharts!$A79+$A$11,IF($C$7,8,0),1,1) -> 3626320000 | D79: =OFFSET(InputPriceData!C$15,CalculationsAndCharts!$A79+$A$11,IF($C$7,8,0),1,1) -> 1941.59 | E79: =OFFSET(InputPriceData!D$15,CalculationsAndCharts!$A79+$A$11,IF($C$7,8,0),1,1) -> 1965.29 | F79: =OFFSET(InputPriceData!E$15,CalculationsAndCharts!$A79+$A$11,IF($C$7,8,0),1,1) -> 1937.19 | G79: =OFFSET(InputPriceData!F$15,CalculationsAndCharts!$A79+$A$11,IF($C$7,8,0),1,1) -> 1952.29 | H79: 3626320000 | J79: 2029.398641 | K79: 0 | L79: 0.1277685612 | M79: 12.77685612 | N79: 0.6910139568 | O79: 0.3455742498 | P79: 34.55742498 | Q79: 10 | R79: 50 | S79: 60
A80: 48 | B80: =OFFSET(InputPriceData!B$15,CalculationsAndCharts!$A80+$A$11,0,1,1) -> 2015-09-09 | C80: =OFFSET(InputPriceData!G$15,CalculationsAndCharts!$A80+$A$11,IF($C$7,8,0),1,1) -> 3652120000 | D80: =OFFSET(InputPriceData!C$15,CalculationsAndCharts!$A80+$A$11,IF($C$7,8,0),1,1) -> 1971.45 | E80: =OFFSET(InputPriceData!D$15,CalculationsAndCharts!$A80+$A$11,IF($C$7,8,0),1,1) -> 1988.63 | F80: =OFFSET(InputPriceData!E$15,CalculationsAndCharts!$A80+$A$11,IF($C$7,8,0),1,1) -> 1937.88 | G80: =OFFSET(InputPriceData!F$15,CalculationsAndCharts!$A80+$A$11,IF($C$7,8,0),1,1) -> 1942.04 | I80: 3652120000 | J80: 2032.545932 | K80: 0.2839506173 | L80: 0.1412178834 | M80: 14.12178834 | N80: 0 | O80: 0.3092121754 | P80: 30.92121754 | Q80: 10 | R80: 50 | S80: 60
A81: 49 | B81: =OFFSET(InputPriceData!B$15,CalculationsAndCharts!$A81+$A$11,0,1,1) -> 2015-09-08 | C81: =OFFSET(InputPriceData!G$15,CalculationsAndCharts!$A81+$A$11,IF($C$7,8,0),1,1) -> 3548650000 | D81: =OFFSET(InputPriceData!C$15,CalculationsAndCharts!$A81+$A$11,IF($C$7,8,0),1,1) -> 1927.3 | E81: =OFFSET(InputPriceData!D$15,CalculationsAndCharts!$A81+$A$11,IF($C$7,8,0),1,1) -> 1970.42 | F81: =OFFSET(InputPriceData!E$15,CalculationsAndCharts!$A81+$A$11,IF($C$7,8,0),1,1) -> 1927.3 | G81: =OFFSET(InputPriceData!F$15,CalculationsAndCharts!$A81+$A$11,IF($C$7,8,0),1,1) -> 1969.41 | H81: 3548650000 | J81: 2036.240052 | K81: 0.1704077815 | L81: 0.1261933851 | M81: 12.61933851 | N81: 0 | O81: 0.3417608254 | P81: 34.17608254 | Q81: 10 | R81: 50 | S81: 60
A82: 50 | B82: =OFFSET(InputPriceData!B$15,CalculationsAndCharts!$A82+$A$11,0,1,1) -> 2015-09-04 | C82: =OFFSET(InputPriceData!G$15,CalculationsAndCharts!$A82+$A$11,IF($C$7,8,0),1,1) -> 3167090000 | D82: =OFFSET(InputPriceData!C$15,CalculationsAndCharts!$A82+$A$11,IF($C$7,8,0),1,1) -> 1947.76 | E82: =OFFSET(InputPriceData!D$15,CalculationsAndCharts!$A82+$A$11,IF($C$7,8,0),1,1) -> 1947.76 | F82: =OFFSET(InputPriceData!E$15,CalculationsAndCharts!$A82+$A$11,IF($C$7,8,0),1,1) -> 1911.21 | G82: =OFFSET(InputPriceData!F$15,CalculationsAndCharts!$A82+$A$11,IF($C$7,8,0),1,1) -> 1921.22 | I82: 3167090000 | J82: 2038.967809 | K82: 0 | L82: 0.1215392381 | M82: 12.15392381 | N82: 0.8053977898 | O82: 0.3777356492 | P82: 37.77356492 | Q82: 10 | R82: 50 | S82: 60
A83: 51 | B83: =OFFSET(InputPriceData!B$15,CalculationsAndCharts!$A83+$A$11,0,1,1) -> 2015-09-03 | C83: =OFFSET(InputPriceData!G$15,CalculationsAndCharts!$A83+$A$11,IF($C$7,8,0),1,1) -> 3520700000 | D83: =OFFSET(InputPriceData!C$15,CalculationsAndCharts!$A83+$A$11,IF($C$7,8,0),1,1) -> 1950.79 | E83: =OFFSET(InputPriceData!D$15,CalculationsAndCharts!$A83+$A$11,IF($C$7,8,0),1,1) -> 1975.01 | F83: =OFFSET(InputPriceData!E$15,CalculationsAndCharts!$A83+$A$11,IF($C$7,8,0),1,1) -> 1944.72 | G83: =OFFSET(InputPriceData!F$15,CalculationsAndCharts!$A83+$A$11,IF($C$7,8,0),1,1) -> 1951.13 | H83: 3520700000 | J83: 2043.773842 | K83: 0.1967213115 | L83: 0.1343328421 | M83: 13.43328421 | N83: 0 | O83: 0.3327185817 | P83: 33.27185817 | Q83: 10 | R83: 50 | S83: 60
A84: 52 | B84: =OFFSET(InputPriceData!B$15,CalculationsAndCharts!$A84+$A$11,0,1,1) -> 2015-09-02 | C84: =OFFSET(InputPriceData!G$15,CalculationsAndCharts!$A84+$A$11,IF($C$7,8,0),1,1) -> 3742620000 | D84: =OFFSET(InputPriceData!C$15,CalculationsAndCharts!$A84+$A$11,IF($C$7,8,0),1,1) -> 1916.52 | E84: =OFFSET(InputPriceData!D$15,CalculationsAndCharts!$A84+$A$11,IF($C$7,8,0),1,1) -> 1948.91 | F84: =OFFSET(InputPriceData!E$15,CalculationsAndCharts!$A84+$A$11,IF($C$7,8,0),1,1) -> 1916.52 | G84: =OFFSET(InputPriceData!F$15,CalculationsAndCharts!$A84+$A$11,IF($C$7,8,0),1,1) -> 1948.86 | H84: 3742620000 | J84: 2047.555223 | K84: 0 | L84: 0.1277656348 | M84: 12.77656348 | N84: 0 | O84: 0.3677415903 | P84: 36.77415903 | Q84: 10 | R84: 50 | S84: 60
A85: 53 | B85: =OFFSET(InputPriceData!B$15,CalculationsAndCharts!$A85+$A$11,0,1,1) -> 2015-09-01 | C85: =OFFSET(InputPriceData!G$15,CalculationsAndCharts!$A85+$A$11,IF($C$7,8,0),1,1) -> 4371850000 | D85: =OFFSET(InputPriceData!C$15,CalculationsAndCharts!$A85+$A$11,IF($C$7,8,0),1,1) -> 1970.09 | E85: =OFFSET(InputPriceData!D$15,CalculationsAndCharts!$A85+$A$11,IF($C$7,8,0),1,1) -> 1970.09 | F85: =OFFSET(InputPriceData!E$15,CalculationsAndCharts!$A85+$A$11,IF($C$7,8,0),1,1) -> 1903.07 | G85: =OFFSET(InputPriceData!F$15,CalculationsAndCharts!$A85+$A$11,IF($C$7,8,0),1,1) -> 1913.85 | I85: 4371850000 | J85: 2051.5836 | K85: 0 | L85: 0.141214649 | M85: 14.1214649 | N85: 0.8420222553 | O85: 0.4064512314 | P85: 40.64512314 | Q85: 10 | R85: 50 | S85: 60
A86: 54 | B86: =OFFSET(InputPriceData!B$15,CalculationsAndCharts!$A86+$A$11,0,1,1) -> 2015-08-31 | C86: =OFFSET(InputPriceData!G$15,CalculationsAndCharts!$A86+$A$11,IF($C$7,8,0),1,1) -> 3915100000 | D86: =OFFSET(InputPriceData!C$15,CalculationsAndCharts!$A86+$A$11,IF($C$7,8,0),1,1) -> 1986.73 | E86: =OFFSET(InputPriceData!D$15,CalculationsAndCharts!$A86+$A$11,IF($C$7,8,0),1,1) -> 1986.73 | F86: =OFFSET(InputPriceData!E$15,CalculationsAndCharts!$A86+$A$11,IF($C$7,8,0),1,1) -> 1965.98 | G86: =OFFSET(InputPriceData!F$15,CalculationsAndCharts!$A86+$A$11,IF($C$7,8,0),1,1) -> 1972.18 | I86: 3915100000 | J86: 2057.205379 | K86: 0 | L86: 0.1560793489 | M86: 15.60793489 | N86: 0.5664154911 | O86: 0.36060165 | P86: 36.060165 | Q86: 10 | R86: 50 | S86: 60
A87: 55 | B87: =OFFSET(InputPriceData!B$15,CalculationsAndCharts!$A87+$A$11,0,1,1) -> 2015-08-28 | C87: =OFFSET(InputPriceData!G$15,CalculationsAndCharts!$A87+$A$11,IF($C$7,8,0),1,1) -> 3949080000 | D87: =OFFSET(InputPriceData!C$15,CalculationsAndCharts!$A87+$A$11,IF($C$7,8,0),1,1) -> 1986.06 | E87: =OFFSET(InputPriceData!D$15,CalculationsAndCharts!$A87+$A$11,IF($C$7,8,0),1,1) -> 1993.48 | F87: =OFFSET(InputPriceData!E$15,CalculationsAndCharts!$A87+$A$11,IF($C$7,8,0),1,1) -> 1975.19 | G87: =OFFSET(InputPriceData!F$15,CalculationsAndCharts!$A87+$A$11,IF($C$7,8,0),1,1) -> 1988.87 | H87: 3949080000 | J87: 2060.675803 | K87: 0.2971634133 | L87: 0.1725087541 | M87: 17.25087541 | N87: 0 | O87: 0.3389370351 | P87: 33.89370351 | Q87: 10 | R87: 50 | S87: 60
A88: 56 | B88: =OFFSET(InputPriceData!B$15,CalculationsAndCharts!$A88+$A$11,0,1,1) -> 2015-08-27 | C88: =OFFSET(InputPriceData!G$15,CalculationsAndCharts!$A88+$A$11,IF($C$7,8,0),1,1) -> 5006390000 | D88: =OFFSET(InputPriceData!C$15,CalculationsAndCharts!$A88+$A$11,IF($C$7,8,0),1,1) -> 1942.77 | E88: =OFFSET(InputPriceData!D$15,CalculationsAndCharts!$A88+$A$11,IF($C$7,8,0),1,1) -> 1989.6 | F88: =OFFSET(InputPriceData!E$15,CalculationsAndCharts!$A88+$A$11,IF($C$7,8,0),1,1) -> 1942.77 | G88: =OFFSET(InputPriceData!F$15,CalculationsAndCharts!$A88+$A$11,IF($C$7,8,0),1,1) -> 1987.66 | H88: 5006390000 | J88: 2063.606652 | K88: 0.271749927 | L88: 0.159387211 | M88: 15.9387211 | N88: 0 | O88: 0.3746146178 | P88: 37.46146178 | Q88: 10 | R88: 50 | S88: 60
A89: 57 | B89: =OFFSET(InputPriceData!B$15,CalculationsAndCharts!$A89+$A$11,0,1,1) -> 2015-08-26 | C89: =OFFSET(InputPriceData!G$15,CalculationsAndCharts!$A89+$A$11,IF($C$7,8,0),1,1) -> 5338250000 | D89: =OFFSET(InputPriceData!C$15,CalculationsAndCharts!$A89+$A$11,IF($C$7,8,0),1,1) -> 1872.75 | E89: =OFFSET(InputPriceData!D$15,CalculationsAndCharts!$A89+$A$11,IF($C$7,8,0),1,1) -> 1943.09 | F89: =OFFSET(InputPriceData!E$15,CalculationsAndCharts!$A89+$A$11,IF($C$7,8,0),1,1) -> 1872.75 | G89: =OFFSET(InputPriceData!F$15,CalculationsAndCharts!$A89+$A$11,IF($C$7,8,0),1,1) -> 1940.51 | H89: 5338250000 | J89: 2066.706516 | K89: 0 | L89: 0.1475595567 | M89: 14.75595567 | N89: 0 | O89: 0.4140477354 | P89: 41.40477354 | Q89: 10 | R89: 50 | S89: 60
A90: 58 | B90: =OFFSET(InputPriceData!B$15,CalculationsAndCharts!$A90+$A$11,0,1,1) -> 2015-08-25 | C90: =OFFSET(InputPriceData!G$15,CalculationsAndCharts!$A90+$A$11,IF($C$7,8,0),1,1) -> 5183560000 | D90: =OFFSET(InputPriceData!C$15,CalculationsAndCharts!$A90+$A$11,IF($C$7,8,0),1,1) -> 1898.08 | E90: =OFFSET(InputPriceData!D$15,CalculationsAndCharts!$A90+$A$11,IF($C$7,8,0),1,1) -> 1948.04 | F90: =OFFSET(InputPriceData!E$15,CalculationsAndCharts!$A90+$A$11,IF($C$7,8,0),1,1) -> 1867.08 | G90: =OFFSET(InputPriceData!F$15,CalculationsAndCharts!$A90+$A$11,IF($C$7,8,0),1,1) -> 1867.61 | I90: 5183560000 | J90: 2071.857394 | K90: 0 | L90: 0.1630921416 | M90: 16.30921416 | N90: 0 | O90: 0.4576317076 | P90: 45.76317076 | Q90: 10 | R90: 50 | S90: 60
A91: 59 | B91: =OFFSET(InputPriceData!B$15,CalculationsAndCharts!$A91+$A$11,0,1,1) -> 2015-08-24 | C91: =OFFSET(InputPriceData!G$15,CalculationsAndCharts!$A91+$A$11,IF($C$7,8,0),1,1) -> 6612690000 | D91: =OFFSET(InputPriceData!C$15,CalculationsAndCharts!$A91+$A$11,IF($C$7,8,0),1,1) -> 1965.15 | E91: =OFFSET(InputPriceData!D$15,CalculationsAndCharts!$A91+$A$11,IF($C$7,8,0),1,1) -> 1965.15 | F91: =OFFSET(InputPriceData!E$15,CalculationsAndCharts!$A91+$A$11,IF($C$7,8,0),1,1) -> 1867.01 | G91: =OFFSET(InputPriceData!F$15,CalculationsAndCharts!$A91+$A$11,IF($C$7,8,0),1,1) -> 1893.21 | I91: 6612690000 | J91: 2080.194022 | K91: 0 | L91: 0.1802597354 | M91: 18.02597354 | N91: 1 | O91: 0.5058034662 | P91: 50.58034662 | Q91: 10 | R91: 50 | S91: 60
A92: 60 | B92: =OFFSET(InputPriceData!B$15,CalculationsAndCharts!$A92+$A$11,0,1,1) -> 2015-08-21 | C92: =OFFSET(InputPriceData!G$15,CalculationsAndCharts!$A92+$A$11,IF($C$7,8,0),1,1) -> 5018240000 | D92: =OFFSET(InputPriceData!C$15,CalculationsAndCharts!$A92+$A$11,IF($C$7,8,0),1,1) -> 2034.08 | E92: =OFFSET(InputPriceData!D$15,CalculationsAndCharts!$A92+$A$11,IF($C$7,8,0),1,1) -> 2034.08 | F92: =OFFSET(InputPriceData!E$15,CalculationsAndCharts!$A92+$A$11,IF($C$7,8,0),1,1) -> 1970.89 | G92: =OFFSET(InputPriceData!F$15,CalculationsAndCharts!$A92+$A$11,IF($C$7,8,0),1,1) -> 1970.89 | I92: 5018240000 | J92: 2087.826023 | K92: 0 | L92: 0.1992344444 | M92: 19.92344444 | N92: 1 | O92: 0.4537827785 | P92: 45.37827785 | Q92: 10 | R92: 50 | S92: 60
A93: 61 | B93: =OFFSET(InputPriceData!B$15,CalculationsAndCharts!$A93+$A$11,0,1,1) -> 2015-08-20 | C93: =OFFSET(InputPriceData!G$15,CalculationsAndCharts!$A93+$A$11,IF($C$7,8,0),1,1) -> 3922470000 | D93: =OFFSET(InputPriceData!C$15,CalculationsAndCharts!$A93+$A$11,IF($C$7,8,0),1,1) -> 2076.61 | E93: =OFFSET(InputPriceData!D$15,CalculationsAndCharts!$A93+$A$11,IF($C$7,8,0),1,1) -> 2076.61 | F93: =OFFSET(InputPriceData!E$15,CalculationsAndCharts!$A93+$A$11,IF($C$7,8,0),1,1) -> 2035.73 | G93: =OFFSET(InputPriceData!F$15,CalculationsAndCharts!$A93+$A$11,IF($C$7,8,0),1,1) -> 2035.73 | I93: 3922470000 | J93: 2092.598922 | K93: 0 | L93: 0.2202064912 | M93: 22.02064912 | N93: 1 | O93: 0.3962862289 | P93: 39.62862289 | Q93: 10 | R93: 50 | S93: 60
A94: 62 | B94: =OFFSET(InputPriceData!B$15,CalculationsAndCharts!$A94+$A$11,0,1,1) -> 2015-08-19 | C94: =OFFSET(InputPriceData!G$15,CalculationsAndCharts!$A94+$A$11,IF($C$7,8,0),1,1) -> 3512920000 | D94: =OFFSET(InputPriceData!C$15,CalculationsAndCharts!$A94+$A$11,IF($C$7,8,0),1,1) -> 2095.69 | E94: =OFFSET(InputPriceData!D$15,CalculationsAndCharts!$A94+$A$11,IF($C$7,8,0),1,1) -> 2096.17 | F94: =OFFSET(InputPriceData!E$15,CalculationsAndCharts!$A94+$A$11,IF($C$7,8,0),1,1) -> 2070.53 | G94: =OFFSET(InputPriceData!F$15,CalculationsAndCharts!$A94+$A$11,IF($C$7,8,0),1,1) -> 2079.61 | I94: 3512920000 | J94: 2094.920102 | K94: 0 | L94: 0.2433861219 | M94: 24.33861219 | N94: 0.631052421 | O94: 0.3327374108 | P94: 33.27374108 | Q94: 10 | R94: 50 | S94: 60
A95: 63 | B95: =OFFSET(InputPriceData!B$15,CalculationsAndCharts!$A95+$A$11,0,1,1) -> 2015-08-18 | C95: =OFFSET(InputPriceData!G$15,CalculationsAndCharts!$A95+$A$11,IF($C$7,8,0),1,1) -> 2949990000 | D95: =OFFSET(InputPriceData!C$15,CalculationsAndCharts!$A95+$A$11,IF($C$7,8,0),1,1) -> 2101.99 | E95: =OFFSET(InputPriceData!D$15,CalculationsAndCharts!$A95+$A$11,IF($C$7,8,0),1,1) -> 2103.47 | F95: =OFFSET(InputPriceData!E$15,CalculationsAndCharts!$A95+$A$11,IF($C$7,8,0),1,1) -> 2094.14 | G95: =OFFSET(InputPriceData!F$15,CalculationsAndCharts!$A95+$A$11,IF($C$7,8,0),1,1) -> 2096.92 | I95: 2949990000 | J95: 2095.545004 | K95: 0.626984127 | L95: 0.2690057136 | M95: 26.90057136 | N95: 0 | O95: 0.3013358308 | P95: 30.13358308 | Q95: 10 | R95: 50 | S95: 60
A96: 64 | B96: =OFFSET(InputPriceData!B$15,CalculationsAndCharts!$A96+$A$11,0,1,1) -> 2015-08-17 | C96: =OFFSET(InputPriceData!G$15,CalculationsAndCharts!$A96+$A$11,IF($C$7,8,0),1,1) -> 2867690000 | D96: =OFFSET(InputPriceData!C$15,CalculationsAndCharts!$A96+$A$11,IF($C$7,8,0),1,1) -> 2089.7 | E96: =OFFSET(InputPriceData!D$15,CalculationsAndCharts!$A96+$A$11,IF($C$7,8,0),1,1) -> 2102.87 | F96: =OFFSET(InputPriceData!E$15,CalculationsAndCharts!$A96+$A$11,IF($C$7,8,0),1,1) -> 2079.3 | G96: =OFFSET(InputPriceData!F$15,CalculationsAndCharts!$A96+$A$11,IF($C$7,8,0),1,1) -> 2102.44 | H96: 2867690000 | J96: 2095.488882 | K96: 0.4906560636 | L96: 0.2313237754 | M96: 23.13237754 | N96: 0.5702100774 | O96: 0.333055392 | P96: 33.3055392 | Q96: =$D$22 -> 10 | R96: =$D$21 -> 50 | S96: =$D$20 -> 60
A97: 65 | B97: =OFFSET(InputPriceData!B$15,CalculationsAndCharts!$A97+$A$11,0,1,1) -> 2015-08-14 | C97: =OFFSET(InputPriceData!G$15,CalculationsAndCharts!$A97+$A$11,IF($C$7,8,0),1,1) -> 2795590000 | D97: =OFFSET(InputPriceData!C$15,CalculationsAndCharts!$A97+$A$11,IF($C$7,8,0),1,1) -> 2083.15 | E97: =OFFSET(InputPriceData!D$15,CalculationsAndCharts!$A97+$A$11,IF($C$7,8,0),1,1) -> 2092.45 | F97: =OFFSET(InputPriceData!E$15,CalculationsAndCharts!$A97+$A$11,IF($C$7,8,0),1,1) -> 2080.61 | G97: =OFFSET(InputPriceData!F$15,CalculationsAndCharts!$A97+$A$11,IF($C$7,8,0),1,1) -> 2091.54 | H97: =IF(D97<=G97,C97,NA()) -> 2795590000 | I97: =IF(D97<=G97,NA(),C97) ->  | J97: =IF(A97>$A$8,0,IF(A97=$A$8,G97,G97*$F$17+$F$18*J98)) -> 2095.205163 | K97: =IF($A97>$A$8-$A$17,0,IF($E97<=$E98,0,($E97-MIN(OFFSET($E97,0,0,$A$17,1)))/(MAX(OFFSET($E97,0,0,$A$17,1))-MIN(OFFSET($E97,0,0,$A$17,1))))) -> 0 | L97: 0.2040256398 | M97: 20.40256398 | N97: =IF($A97>$A$8-$A$17,0,IF($F97>=$F98,0,(MAX(OFFSET($F97,0,0,$A$17,1))-$F97)/(MAX(OFFSET($F97,0,0,$A$17,1))-MIN(OFFSET($F97,0,0,$A$17,1))))) -> 0 | O97: =IF($A97>($A$8-$A$18-$A$17),0,IF(D97=($A$8-$A$18-$A$17),AVERAGE(OFFSET(N97,0,0,$A$18,1)),(N97*$C$19+O98*$C$20))) -> 0.3080917409 | P97: 30.80917409 | Q97: 10 | R97: 50 | S97: 60
A98: 66 | B98: =OFFSET(InputPriceData!B$15,CalculationsAndCharts!$A98+$A$11,0,1,1) -> 2015-08-13 | C98: =OFFSET(InputPriceData!G$15,CalculationsAndCharts!$A98+$A$11,IF($C$7,8,0),1,1) -> 3221300000 | D98: =OFFSET(InputPriceData!C$15,CalculationsAndCharts!$A98+$A$11,IF($C$7,8,0),1,1) -> 2086.19 | E98: =OFFSET(InputPriceData!D$15,CalculationsAndCharts!$A98+$A$11,IF($C$7,8,0),1,1) -> 2092.93 | F98: =OFFSET(InputPriceData!E$15,CalculationsAndCharts!$A98+$A$11,IF($C$7,8,0),1,1) -> 2078.26 | G98: =OFFSET(InputPriceData!F$15,CalculationsAndCharts!$A98+$A$11,IF($C$7,8,0),1,1) -> 2083.39 | I98: 3221300000 | J98: 2095.354762 | K98: 0.2698151199 | L98: =IF(A98>($A$8-$A$18-$A$17),0,IF(A98=($A$8-$A$18-$A$17),AVERAGE(OFFSET(K98,0,0,$A$18,1)),(K98*$C$19+L99*$C$20))) -> 0.2255020229 | M98: =L98*100 -> 22.55020229 | N98: 0 | O98: 0.3405224504 | P98: =O98*100 -> 34.05224504 | Q98: 10 | R98: 50 | S98: 60
A99: 67 | B99: =OFFSET(InputPriceData!B$15,CalculationsAndCharts!$A99+$A$11,0,1,1) -> 2015-08-12 | C99: =OFFSET(InputPriceData!G$15,CalculationsAndCharts!$A99+$A$11,IF($C$7,8,0),1,1) -> 4269130000 | D99: =OFFSET(InputPriceData!C$15,CalculationsAndCharts!$A99+$A$11,IF($C$7,8,0),1,1) -> 2081.1 | E99: =OFFSET(InputPriceData!D$15,CalculationsAndCharts!$A99+$A$11,IF($C$7,8,0),1,1) -> 2089.06 | F99: =OFFSET(InputPriceData!E$15,CalculationsAndCharts!$A99+$A$11,IF($C$7,8,0),1,1) -> 2052.09 | G99: =OFFSET(InputPriceData!F$15,CalculationsAndCharts!$A99+$A$11,IF($C$7,8,0),1,1) -> 2086.05 | H99: 4269130000 | J99: 2095.843119 | K99: 0 | L99: 0.2208374864 | M99: 22.08374864 | N99: 1 | O99: 0.3763669189 | P99: 37.63669189 | Q99: 10 | R99: 50 | S99: 60
A100: 68 | B100: =OFFSET(InputPriceData!B$15,CalculationsAndCharts!$A100+$A$11,0,1,1) -> 2015-08-11 | C100: =OFFSET(InputPriceData!G$15,CalculationsAndCharts!$A100+$A$11,IF($C$7,8,0),1,1) -> 3708880000 | D100: =OFFSET(InputPriceData!C$15,CalculationsAndCharts!$A100+$A$11,IF($C$7,8,0),1,1) -> 2102.66 | E100: =OFFSET(InputPriceData!D$15,CalculationsAndCharts!$A100+$A$11,IF($C$7,8,0),1,1) -> 2102.66 | F100: =OFFSET(InputPriceData!E$15,CalculationsAndCharts!$A100+$A$11,IF($C$7,8,0),1,1) -> 2076.49 | G100: =OFFSET(InputPriceData!F$15,CalculationsAndCharts!$A100+$A$11,IF($C$7,8,0),1,1) -> 2084.07 | I100: 3708880000 | J100: 2096.242838 | K100: 0 | L100: 0.2440835376 | M100: 24.40835376 | N100: 0.7843365481 | O100: 0.3107213314 | P100: 31.07213314 | Q100: 10 | R100: 50 | S100: 60
A101: 69 | B101: =OFFSET(InputPriceData!B$15,CalculationsAndCharts!$A101+$A$11,0,1,1) -> 2015-08-10 | C101: =OFFSET(InputPriceData!G$15,CalculationsAndCharts!$A101+$A$11,IF($C$7,8,0),1,1) -> 3514460000 | D101: =OFFSET(InputPriceData!C$15,CalculationsAndCharts!$A101+$A$11,IF($C$7,8,0),1,1) -> 2080.98 | E101: =OFFSET(InputPriceData!D$15,CalculationsAndCharts!$A101+$A$11,IF($C$7,8,0),1,1) -> 2105.35 | F101: =OFFSET(InputPriceData!E$15,CalculationsAndCharts!$A101+$A$11,IF($C$7,8,0),1,1) -> 2080.98 | G101: =OFFSET(InputPriceData!F$15,CalculationsAndCharts!$A101+$A$11,IF($C$7,8,0),1,1) -> 2104.18 | H101: 3514460000 | J101: 2096.739689 | K101: 0.4971627311 | L101: 0.2697765415 | M101: 26.97765415 | N101: 0 | O101: 0.2608670981 | P101: 26.08670981 | Q101: 10 | R101: 50 | S101: 60
A102: 70 | B102: =OFFSET(InputPriceData!B$15,CalculationsAndCharts!$A102+$A$11,0,1,1) -> 2015-08-07 | C102: =OFFSET(InputPriceData!G$15,CalculationsAndCharts!$A102+$A$11,IF($C$7,8,0),1,1) -> 3602320000 | D102: =OFFSET(InputPriceData!C$15,CalculationsAndCharts!$A102+$A$11,IF($C$7,8,0),1,1) -> 2082.61 | E102: =OFFSET(InputPriceData!D$15,CalculationsAndCharts!$A102+$A$11,IF($C$7,8,0),1,1) -> 2082.61 | F102: =OFFSET(InputPriceData!E$15,CalculationsAndCharts!$A102+$A$11,IF($C$7,8,0),1,1) -> 2067.91 | G102: =OFFSET(InputPriceData!F$15,CalculationsAndCharts!$A102+$A$11,IF($C$7,8,0),1,1) -> 2077.57 | I102: 3602320000 | J102: 2096.436003 | K102: 0 | L102: 0.2458411532 | M102: 24.58411532 | N102: 0.9270036581 | O102: 0.2883267926 | P102: 28.83267926 | Q102: 10 | R102: 50 | S102: 60
A103: 71 | B103: =OFFSET(InputPriceData!B$15,CalculationsAndCharts!$A103+$A$11,0,1,1) -> 2015-08-06 | C103: =OFFSET(InputPriceData!G$15,CalculationsAndCharts!$A103+$A$11,IF($C$7,8,0),1,1) -> 4246570000 | D103: =OFFSET(InputPriceData!C$15,CalculationsAndCharts!$A103+$A$11,IF($C$7,8,0),1,1) -> 2100.75 | E103: =OFFSET(InputPriceData!D$15,CalculationsAndCharts!$A103+$A$11,IF($C$7,8,0),1,1) -> 2103.32 | F103: =OFFSET(InputPriceData!E$15,CalculationsAndCharts!$A103+$A$11,IF($C$7,8,0),1,1) -> 2075.53 | G103: =OFFSET(InputPriceData!F$15,CalculationsAndCharts!$A103+$A$11,IF($C$7,8,0),1,1) -> 2083.56 | I103: 4246570000 | J103: 2097.206044 | K103: 0 | L103: 0.2717191693 | M103: 27.17191693 | N103: 0.6786520023 | O103: 0.2210976489 | P103: 22.10976489 | Q103: 10 | R103: 50 | S103: 60
A104: 72 | B104: =OFFSET(InputPriceData!B$15,CalculationsAndCharts!$A104+$A$11,0,1,1) -> 2015-08-05 | C104: =OFFSET(InputPriceData!G$15,CalculationsAndCharts!$A104+$A$11,IF($C$7,8,0),1,1) -> 3968680000 | D104: =OFFSET(InputPriceData!C$15,CalculationsAndCharts!$A104+$A$11,IF($C$7,8,0),1,1) -> 2095.27 | E104: =OFFSET(InputPriceData!D$15,CalculationsAndCharts!$A104+$A$11,IF($C$7,8,0),1,1) -> 2112.66 | F104: =OFFSET(InputPriceData!E$15,CalculationsAndCharts!$A104+$A$11,IF($C$7,8,0),1,1) -> 2095.27 | G104: =OFFSET(InputPriceData!F$15,CalculationsAndCharts!$A104+$A$11,IF($C$7,8,0),1,1) -> 2099.84 | H104: 3968680000 | J104: 2097.763025 | K104: 0.6556200888 | L104: 0.3003211871 | M104: 30.03211871 | N104: 0 | O104: 0.1729340327 | P104: 17.29340327 | Q104: 10 | R104: 50 | S104: 60
A105: 73 | B105: =OFFSET(InputPriceData!B$15,CalculationsAndCharts!$A105+$A$11,0,1,1) -> 2015-08-04 | C105: =OFFSET(InputPriceData!G$15,CalculationsAndCharts!$A105+$A$11,IF($C$7,8,0),1,1) -> 3546710000 | D105: =OFFSET(InputPriceData!C$15,CalculationsAndCharts!$A105+$A$11,IF($C$7,8,0),1,1) -> 2097.68 | E105: =OFFSET(InputPriceData!D$15,CalculationsAndCharts!$A105+$A$11,IF($C$7,8,0),1,1) -> 2102.51 | F105: =OFFSET(InputPriceData!E$15,CalculationsAndCharts!$A105+$A$11,IF($C$7,8,0),1,1) -> 2088.6 | G105: =OFFSET(InputPriceData!F$15,CalculationsAndCharts!$A105+$A$11,IF($C$7,8,0),1,1) -> 2093.32 | I105: 3546710000 | J105: 2097.678251 | K105: 0 | L105: 0.2629213027 | M105: 26.29213027 | N105: 0 | O105: 0.1911376151 | P105: 19.11376151 | Q105: 10 | R105: 50 | S105: 60
A106: 74 | B106: =OFFSET(InputPriceData!B$15,CalculationsAndCharts!$A106+$A$11,0,1,1) -> 2015-08-03 | C106: =OFFSET(InputPriceData!G$15,CalculationsAndCharts!$A106+$A$11,IF($C$7,8,0),1,1) -> 3476770000 | D106: =OFFSET(InputPriceData!C$15,CalculationsAndCharts!$A106+$A$11,IF($C$7,8,0),1,1) -> 2104.49 | E106: =OFFSET(InputPriceData!D$15,CalculationsAndCharts!$A106+$A$11,IF($C$7,8,0),1,1) -> 2105.7 | F106: =OFFSET(InputPriceData!E$15,CalculationsAndCharts!$A106+$A$11,IF($C$7,8,0),1,1) -> 2087.31 | G106: =OFFSET(InputPriceData!F$15,CalculationsAndCharts!$A106+$A$11,IF($C$7,8,0),1,1) -> 2098.04 | I106: 3476770000 | J106: 2097.856138 | K106: 0 | L106: 0.2905972293 | M106: 29.05972293 | N106: 0.4564289302 | O106: 0.2112573641 | P106: 21.12573641 | Q106: 10 | R106: 50 | S106: 60
A107: 75 | B107: =OFFSET(InputPriceData!B$15,CalculationsAndCharts!$A107+$A$11,0,1,1) -> 2015-07-31 | C107: =OFFSET(InputPriceData!G$15,CalculationsAndCharts!$A107+$A$11,IF($C$7,8,0),1,1) -> 3681340000 | D107: =OFFSET(InputPriceData!C$15,CalculationsAndCharts!$A107+$A$11,IF($C$7,8,0),1,1) -> 2111.6 | E107: =OFFSET(InputPriceData!D$15,CalculationsAndCharts!$A107+$A$11,IF($C$7,8,0),1,1) -> 2114.24 | F107: =OFFSET(InputPriceData!E$15,CalculationsAndCharts!$A107+$A$11,IF($C$7,8,0),1,1) -> 2102.07 | G107: =OFFSET(InputPriceData!F$15,CalculationsAndCharts!$A107+$A$11,IF($C$7,8,0),1,1) -> 2103.84 | I107: 3681340000 | J107: 2097.848634 | K107: 0.6826101811 | L107: 0.3211864114 | M107: 32.11864114 | N107: 0 | O107: 0.1854498308 | P107: 18.54498308 | Q107: 10 | R107: 50 | S107: 60
A108: 76 | B108: =OFFSET(InputPriceData!B$15,CalculationsAndCharts!$A108+$A$11,0,1,1) -> 2015-07-30 | C108: =OFFSET(InputPriceData!G$15,CalculationsAndCharts!$A108+$A$11,IF($C$7,8,0),1,1) -> 3579410000 | D108: =OFFSET(InputPriceData!C$15,CalculationsAndCharts!$A108+$A$11,IF($C$7,8,0),1,1) -> 2106.78 | E108: =OFFSET(InputPriceData!D$15,CalculationsAndCharts!$A108+$A$11,IF($C$7,8,0),1,1) -> 2110.48 | F108: =OFFSET(InputPriceData!E$15,CalculationsAndCharts!$A108+$A$11,IF($C$7,8,0),1,1) -> 2094.97 | G108: =OFFSET(InputPriceData!F$15,CalculationsAndCharts!$A108+$A$11,IF($C$7,8,0),1,1) -> 2108.63 | H108: 3579410000 | J108: 2097.604088 | K108: 0 | L108: 0.283141804 | M108: 28.3141804 | N108: 0 | O108: 0.2049708656 | P108: 20.49708656 | Q108: 10 | R108: 50 | S108: 60
A109: 77 | B109: =OFFSET(InputPriceData!B$15,CalculationsAndCharts!$A109+$A$11,0,1,1) -> 2015-07-29 | C109: =OFFSET(InputPriceData!G$15,CalculationsAndCharts!$A109+$A$11,IF($C$7,8,0),1,1) -> 4038900000 | D109: =OFFSET(InputPriceData!C$15,CalculationsAndCharts!$A109+$A$11,IF($C$7,8,0),1,1) -> 2094.7 | E109: =OFFSET(InputPriceData!D$15,CalculationsAndCharts!$A109+$A$11,IF($C$7,8,0),1,1) -> 2110.6 | F109: =OFFSET(InputPriceData!E$15,CalculationsAndCharts!$A109+$A$11,IF($C$7,8,0),1,1) -> 2094.08 | G109: =OFFSET(InputPriceData!F$15,CalculationsAndCharts!$A109+$A$11,IF($C$7,8,0),1,1) -> 2108.57 | H109: 4038900000 | J109: 2097.154051 | K109: 0.6204304749 | L109: 0.3129462044 | M109: 31.29462044 | N109: 0 | O109: 0.2265467462 | P109: 22.65467462 | Q109: 10 | R109: 50 | S109: 60
A110: 78 | B110: =OFFSET(InputPriceData!B$15,CalculationsAndCharts!$A110+$A$11,0,1,1) -> 2015-07-28 | C110: =OFFSET(InputPriceData!G$15,CalculationsAndCharts!$A110+$A$11,IF($C$7,8,0),1,1) -> 4117740000 | D110: =OFFSET(InputPriceData!C$15,CalculationsAndCharts!$A110+$A$11,IF($C$7,8,0),1,1) -> 2070.75 | E110: =OFFSET(InputPriceData!D$15,CalculationsAndCharts!$A110+$A$11,IF($C$7,8,0),1,1) -> 2095.6 | F110: =OFFSET(InputPriceData!E$15,CalculationsAndCharts!$A110+$A$11,IF($C$7,8,0),1,1) -> 2069.09 | G110: =OFFSET(InputPriceData!F$15,CalculationsAndCharts!$A110+$A$11,IF($C$7,8,0),1,1) -> 2093.25 | H110: 4117740000 | J110: 2096.688094 | K110: 0.3641954219 | L110: 0.2805794391 | M110: 28.05794391 | N110: 0 | O110: 0.2503937721 | P110: 25.03937721 | Q110: 10 | R110: 50 | S110: 60
A111: 79 | B111: =OFFSET(InputPriceData!B$15,CalculationsAndCharts!$A111+$A$11,0,1,1) -> 2015-07-27 | C111: =OFFSET(InputPriceData!G$15,CalculationsAndCharts!$A111+$A$11,IF($C$7,8,0),1,1) -> 3836750000 | D111: =OFFSET(InputPriceData!C$15,CalculationsAndCharts!$A111+$A$11,IF($C$7,8,0),1,1) -> 2078.19 | E111: =OFFSET(InputPriceData!D$15,CalculationsAndCharts!$A111+$A$11,IF($C$7,8,0),1,1) -> 2078.19 | F111: =OFFSET(InputPriceData!E$15,CalculationsAndCharts!$A111+$A$11,IF($C$7,8,0),1,1) -> 2063.52 | G111: =OFFSET(InputPriceData!F$15,CalculationsAndCharts!$A111+$A$11,IF($C$7,8,0),1,1) -> 2067.64 | I111: 3836750000 | J111: 2096.828424 | K111: 0 | L111: 0.2717777567 | M111: 27.17777567 | N111: 0.7551481668 | O111: 0.2767510113 | P111: 27.67510113 | Q111: 10 | R111: 50 | S111: 60
A112: 80 | B112: =OFFSET(InputPriceData!B$15,CalculationsAndCharts!$A112+$A$11,0,1,1) -> 2015-07-24 | C112: =OFFSET(InputPriceData!G$15,CalculationsAndCharts!$A112+$A$11,IF($C$7,8,0),1,1) -> 3870040000 | D112: =OFFSET(InputPriceData!C$15,CalculationsAndCharts!$A112+$A$11,IF($C$7,8,0),1,1) -> 2102.24 | E112: =OFFSET(InputPriceData!D$15,CalculationsAndCharts!$A112+$A$11,IF($C$7,8,0),1,1) -> 2106.01 | F112: =OFFSET(InputPriceData!E$15,CalculationsAndCharts!$A112+$A$11,IF($C$7,8,0),1,1) -> 2077.09 | G112: =OFFSET(InputPriceData!F$15,CalculationsAndCharts!$A112+$A$11,IF($C$7,8,0),1,1) -> 2079.65 | I112: 3870040000 | J112: 2098.019789 | K112: 0 | L112: 0.3003859416 | M112: 30.03859416 | N112: 0.5847564038 | O112: 0.226393416 | P112: 22.6393416 | Q112: 10 | R112: 50 | S112: 60
A113: 81 | B113: =OFFSET(InputPriceData!B$15,CalculationsAndCharts!$A113+$A$11,0,1,1) -> 2015-07-23 | C113: =OFFSET(InputPriceData!G$15,CalculationsAndCharts!$A113+$A$11,IF($C$7,8,0),1,1) -> 3772810000 | D113: =OFFSET(InputPriceData!C$15,CalculationsAndCharts!$A113+$A$11,IF($C$7,8,0),1,1) -> 2114.16 | E113: =OFFSET(InputPriceData!D$15,CalculationsAndCharts!$A113+$A$11,IF($C$7,8,0),1,1) -> 2116.87 | F113: =OFFSET(InputPriceData!E$15,CalculationsAndCharts!$A113+$A$11,IF($C$7,8,0),1,1) -> 2098.63 | G113: =OFFSET(InputPriceData!F$15,CalculationsAndCharts!$A113+$A$11,IF($C$7,8,0),1,1) -> 2102.15 | I113: 3772810000 | J113: 2098.769576 | K113: 0 | L113: 0.3320055144 | M113: 33.20055144 | N113: 0.3142893019 | O113: 0.1886709962 | P113: 18.86709962 | Q113: 10 | R113: 50 | S113: 60
A114: 82 | B114: =OFFSET(InputPriceData!B$15,CalculationsAndCharts!$A114+$A$11,0,1,1) -> 2015-07-22 | C114: =OFFSET(InputPriceData!G$15,CalculationsAndCharts!$A114+$A$11,IF($C$7,8,0),1,1) -> 3694070000 | D114: =OFFSET(InputPriceData!C$15,CalculationsAndCharts!$A114+$A$11,IF($C$7,8,0),1,1) -> 2118.21 | E114: =OFFSET(InputPriceData!D$15,CalculationsAndCharts!$A114+$A$11,IF($C$7,8,0),1,1) -> 2118.51 | F114: =OFFSET(InputPriceData!E$15,CalculationsAndCharts!$A114+$A$11,IF($C$7,8,0),1,1) -> 2110 | G114: =OFFSET(InputPriceData!F$15,CalculationsAndCharts!$A114+$A$11,IF($C$7,8,0),1,1) -> 2114.15 | I114: 3694070000 | J114: 2098.631599 | K114: 0 | L114: 0.3669534633 | M114: 36.69534633 | N114: 0.1715218483 | O114: 0.1754480167 | P114: 17.54480167 | Q114: 10 | R114: 50 | S114: 60
A115: 83 | B115: =OFFSET(InputPriceData!B$15,CalculationsAndCharts!$A115+$A$11,0,1,1) -> 2015-07-21 | C115: =OFFSET(InputPriceData!G$15,CalculationsAndCharts!$A115+$A$11,IF($C$7,8,0),1,1) -> 3343690000 | D115: =OFFSET(InputPriceData!C$15,CalculationsAndCharts!$A115+$A$11,IF($C$7,8,0),1,1) -> 2127.55 | E115: =OFFSET(InputPriceData!D$15,CalculationsAndCharts!$A115+$A$11,IF($C$7,8,0),1,1) -> 2128.49 | F115: =OFFSET(InputPriceData!E$15,CalculationsAndCharts!$A115+$A$11,IF($C$7,8,0),1,1) -> 2115.4 | G115: =OFFSET(InputPriceData!F$15,CalculationsAndCharts!$A115+$A$11,IF($C$7,8,0),1,1) -> 2119.21 | I115: 3343690000 | J115: 2097.998195 | K115: 0 | L115: 0.4055801437 | M115: 40.55801437 | N115: 0.1037167253 | O115: 0.1758612976 | P115: 17.58612976 | Q115: 10 | R115: 50 | S115: 60
A116: 84 | B116: =OFFSET(InputPriceData!B$15,CalculationsAndCharts!$A116+$A$11,0,1,1) -> 2015-07-20 | C116: =OFFSET(InputPriceData!G$15,CalculationsAndCharts!$A116+$A$11,IF($C$7,8,0),1,1) -> 3245870000 | D116: =OFFSET(InputPriceData!C$15,CalculationsAndCharts!$A116+$A$11,IF($C$7,8,0),1,1) -> 2126.85 | E116: =OFFSET(InputPriceData!D$15,CalculationsAndCharts!$A116+$A$11,IF($C$7,8,0),1,1) -> 2132.82 | F116: =OFFSET(InputPriceData!E$15,CalculationsAndCharts!$A116+$A$11,IF($C$7,8,0),1,1) -> 2123.66 | G116: =OFFSET(InputPriceData!F$15,CalculationsAndCharts!$A116+$A$11,IF($C$7,8,0),1,1) -> 2128.28 | H116: 3245870000 | J116: 2097.132407 | K116: 1 | L116: 0.4482727904 | M116: 44.82727904 | N116: 0 | O116: 0.1834554631 | P116: 18.34554631 | Q116: 10 | R116: 50 | S116: 60
A117: 85 | B117: =OFFSET(InputPriceData!B$15,CalculationsAndCharts!$A117+$A$11,0,1,1) -> 2015-07-17 | C117: =OFFSET(InputPriceData!G$15,CalculationsAndCharts!$A117+$A$11,IF($C$7,8,0),1,1) -> 3362750000 | D117: =OFFSET(InputPriceData!C$15,CalculationsAndCharts!$A117+$A$11,IF($C$7,8,0),1,1) -> 2126.8 | E117: =OFFSET(InputPriceData!D$15,CalculationsAndCharts!$A117+$A$11,IF($C$7,8,0),1,1) -> 2128.91 | F117: =OFFSET(InputPriceData!E$15,CalculationsAndCharts!$A117+$A$11,IF($C$7,8,0),1,1) -> 2119.88 | G117: =OFFSET(InputPriceData!F$15,CalculationsAndCharts!$A117+$A$11,IF($C$7,8,0),1,1) -> 2126.64 | I117: 3362750000 | J117: 2095.861077 | K117: 0.982730707 | L117: 0.390196242 | M117: 39.0196242 | N117: 0 | O117: 0.2027665645 | P117: 20.27665645 | Q117: 10 | R117: 50 | S117: 60
A118: 86 | B118: =OFFSET(InputPriceData!B$15,CalculationsAndCharts!$A118+$A$11,0,1,1) -> 2015-07-16 | C118: =OFFSET(InputPriceData!G$15,CalculationsAndCharts!$A118+$A$11,IF($C$7,8,0),1,1) -> 3227080000 | D118: =OFFSET(InputPriceData!C$15,CalculationsAndCharts!$A118+$A$11,IF($C$7,8,0),1,1) -> 2110.55 | E118: =OFFSET(InputPriceData!D$15,CalculationsAndCharts!$A118+$A$11,IF($C$7,8,0),1,1) -> 2124.42 | F118: =OFFSET(InputPriceData!E$15,CalculationsAndCharts!$A118+$A$11,IF($C$7,8,0),1,1) -> 2110.55 | G118: =OFFSET(InputPriceData!F$15,CalculationsAndCharts!$A118+$A$11,IF($C$7,8,0),1,1) -> 2124.29 | H118: 3227080000 | J118: 2094.604794 | K118: 0.9019607843 | L118: 0.3278241931 | M118: 32.78241931 | N118: 0 | O118: 0.2241104133 | P118: 22.41104133 | Q118: 10 | R118: 50 | S118: 60
A119: 87 | B119: =OFFSET(InputPriceData!B$15,CalculationsAndCharts!$A119+$A$11,0,1,1) -> 2015-07-15 | C119: =OFFSET(InputPriceData!G$15,CalculationsAndCharts!$A119+$A$11,IF($C$7,8,0),1,1) -> 3261810000 | D119: =OFFSET(InputPriceData!C$15,CalculationsAndCharts!$A119+$A$11,IF($C$7,8,0),1,1) -> 2109.01 | E119: =OFFSET(InputPriceData!D$15,CalculationsAndCharts!$A119+$A$11,IF($C$7,8,0),1,1) -> 2114.14 | F119: =OFFSET(InputPriceData!E$15,CalculationsAndCharts!$A119+$A$11,IF($C$7,8,0),1,1) -> 2102.49 | G119: =OFFSET(InputPriceData!F$15,CalculationsAndCharts!$A119+$A$11,IF($C$7,8,0),1,1) -> 2107.4 | I119: 3261810000 | J119: 2093.393153 | K119: 0.717035438 | L119: 0.2673887624 | M119: 26.73887624 | N119: 0 | O119: 0.2477009832 | P119: 24.77009832 | Q119: 10 | R119: 50 | S119: 60
A120: 88 | B120: =OFFSET(InputPriceData!B$15,CalculationsAndCharts!$A120+$A$11,0,1,1) -> 2015-07-14 | C120: =OFFSET(InputPriceData!G$15,CalculationsAndCharts!$A120+$A$11,IF($C$7,8,0),1,1) -> 3002120000 | D120: =OFFSET(InputPriceData!C$15,CalculationsAndCharts!$A120+$A$11,IF($C$7,8,0),1,1) -> 2099.72 | E120: =OFFSET(InputPriceData!D$15,CalculationsAndCharts!$A120+$A$11,IF($C$7,8,0),1,1) -> 2111.98 | F120: =OFFSET(InputPriceData!E$15,CalculationsAndCharts!$A120+$A$11,IF($C$7,8,0),1,1) -> 2098.18 | G120: =OFFSET(InputPriceData!F$15,CalculationsAndCharts!$A120+$A$11,IF($C$7,8,0),1,1) -> 2108.95 | H120: 3002120000 | J120: 2092.821445 | K120: 0.6781795287 | L120: 0.2200575334 | M120: 22.00575334 | N120: 0 | O120: 0.2737747709 | P120: 27.37747709 | Q120: 10 | R120: 50 | S120: 60
A121: 89 | B121: =OFFSET(InputPriceData!B$15,CalculationsAndCharts!$A121+$A$11,0,1,1) -> 2015-07-13 | C121: =OFFSET(InputPriceData!G$15,CalculationsAndCharts!$A121+$A$11,IF($C$7,8,0),1,1) -> 3096730000 | D121: =OFFSET(InputPriceData!C$15,CalculationsAndCharts!$A121+$A$11,IF($C$7,8,0),1,1) -> 2080.03 | E121: =OFFSET(InputPriceData!D$15,CalculationsAndCharts!$A121+$A$11,IF($C$7,8,0),1,1) -> 2100.67 | F121: =OFFSET(InputPriceData!E$15,CalculationsAndCharts!$A121+$A$11,IF($C$7,8,0),1,1) -> 2080.03 | G121: =OFFSET(InputPriceData!F$15,CalculationsAndCharts!$A121+$A$11,IF($C$7,8,0),1,1) -> 2099.6 | H121: 3096730000 | J121: 2092.163137 | K121: 0.4747256701 | L121: 0.1718341655 | M121: 17.18341655 | N121: 0 | O121: 0.3025931678 | P121: 30.25931678 | Q121: 10 | R121: 50 | S121: 60
A122: 90 | B122: =OFFSET(InputPriceData!B$15,CalculationsAndCharts!$A122+$A$11,0,1,1) -> 2015-07-10 | C122: =OFFSET(InputPriceData!G$15,CalculationsAndCharts!$A122+$A$11,IF($C$7,8,0),1,1) -> 3065070000 | D122: =OFFSET(InputPriceData!C$15,CalculationsAndCharts!$A122+$A$11,IF($C$7,8,0),1,1) -> 2052.74 | E122: =OFFSET(InputPriceData!D$15,CalculationsAndCharts!$A122+$A$11,IF($C$7,8,0),1,1) -> 2081.31 | F122: =OFFSET(InputPriceData!E$15,CalculationsAndCharts!$A122+$A$11,IF($C$7,8,0),1,1) -> 2052.74 | G122: =OFFSET(InputPriceData!F$15,CalculationsAndCharts!$A122+$A$11,IF($C$7,8,0),1,1) -> 2076.62 | H122: 3065070000 | J122: 2091.859592 | K122: 0.1264615938 | L122: 0.1399508492 | M122: 13.99508492 | N122: 0 | O122: 0.3344450802 | P122: 33.44450802 | Q122: 10 | R122: 50 | S122: 60
A123: 91 | B123: =OFFSET(InputPriceData!B$15,CalculationsAndCharts!$A123+$A$11,0,1,1) -> 2015-07-09 | C123: =OFFSET(InputPriceData!G$15,CalculationsAndCharts!$A123+$A$11,IF($C$7,8,0),1,1) -> 3446810000 | D123: =OFFSET(InputPriceData!C$15,CalculationsAndCharts!$A123+$A$11,IF($C$7,8,0),1,1) -> 2049.73 | E123: =OFFSET(InputPriceData!D$15,CalculationsAndCharts!$A123+$A$11,IF($C$7,8,0),1,1) -> 2074.28 | F123: =OFFSET(InputPriceData!E$15,CalculationsAndCharts!$A123+$A$11,IF($C$7,8,0),1,1) -> 2049.73 | G123: =OFFSET(InputPriceData!F$15,CalculationsAndCharts!$A123+$A$11,IF($C$7,8,0),1,1) -> 2051.31 | H123: 3446810000 | J123: 2092.481616 | K123: 0 | L123: 0.1413707708 | M123: 14.13707708 | N123: 0 | O123: 0.3696498255 | P123: 36.96498255 | Q123: 10 | R123: 50 | S123: 60
A124: 92 | B124: =OFFSET(InputPriceData!B$15,CalculationsAndCharts!$A124+$A$11,0,1,1) -> 2015-07-08 | C124: =OFFSET(InputPriceData!G$15,CalculationsAndCharts!$A124+$A$11,IF($C$7,8,0),1,1) -> 3608780000 | D124: =OFFSET(InputPriceData!C$15,CalculationsAndCharts!$A124+$A$11,IF($C$7,8,0),1,1) -> 2077.66 | E124: =OFFSET(InputPriceData!D$15,CalculationsAndCharts!$A124+$A$11,IF($C$7,8,0),1,1) -> 2077.66 | F124: =OFFSET(InputPriceData!E$15,CalculationsAndCharts!$A124+$A$11,IF($C$7,8,0),1,1) -> 2044.66 | G124: =OFFSET(InputPriceData!F$15,CalculationsAndCharts!$A124+$A$11,IF($C$7,8,0),1,1) -> 2046.68 | I124: 3608780000 | J124: 2094.16209 | K124: 0 | L124: 0.1562519046 | M124: 15.62519046 | N124: 0 | O124: 0.4085603334 | P124: 40.85603334 | Q124: 10 | R124: 50 | S124: 60
A125: 93 | B125: =OFFSET(InputPriceData!B$15,CalculationsAndCharts!$A125+$A$11,0,1,1) -> 2015-07-07 | C125: =OFFSET(InputPriceData!G$15,CalculationsAndCharts!$A125+$A$11,IF($C$7,8,0),1,1) -> 4458660000 | D125: =OFFSET(InputPriceData!C$15,CalculationsAndCharts!$A125+$A$11,IF($C$7,8,0),1,1) -> 2069.52 | E125: =OFFSET(InputPriceData!D$15,CalculationsAndCharts!$A125+$A$11,IF($C$7,8,0),1,1) -> 2083.74 | F125: =OFFSET(InputPriceData!E$15,CalculationsAndCharts!$A125+$A$11,IF($C$7,8,0),1,1) -> 2044.02 | G125: =OFFSET(InputPriceData!F$15,CalculationsAndCharts!$A125+$A$11,IF($C$7,8,0),1,1) -> 2081.34 | H125: 4458660000 | J125: 2096.100134 | K125: 0.1701744918 | L125: 0.1726994735 | M125: 17.26994735 | N125: 1 | O125: 0.4515666843 | P125: 45.15666843 | Q125: 10 | R125: 50 | S125: 60
A126: 94 | B126: =OFFSET(InputPriceData!B$15,CalculationsAndCharts!$A126+$A$11,0,1,1) -> 2015-07-06 | C126: =OFFSET(InputPriceData!G$15,CalculationsAndCharts!$A126+$A$11,IF($C$7,8,0),1,1) -> 3486360000 | D126: =OFFSET(InputPriceData!C$15,CalculationsAndCharts!$A126+$A$11,IF($C$7,8,0),1,1) -> 2073.95 | E126: =OFFSET(InputPriceData!D$15,CalculationsAndCharts!$A126+$A$11,IF($C$7,8,0),1,1) -> 2078.61 | F126: =OFFSET(InputPriceData!E$15,CalculationsAndCharts!$A126+$A$11,IF($C$7,8,0),1,1) -> 2058.4 | G126: =OFFSET(InputPriceData!F$15,CalculationsAndCharts!$A126+$A$11,IF($C$7,8,0),1,1) -> 2068.76 | I126: 3486360000 | J126: 2096.702589 | K126: 0 | L126: 0.172965261 | M126: 17.2965261 | N126: 0.9672801636 | O126: 0.3938368616 | P126: 39.38368616 | Q126: 10 | R126: 50 | S126: 60
A127: 95 | B127: =OFFSET(InputPriceData!B$15,CalculationsAndCharts!$A127+$A$11,0,1,1) -> 2015-07-02 | C127: =OFFSET(InputPriceData!G$15,CalculationsAndCharts!$A127+$A$11,IF($C$7,8,0),1,1) -> 2996540000 | D127: =OFFSET(InputPriceData!C$15,CalculationsAndCharts!$A127+$A$11,IF($C$7,8,0),1,1) -> 2078.03 | E127: =OFFSET(InputPriceData!D$15,CalculationsAndCharts!$A127+$A$11,IF($C$7,8,0),1,1) -> 2085.06 | F127: =OFFSET(InputPriceData!E$15,CalculationsAndCharts!$A127+$A$11,IF($C$7,8,0),1,1) -> 2071.02 | G127: =OFFSET(InputPriceData!F$15,CalculationsAndCharts!$A127+$A$11,IF($C$7,8,0),1,1) -> 2076.78 | I127: 2996540000 | J127: 2097.843103 | K127: 0.1939197697 | L127: 0.1911721306 | M127: 19.11721306 | N127: 0 | O127: 0.3334744088 | P127: 33.34744088 | Q127: 10 | R127: 50 | S127: 60
A128: 96 | B128: =OFFSET(InputPriceData!B$15,CalculationsAndCharts!$A128+$A$11,0,1,1) -> 2015-07-01 | C128: =OFFSET(InputPriceData!G$15,CalculationsAndCharts!$A128+$A$11,IF($C$7,8,0),1,1) -> 3727260000 | D128: =OFFSET(InputPriceData!C$15,CalculationsAndCharts!$A128+$A$11,IF($C$7,8,0),1,1) -> 2067 | E128: =OFFSET(InputPriceData!D$15,CalculationsAndCharts!$A128+$A$11,IF($C$7,8,0),1,1) -> 2082.78 | F128: =OFFSET(InputPriceData!E$15,CalculationsAndCharts!$A128+$A$11,IF($C$7,8,0),1,1) -> 2067 | G128: =OFFSET(InputPriceData!F$15,CalculationsAndCharts!$A128+$A$11,IF($C$7,8,0),1,1) -> 2077.42 | H128: 3727260000 | J128: 2098.702821 | K128: 0.1529051988 | L128: 0.1908829055 | M128: 19.08829055 | N128: 0 | O128: 0.3685769781 | P128: 36.85769781 | Q128: 10 | R128: 50 | S128: 60
A129: 97 | B129: =OFFSET(InputPriceData!B$15,CalculationsAndCharts!$A129+$A$11,0,1,1) -> 2015-06-30 | C129: =OFFSET(InputPriceData!G$15,CalculationsAndCharts!$A129+$A$11,IF($C$7,8,0),1,1) -> 4078540000 | D129: =OFFSET(InputPriceData!C$15,CalculationsAndCharts!$A129+$A$11,IF($C$7,8,0),1,1) -> 2061.19 | E129: =OFFSET(InputPriceData!D$15,CalculationsAndCharts!$A129+$A$11,IF($C$7,8,0),1,1) -> 2074.28 | F129: =OFFSET(InputPriceData!E$15,CalculationsAndCharts!$A129+$A$11,IF($C$7,8,0),1,1) -> 2056.32 | G129: =OFFSET(InputPriceData!F$15,CalculationsAndCharts!$A129+$A$11,IF($C$7,8,0),1,1) -> 2063.11 | H129: 4078540000 | J129: 2099.571508 | K129: 0 | L129: 0.1948805588 | M129: 19.48805588 | N129: 1 | O129: 0.4073745548 | P129: 40.73745548 | Q129: 10 | R129: 50 | S129: 60
A130: 98 | B130: =OFFSET(InputPriceData!B$15,CalculationsAndCharts!$A130+$A$11,0,1,1) -> 2015-06-29 | C130: =OFFSET(InputPriceData!G$15,CalculationsAndCharts!$A130+$A$11,IF($C$7,8,0),1,1) -> 3678960000 | D130: =OFFSET(InputPriceData!C$15,CalculationsAndCharts!$A130+$A$11,IF($C$7,8,0),1,1) -> 2098.63 | E130: =OFFSET(InputPriceData!D$15,CalculationsAndCharts!$A130+$A$11,IF($C$7,8,0),1,1) -> 2098.63 | F130: =OFFSET(InputPriceData!E$15,CalculationsAndCharts!$A130+$A$11,IF($C$7,8,0),1,1) -> 2056.64 | G130: =OFFSET(InputPriceData!F$15,CalculationsAndCharts!$A130+$A$11,IF($C$7,8,0),1,1) -> 2057.64 | I130: 3678960000 | J130: 2101.059732 | K130: 0 | L130: 0.2153943018 | M130: 21.53943018 | N130: 1 | O130: 0.344992929 | P130: 34.4992929 | Q130: 10 | R130: 50 | S130: 60
A131: 99 | B131: =OFFSET(InputPriceData!B$15,CalculationsAndCharts!$A131+$A$11,0,1,1) -> 2015-06-26 | C131: =OFFSET(InputPriceData!G$15,CalculationsAndCharts!$A131+$A$11,IF($C$7,8,0),1,1) -> 5025470000 | D131: =OFFSET(InputPriceData!C$15,CalculationsAndCharts!$A131+$A$11,IF($C$7,8,0),1,1) -> 2102.62 | E131: =OFFSET(InputPriceData!D$15,CalculationsAndCharts!$A131+$A$11,IF($C$7,8,0),1,1) -> 2108.92 | F131: =OFFSET(InputPriceData!E$15,CalculationsAndCharts!$A131+$A$11,IF($C$7,8,0),1,1) -> 2095.38 | G131: =OFFSET(InputPriceData!F$15,CalculationsAndCharts!$A131+$A$11,IF($C$7,8,0),1,1) -> 2101.49 | I131: 5025470000 | J131: 2102.831966 | K131: 0 | L131: 0.2380673862 | M131: 23.80673862 | N131: 0.5132984293 | O131: 0.2760448162 | P131: 27.60448162 | Q131: 10 | R131: 50 | S131: 60
A132: 100 | B132: =OFFSET(InputPriceData!B$15,CalculationsAndCharts!$A132+$A$11,0,1,1) -> 2015-06-25 | C132: =OFFSET(InputPriceData!G$15,CalculationsAndCharts!$A132+$A$11,IF($C$7,8,0),1,1) -> 3214610000 | D132: =OFFSET(InputPriceData!C$15,CalculationsAndCharts!$A132+$A$11,IF($C$7,8,0),1,1) -> 2109.96 | E132: =OFFSET(InputPriceData!D$15,CalculationsAndCharts!$A132+$A$11,IF($C$7,8,0),1,1) -> 2116.04 | F132: =OFFSET(InputPriceData!E$15,CalculationsAndCharts!$A132+$A$11,IF($C$7,8,0),1,1) -> 2101.78 | G132: =OFFSET(InputPriceData!F$15,CalculationsAndCharts!$A132+$A$11,IF($C$7,8,0),1,1) -> 2102.31 | I132: 3214610000 | J132: 2102.886741 | K132: 0 | L132: 0.2631271111 | M132: 26.31271111 | N132: 0.3792670157 | O132: 0.2510707517 | P132: 25.10707517 | Q132: 10 | R132: 50 | S132: 60
A133: 101 | B133: =OFFSET(InputPriceData!B$15,CalculationsAndCharts!$A133+$A$11,0,1,1) -> 2015-06-24 | C133: =OFFSET(InputPriceData!G$15,CalculationsAndCharts!$A133+$A$11,IF($C$7,8,0),1,1) -> 3102480000 | D133: =OFFSET(InputPriceData!C$15,CalculationsAndCharts!$A133+$A$11,IF($C$7,8,0),1,1) -> 2123.65 | E133: =OFFSET(InputPriceData!D$15,CalculationsAndCharts!$A133+$A$11,IF($C$7,8,0),1,1) -> 2125.1 | F133: =OFFSET(InputPriceData!E$15,CalculationsAndCharts!$A133+$A$11,IF($C$7,8,0),1,1) -> 2108.58 | G133: =OFFSET(InputPriceData!F$15,CalculationsAndCharts!$A133+$A$11,IF($C$7,8,0),1,1) -> 2108.58 | I133: 3102480000 | J133: 2102.910281 | K133: 0 | L133: 0.2908247017 | M133: 29.08247017 | N133: 0.2368586387 | O133: 0.2375764081 | P133: 23.75764081 | Q133: 10 | R133: 50 | S133: 60
A134: 102 | B134: =OFFSET(InputPriceData!B$15,CalculationsAndCharts!$A134+$A$11,0,1,1) -> 2015-06-23 | C134: =OFFSET(InputPriceData!G$15,CalculationsAndCharts!$A134+$A$11,IF($C$7,8,0),1,1) -> 3091190000 | D134: =OFFSET(InputPriceData!C$15,CalculationsAndCharts!$A134+$A$11,IF($C$7,8,0),1,1) -> 2123.16 | E134: =OFFSET(InputPriceData!D$15,CalculationsAndCharts!$A134+$A$11,IF($C$7,8,0),1,1) -> 2128.03 | F134: =OFFSET(InputPriceData!E$15,CalculationsAndCharts!$A134+$A$11,IF($C$7,8,0),1,1) -> 2119.89 | G134: =OFFSET(InputPriceData!F$15,CalculationsAndCharts!$A134+$A$11,IF($C$7,8,0),1,1) -> 2124.2 | H134: 3091190000 | J134: 2102.678864 | K134: 0 | L134: 0.3214378282 | M134: 32.14378282 | N134: 0 | O134: 0.2376519628 | P134: 23.76519628 | Q134: 10 | R134: 50 | S134: 60
A135: 103 | B135: =OFFSET(InputPriceData!B$15,CalculationsAndCharts!$A135+$A$11,0,1,1) -> 2015-06-22 | C135: =OFFSET(InputPriceData!G$15,CalculationsAndCharts!$A135+$A$11,IF($C$7,8,0),1,1) -> 3030020000 | D135: =OFFSET(InputPriceData!C$15,CalculationsAndCharts!$A135+$A$11,IF($C$7,8,0),1,1) -> 2112.5 | E135: =OFFSET(InputPriceData!D$15,CalculationsAndCharts!$A135+$A$11,IF($C$7,8,0),1,1) -> 2129.87 | F135: =OFFSET(InputPriceData!E$15,CalculationsAndCharts!$A135+$A$11,IF($C$7,8,0),1,1) -> 2112.5 | G135: =OFFSET(InputPriceData!F$15,CalculationsAndCharts!$A135+$A$11,IF($C$7,8,0),1,1) -> 2122.85 | H135: 3030020000 | J135: 2101.80045 | K135: 1 | L135: 0.3552733891 | M135: 35.52733891 | N135: 0 | O135: 0.2626679588 | P135: 26.26679588 | Q135: 10 | R135: 50 | S135: 60
A136: 104 | B136: =OFFSET(InputPriceData!B$15,CalculationsAndCharts!$A136+$A$11,0,1,1) -> 2015-06-19 | C136: =OFFSET(InputPriceData!G$15,CalculationsAndCharts!$A136+$A$11,IF($C$7,8,0),1,1) -> 4449810000 | D136: =OFFSET(InputPriceData!C$15,CalculationsAndCharts!$A136+$A$11,IF($C$7,8,0),1,1) -> 2121.06 | E136: =OFFSET(InputPriceData!D$15,CalculationsAndCharts!$A136+$A$11,IF($C$7,8,0),1,1) -> 2121.64 | F136: =OFFSET(InputPriceData!E$15,CalculationsAndCharts!$A136+$A$11,IF($C$7,8,0),1,1) -> 2109.45 | G136: =OFFSET(InputPriceData!F$15,CalculationsAndCharts!$A136+$A$11,IF($C$7,8,0),1,1) -> 2109.99 | I136: 4449810000 | J136: 2100.941285 | K136: 0 | L136: 0.2874074301 | M136: 28.74074301 | N136: 0 | O136: 0.2903172177 | P136: 29.03172177 | Q136: 10 | R136: 50 | S136: 60
A137: 105 | B137: =OFFSET(InputPriceData!B$15,CalculationsAndCharts!$A137+$A$11,0,1,1) -> 2015-06-18 | C137: =OFFSET(InputPriceData!G$15,CalculationsAndCharts!$A137+$A$11,IF($C$7,8,0),1,1) -> 3520360000 | D137: =OFFSET(InputPriceData!C$15,CalculationsAndCharts!$A137+$A$11,IF($C$7,8,0),1,1) -> 2101.58 | E137: =OFFSET(InputPriceData!D$15,CalculationsAndCharts!$A137+$A$11,IF($C$7,8,0),1,1) -> 2126.65 | F137: =OFFSET(InputPriceData!E$15,CalculationsAndCharts!$A137+$A$11,IF($C$7,8,0),1,1) -> 2101.58 | G137: =OFFSET(InputPriceData!F$15,CalculationsAndCharts!$A137+$A$11,IF($C$7,8,0),1,1) -> 2121.24 | H137: 3520360000 | J137: 2100.571949 | K137: 0.8431976983 | L137: 0.3176608438 | M137: 31.76608438 | N137: 0 | O137: 0.3208769248 | P137: 32.08769248 | Q137: 10 | R137: 50 | S137: 60
A138: 106 | B138: =OFFSET(InputPriceData!B$15,CalculationsAndCharts!$A138+$A$11,0,1,1) -> 2015-06-17 | C138: =OFFSET(InputPriceData!G$15,CalculationsAndCharts!$A138+$A$11,IF($C$7,8,0),1,1) -> 3222240000 | D138: =OFFSET(InputPriceData!C$15,CalculationsAndCharts!$A138+$A$11,IF($C$7,8,0),1,1) -> 2097.4 | E138: =OFFSET(InputPriceData!D$15,CalculationsAndCharts!$A138+$A$11,IF($C$7,8,0),1,1) -> 2106.79 | F138: =OFFSET(InputPriceData!E$15,CalculationsAndCharts!$A138+$A$11,IF($C$7,8,0),1,1) -> 2088.86 | G138: =OFFSET(InputPriceData!F$15,CalculationsAndCharts!$A138+$A$11,IF($C$7,8,0),1,1) -> 2100.44 | H138: 3222240000 | J138: 2099.728356 | K138: 0.4311608961 | L138: 0.2623411749 | M138: 26.23411749 | N138: 0 | O138: 0.3546534432 | P138: 35.46534432 | Q138: 10 | R138: 50 | S138: 60
A139: 107 | B139: =OFFSET(InputPriceData!B$15,CalculationsAndCharts!$A139+$A$11,0,1,1) -> 2015-06-16 | C139: =OFFSET(InputPriceData!G$15,CalculationsAndCharts!$A139+$A$11,IF($C$7,8,0),1,1) -> 2919900000 | D139: =OFFSET(InputPriceData!C$15,CalculationsAndCharts!$A139+$A$11,IF($C$7,8,0),1,1) -> 2084.26 | E139: =OFFSET(InputPriceData!D$15,CalculationsAndCharts!$A139+$A$11,IF($C$7,8,0),1,1) -> 2097.4 | F139: =OFFSET(InputPriceData!E$15,CalculationsAndCharts!$A139+$A$11,IF($C$7,8,0),1,1) -> 2082.1 | G139: =OFFSET(InputPriceData!F$15,CalculationsAndCharts!$A139+$A$11,IF($C$7,8,0),1,1) -> 2096.29 | H139: 2919900000 | J139: 2099.699309 | K139: 0.2399185336 | L139: 0.2445706779 | M139: 24.45706779 | N139: 0 | O139: 0.3919853846 | P139: 39.19853846 | Q139: 10 | R139: 50 | S139: 60
A140: 108 | B140: =OFFSET(InputPriceData!B$15,CalculationsAndCharts!$A140+$A$11,0,1,1) -> 2015-06-15 | C140: =OFFSET(InputPriceData!G$15,CalculationsAndCharts!$A140+$A$11,IF($C$7,8,0),1,1) -> 3061570000 | D140: =OFFSET(InputPriceData!C$15,CalculationsAndCharts!$A140+$A$11,IF($C$7,8,0),1,1) -> 2091.34 | E140: =OFFSET(InputPriceData!D$15,CalculationsAndCharts!$A140+$A$11,IF($C$7,8,0),1,1) -> 2091.34 | F140: =OFFSET(InputPriceData!E$15,CalculationsAndCharts!$A140+$A$11,IF($C$7,8,0),1,1) -> 2072.49 | G140: =OFFSET(InputPriceData!F$15,CalculationsAndCharts!$A140+$A$11,IF($C$7,8,0),1,1) -> 2084.43 | I140: 3061570000 | J140: 2099.838464 | K140: 0 | L140: 0.2450603773 | M140: 24.50603773 | N140: 0.9935089021 | O140: 0.433247004 | P140: 43.3247004 | Q140: 10 | R140: 50 | S140: 60
A141: 109 | B141: =OFFSET(InputPriceData!B$15,CalculationsAndCharts!$A141+$A$11,0,1,1) -> 2015-06-12 | C141: =OFFSET(InputPriceData!G$15,CalculationsAndCharts!$A141+$A$11,IF($C$7,8,0),1,1) -> 2719400000 | D141: =OFFSET(InputPriceData!C$15,CalculationsAndCharts!$A141+$A$11,IF($C$7,8,0),1,1) -> 2107.43 | E141: =OFFSET(InputPriceData!D$15,CalculationsAndCharts!$A141+$A$11,IF($C$7,8,0),1,1) -> 2107.43 | F141: =OFFSET(InputPriceData!E$15,CalculationsAndCharts!$A141+$A$11,IF($C$7,8,0),1,1) -> 2091.33 | G141: =OFFSET(InputPriceData!F$15,CalculationsAndCharts!$A141+$A$11,IF($C$7,8,0),1,1) -> 2094.11 | I141: 2719400000 | J141: 2100.467381 | K141: 0 | L141: 0.2708562065 | M141: 27.08562065 | N141: 0.6441023739 | O141: 0.3742720674 | P141: 37.42720674 | Q141: 10 | R141: 50 | S141: 60
A142: 110 | B142: =OFFSET(InputPriceData!B$15,CalculationsAndCharts!$A142+$A$11,0,1,1) -> 2015-06-11 | C142: =OFFSET(InputPriceData!G$15,CalculationsAndCharts!$A142+$A$11,IF($C$7,8,0),1,1) -> 3128600000 | D142: =OFFSET(InputPriceData!C$15,CalculationsAndCharts!$A142+$A$11,IF($C$7,8,0),1,1) -> 2106.24 | E142: =OFFSET(InputPriceData!D$15,CalculationsAndCharts!$A142+$A$11,IF($C$7,8,0),1,1) -> 2115.02 | F142: =OFFSET(InputPriceData!E$15,CalculationsAndCharts!$A142+$A$11,IF($C$7,8,0),1,1) -> 2106.24 | G142: =OFFSET(InputPriceData!F$15,CalculationsAndCharts!$A142+$A$11,IF($C$7,8,0),1,1) -> 2108.86 | H142: 3128600000 | J142: 2100.726866 | K142: 0.5987780041 | L142: 0.2993673861 | M142: 29.93673861 | N142: 0 | O142: 0.3458688772 | P142: 34.58688772 | Q142: 10 | R142: 50 | S142: 60
A143: 111 | B143: =OFFSET(InputPriceData!B$15,CalculationsAndCharts!$A143+$A$11,0,1,1) -> 2015-06-10 | C143: =OFFSET(InputPriceData!G$15,CalculationsAndCharts!$A143+$A$11,IF($C$7,8,0),1,1) -> 3414320000 | D143: =OFFSET(InputPriceData!C$15,CalculationsAndCharts!$A143+$A$11,IF($C$7,8,0),1,1) -> 2081.12 | E143: =OFFSET(InputPriceData!D$15,CalculationsAndCharts!$A143+$A$11,IF($C$7,8,0),1,1) -> 2108.5 | F143: =OFFSET(InputPriceData!E$15,CalculationsAndCharts!$A143+$A$11,IF($C$7,8,0),1,1) -> 2081.12 | G143: =OFFSET(InputPriceData!F$15,CalculationsAndCharts!$A143+$A$11,IF($C$7,8,0),1,1) -> 2105.2 | H143: 3414320000 | J143: 2100.394902 | K143: 0.46598778 | L143: 0.2678504789 | M143: 26.78504789 | N143: 0 | O143: 0.3822761274 | P143: 38.22761274 | Q143: 10 | R143: 50 | S143: 60
A144: 112 | B144: =OFFSET(InputPriceData!B$15,CalculationsAndCharts!$A144+$A$11,0,1,1) -> 2015-06-09 | C144: =OFFSET(InputPriceData!G$15,CalculationsAndCharts!$A144+$A$11,IF($C$7,8,0),1,1) -> 3034580000 | D144: =OFFSET(InputPriceData!C$15,CalculationsAndCharts!$A144+$A$11,IF($C$7,8,0),1,1) -> 2079.07 | E144: =OFFSET(InputPriceData!D$15,CalculationsAndCharts!$A144+$A$11,IF($C$7,8,0),1,1) -> 2085.62 | F144: =OFFSET(InputPriceData!E$15,CalculationsAndCharts!$A144+$A$11,IF($C$7,8,0),1,1) -> 2072.14 | G144: =OFFSET(InputPriceData!F$15,CalculationsAndCharts!$A144+$A$11,IF($C$7,8,0),1,1) -> 2080.15 | H144: 3034580000 | J144: 2100.198775 | K144: 0 | L144: 0.2469939209 | M144: 24.69939209 | N144: 1 | O144: 0.4225157198 | P144: 42.25157198 | Q144: 10 | R144: 50 | S144: 60
A145: 113 | B145: =OFFSET(InputPriceData!B$15,CalculationsAndCharts!$A145+$A$11,0,1,1) -> 2015-06-08 | C145: =OFFSET(InputPriceData!G$15,CalculationsAndCharts!$A145+$A$11,IF($C$7,8,0),1,1) -> 2917150000 | D145: =OFFSET(InputPriceData!C$15,CalculationsAndCharts!$A145+$A$11,IF($C$7,8,0),1,1) -> 2092.34 | E145: =OFFSET(InputPriceData!D$15,CalculationsAndCharts!$A145+$A$11,IF($C$7,8,0),1,1) -> 2093.01 | F145: =OFFSET(InputPriceData!E$15,CalculationsAndCharts!$A145+$A$11,IF($C$7,8,0),1,1) -> 2079.11 | G145: =OFFSET(InputPriceData!F$15,CalculationsAndCharts!$A145+$A$11,IF($C$7,8,0),1,1) -> 2079.28 | I145: 2917150000 | J145: 2101.017092 | K145: 0 | L145: 0.272993281 | M145: 27.2993281 | N145: 1 | O145: 0.3617279008 | P145: 36.17279008 | Q145: 10 | R145: 50 | S145: 60
A146: 114 | B146: =OFFSET(InputPriceData!B$15,CalculationsAndCharts!$A146+$A$11,0,1,1) -> 2015-06-05 | C146: =OFFSET(InputPriceData!G$15,CalculationsAndCharts!$A146+$A$11,IF($C$7,8,0),1,1) -> 3243690000 | D146: =OFFSET(InputPriceData!C$15,CalculationsAndCharts!$A146+$A$11,IF($C$7,8,0),1,1) -> 2095.09 | E146: =OFFSET(InputPriceData!D$15,CalculationsAndCharts!$A146+$A$11,IF($C$7,8,0),1,1) -> 2100.99 | F146: =OFFSET(InputPriceData!E$15,CalculationsAndCharts!$A146+$A$11,IF($C$7,8,0),1,1) -> 2085.67 | G146: =OFFSET(InputPriceData!F$15,CalculationsAndCharts!$A146+$A$11,IF($C$7,8,0),1,1) -> 2092.83 | I146: 3243690000 | J146: 2101.904321 | K146: 0 | L146: 0.3017294159 | M146: 30.17294159 | N146: 0.9975302544 | O146: 0.2945413641 | P146: 29.45413641 | Q146: 10 | R146: 50 | S146: 60
A147: 115 | B147: =OFFSET(InputPriceData!B$15,CalculationsAndCharts!$A147+$A$11,0,1,1) -> 2015-06-04 | C147: =OFFSET(InputPriceData!G$15,CalculationsAndCharts!$A147+$A$11,IF($C$7,8,0),1,1) -> 3200050000 | D147: =OFFSET(InputPriceData!C$15,CalculationsAndCharts!$A147+$A$11,IF($C$7,8,0),1,1) -> 2112.35 | E147: =OFFSET(InputPriceData!D$15,CalculationsAndCharts!$A147+$A$11,IF($C$7,8,0),1,1) -> 2112.89 | F147: =OFFSET(InputPriceData!E$15,CalculationsAndCharts!$A147+$A$11,IF($C$7,8,0),1,1) -> 2093.23 | G147: =OFFSET(InputPriceData!F$15,CalculationsAndCharts!$A147+$A$11,IF($C$7,8,0),1,1) -> 2095.84 | I147: 3200050000 | J147: 2102.274701 | K147: 0 | L147: 0.333490407 | M147: 33.3490407 | N147: 0.6428431565 | O147: 0.2205425335 | P147: 22.05425335 | Q147: 10 | R147: 50 | S147: 60
A148: 116 | B148: =OFFSET(InputPriceData!B$15,CalculationsAndCharts!$A148+$A$11,0,1,1) -> 2015-06-03 | C148: =OFFSET(InputPriceData!G$15,CalculationsAndCharts!$A148+$A$11,IF($C$7,8,0),1,1) -> 3099980000 | D148: =OFFSET(InputPriceData!C$15,CalculationsAndCharts!$A148+$A$11,IF($C$7,8,0),1,1) -> 2110.64 | E148: =OFFSET(InputPriceData!D$15,CalculationsAndCharts!$A148+$A$11,IF($C$7,8,0),1,1) -> 2121.92 | F148: =OFFSET(InputPriceData!E$15,CalculationsAndCharts!$A148+$A$11,IF($C$7,8,0),1,1) -> 2109.61 | G148: =OFFSET(InputPriceData!F$15,CalculationsAndCharts!$A148+$A$11,IF($C$7,8,0),1,1) -> 2114.07 | H148: 3099980000 | J148: 2102.537342 | K148: 0.693926351 | L148: 0.3685946604 | M148: 36.85946604 | N148: 0 | O148: 0.1760898364 | P148: 17.60898364 | Q148: 10 | R148: 50 | S148: 60
A149: 117 | B149: =OFFSET(InputPriceData!B$15,CalculationsAndCharts!$A149+$A$11,0,1,1) -> 2015-06-02 | C149: =OFFSET(InputPriceData!G$15,CalculationsAndCharts!$A149+$A$11,IF($C$7,8,0),1,1) -> 3049350000 | D149: =OFFSET(InputPriceData!C$15,CalculationsAndCharts!$A149+$A$11,IF($C$7,8,0),1,1) -> 2110.41 | E149: =OFFSET(InputPriceData!D$15,CalculationsAndCharts!$A149+$A$11,IF($C$7,8,0),1,1) -> 2117.59 | F149: =OFFSET(InputPriceData!E$15,CalculationsAndCharts!$A149+$A$11,IF($C$7,8,0),1,1) -> 2099.14 | G149: =OFFSET(InputPriceData!F$15,CalculationsAndCharts!$A149+$A$11,IF($C$7,8,0),1,1) -> 2109.6 | I149: 3049350000 | J149: 2102.066621 | K149: 0 | L149: 0.3343492193 | M149: 33.43492193 | N149: 0.4630999484 | O149: 0.1946256086 | P149: 19.46256086 | Q149: 10 | R149: 50 | S149: 60
A150: 118 | B150: =OFFSET(InputPriceData!B$15,CalculationsAndCharts!$A150+$A$11,0,1,1) -> 2015-06-01 | C150: =OFFSET(InputPriceData!G$15,CalculationsAndCharts!$A150+$A$11,IF($C$7,8,0),1,1) -> 3011710000 | D150: =OFFSET(InputPriceData!C$15,CalculationsAndCharts!$A150+$A$11,IF($C$7,8,0),1,1) -> 2108.64 | E150: =OFFSET(InputPriceData!D$15,CalculationsAndCharts!$A150+$A$11,IF($C$7,8,0),1,1) -> 2119.15 | F150: =OFFSET(InputPriceData!E$15,CalculationsAndCharts!$A150+$A$11,IF($C$7,8,0),1,1) -> 2102.54 | G150: =OFFSET(InputPriceData!F$15,CalculationsAndCharts!$A150+$A$11,IF($C$7,8,0),1,1) -> 2111.73 | H150: 3011710000 | J150: 2101.759136 | K150: 0 | L150: 0.3695438739 | M150: 36.95438739 | N150: 0.4046103561 | O150: 0.1663651518 | P150: 16.63651518 | Q150: 10 | R150: 50 | S150: 60
A151: 119 | B151: =OFFSET(InputPriceData!B$15,CalculationsAndCharts!$A151+$A$11,0,1,1) -> 2015-05-29 | C151: =OFFSET(InputPriceData!G$15,CalculationsAndCharts!$A151+$A$11,IF($C$7,8,0),1,1) -> 3927390000 | D151: =OFFSET(InputPriceData!C$15,CalculationsAndCharts!$A151+$A$11,IF($C$7,8,0),1,1) -> 2120.66 | E151: =OFFSET(InputPriceData!D$15,CalculationsAndCharts!$A151+$A$11,IF($C$7,8,0),1,1) -> 2120.66 | F151: =OFFSET(InputPriceData!E$15,CalculationsAndCharts!$A151+$A$11,IF($C$7,8,0),1,1) -> 2104.89 | G151: =OFFSET(InputPriceData!F$15,CalculationsAndCharts!$A151+$A$11,IF($C$7,8,0),1,1) -> 2107.39 | I151: 3927390000 | J151: 2101.352162 | K151: 0 | L151: 0.4084432291 | M151: 40.84432291 | N151: 0.3641837261 | O151: 0.1412867092 | P151: 14.12867092 | Q151: 10 | R151: 50 | S151: 60
A152: 120 | B152: =OFFSET(InputPriceData!B$15,CalculationsAndCharts!$A152+$A$11,0,1,1) -> 2015-05-28 | C152: =OFFSET(InputPriceData!G$15,CalculationsAndCharts!$A152+$A$11,IF($C$7,8,0),1,1) -> 2980350000 | D152: =OFFSET(InputPriceData!C$15,CalculationsAndCharts!$A152+$A$11,IF($C$7,8,0),1,1) -> 2122.27 | E152: =OFFSET(InputPriceData!D$15,CalculationsAndCharts!$A152+$A$11,IF($C$7,8,0),1,1) -> 2122.27 | F152: =OFFSET(InputPriceData!E$15,CalculationsAndCharts!$A152+$A$11,IF($C$7,8,0),1,1) -> 2112.86 | G152: =OFFSET(InputPriceData!F$15,CalculationsAndCharts!$A152+$A$11,IF($C$7,8,0),1,1) -> 2120.79 | I152: 2980350000 | J152: 2101.10572 | K152: 0 | L152: 0.4514372532 | M152: 45.14372532 | N152: 0 | O152: 0.1178238654 | P152: 11.78238654 | Q152: 10 | R152: 50 | S152: 60
A153: 121 | B153: =OFFSET(InputPriceData!B$15,CalculationsAndCharts!$A153+$A$11,0,1,1) -> 2015-05-27 | C153: =OFFSET(InputPriceData!G$15,CalculationsAndCharts!$A153+$A$11,IF($C$7,8,0),1,1) -> 3127960000 | D153: =OFFSET(InputPriceData!C$15,CalculationsAndCharts!$A153+$A$11,IF($C$7,8,0),1,1) -> 2105.13 | E153: =OFFSET(InputPriceData!D$15,CalculationsAndCharts!$A153+$A$11,IF($C$7,8,0),1,1) -> 2126.22 | F153: =OFFSET(InputPriceData!E$15,CalculationsAndCharts!$A153+$A$11,IF($C$7,8,0),1,1) -> 2105.13 | G153: =OFFSET(InputPriceData!F$15,CalculationsAndCharts!$A153+$A$11,IF($C$7,8,0),1,1) -> 2123.48 | H153: 3127960000 | J153: 2100.30228 | K153: 0.7967479675 | L153: 0.498956964 | M153: 49.8956964 | N153: 0 | O153: 0.1302263775 | P153: 13.02263775 | Q153: 10 | R153: 50 | S153: 60
A154: 122 | B154: =OFFSET(InputPriceData!B$15,CalculationsAndCharts!$A154+$A$11,0,1,1) -> 2015-05-26 | C154: =OFFSET(InputPriceData!G$15,CalculationsAndCharts!$A154+$A$11,IF($C$7,8,0),1,1) -> 3342130000 | D154: =OFFSET(InputPriceData!C$15,CalculationsAndCharts!$A154+$A$11,IF($C$7,8,0),1,1) -> 2125.34 | E154: =OFFSET(InputPriceData!D$15,CalculationsAndCharts!$A154+$A$11,IF($C$7,8,0),1,1) -> 2125.34 | F154: =OFFSET(InputPriceData!E$15,CalculationsAndCharts!$A154+$A$11,IF($C$7,8,0),1,1) -> 2099.18 | G154: =OFFSET(InputPriceData!F$15,CalculationsAndCharts!$A154+$A$11,IF($C$7,8,0),1,1) -> 2104.2 | I154: 3342130000 | J154: 2099.356251 | K154: 0 | L154: 0.4676105426 | M154: 46.76105426 | N154: 0.4624118355 | O154: 0.1439344172 | P154: 14.39344172 | Q154: 10 | R154: 50 | S154: 60
A155: 123 | B155: =OFFSET(InputPriceData!B$15,CalculationsAndCharts!$A155+$A$11,0,1,1) -> 2015-05-22 | C155: =OFFSET(InputPriceData!G$15,CalculationsAndCharts!$A155+$A$11,IF($C$7,8,0),1,1) -> 2571860000 | D155: =OFFSET(InputPriceData!C$15,CalculationsAndCharts!$A155+$A$11,IF($C$7,8,0),1,1) -> 2130.36 | E155: =OFFSET(InputPriceData!D$15,CalculationsAndCharts!$A155+$A$11,IF($C$7,8,0),1,1) -> 2132.15 | F155: =OFFSET(InputPriceData!E$15,CalculationsAndCharts!$A155+$A$11,IF($C$7,8,0),1,1) -> 2126.06 | G155: =OFFSET(InputPriceData!F$15,CalculationsAndCharts!$A155+$A$11,IF($C$7,8,0),1,1) -> 2126.06 | I155: 2571860000 | J155: 2099.158547 | K155: 0 | L155: 0.516832705 | M155: 51.6832705 | N155: 0 | O155: 0.1104104785 | P155: 11.04104785 | Q155: 10 | R155: 50 | S155: 60
A156: 124 | B156: =OFFSET(InputPriceData!B$15,CalculationsAndCharts!$A156+$A$11,0,1,1) -> 2015-05-21 | C156: =OFFSET(InputPriceData!G$15,CalculationsAndCharts!$A156+$A$11,IF($C$7,8,0),1,1) -> 3070460000 | D156: =OFFSET(InputPriceData!C$15,CalculationsAndCharts!$A156+$A$11,IF($C$7,8,0),1,1) -> 2125.55 | E156: =OFFSET(InputPriceData!D$15,CalculationsAndCharts!$A156+$A$11,IF($C$7,8,0),1,1) -> 2134.28 | F156: =OFFSET(InputPriceData!E$15,CalculationsAndCharts!$A156+$A$11,IF($C$7,8,0),1,1) -> 2122.95 | G156: =OFFSET(InputPriceData!F$15,CalculationsAndCharts!$A156+$A$11,IF($C$7,8,0),1,1) -> 2130.82 | H156: 3070460000 | J156: 2098.060528 | K156: 0 | L156: 0.5712361476 | M156: 57.12361476 | N156: 0 | O156: 0.1220326341 | P156: 12.20326341 | Q156: 10 | R156: 50 | S156: 60
A157: 125 | B157: =OFFSET(InputPriceData!B$15,CalculationsAndCharts!$A157+$A$11,0,1,1) -> 2015-05-20 | C157: =OFFSET(InputPriceData!G$15,CalculationsAndCharts!$A157+$A$11,IF($C$7,8,0),1,1) -> 3025880000 | D157: =OFFSET(InputPriceData!C$15,CalculationsAndCharts!$A157+$A$11,IF($C$7,8,0),1,1) -> 2127.79 | E157: =OFFSET(InputPriceData!D$15,CalculationsAndCharts!$A157+$A$11,IF($C$7,8,0),1,1) -> 2134.72 | F157: =OFFSET(InputPriceData!E$15,CalculationsAndCharts!$A157+$A$11,IF($C$7,8,0),1,1) -> 2122.59 | G157: =OFFSET(InputPriceData!F$15,CalculationsAndCharts!$A157+$A$11,IF($C$7,8,0),1,1) -> 2125.85 | I157: 3025880000 | J157: 2096.723407 | K157: 1 | L157: 0.6313662684 | M157: 63.13662684 | N157: 0.03376347888 | O157: 0.1348781745 | P157: 13.48781745 | Q157: 10 | R157: 50 | S157: 60
A158: 126 | B158: =OFFSET(InputPriceData!B$15,CalculationsAndCharts!$A158+$A$11,0,1,1) -> 2015-05-19 | C158: =OFFSET(InputPriceData!G$15,CalculationsAndCharts!$A158+$A$11,IF($C$7,8,0),1,1) -> 3296030000 | D158: =OFFSET(InputPriceData!C$15,CalculationsAndCharts!$A158+$A$11,IF($C$7,8,0),1,1) -> 2129.45 | E158: =OFFSET(InputPriceData!D$15,CalculationsAndCharts!$A158+$A$11,IF($C$7,8,0),1,1) -> 2133.02 | F158: =OFFSET(InputPriceData!E$15,CalculationsAndCharts!$A158+$A$11,IF($C$7,8,0),1,1) -> 2124.5 | G158: =OFFSET(InputPriceData!F$15,CalculationsAndCharts!$A158+$A$11,IF($C$7,8,0),1,1) -> 2127.83 | I158: 3296030000 | J158: 2095.534566 | K158: 1 | L158: 0.5925627178 | M158: 59.25627178 | N158: 0 | O158: 0.1455218267 | P158: 14.55218267 | Q158: 10 | R158: 50 | S158: 60
A159: 127 | B159: =OFFSET(InputPriceData!B$15,CalculationsAndCharts!$A159+$A$11,0,1,1) -> 2015-05-18 | C159: =OFFSET(InputPriceData!G$15,CalculationsAndCharts!$A159+$A$11,IF($C$7,8,0),1,1) -> 2888190000 | D159: =OFFSET(InputPriceData!C$15,CalculationsAndCharts!$A159+$A$11,IF($C$7,8,0),1,1) -> 2121.3 | E159: =OFFSET(InputPriceData!D$15,CalculationsAndCharts!$A159+$A$11,IF($C$7,8,0),1,1) -> 2131.78 | F159: =OFFSET(InputPriceData!E$15,CalculationsAndCharts!$A159+$A$11,IF($C$7,8,0),1,1) -> 2120.01 | G159: =OFFSET(InputPriceData!F$15,CalculationsAndCharts!$A159+$A$11,IF($C$7,8,0),1,1) -> 2129.2 | H159: 2888190000 | J159: 2094.216385 | K159: 1 | L159: 0.5496745828 | M159: 54.96745828 | N159: 0 | O159: 0.1608399137 | P159: 16.08399137 | Q159: 10 | R159: 50 | S159: 60
A160: 128 | B160: =OFFSET(InputPriceData!B$15,CalculationsAndCharts!$A160+$A$11,0,1,1) -> 2015-05-15 | C160: =OFFSET(InputPriceData!G$15,CalculationsAndCharts!$A160+$A$11,IF($C$7,8,0),1,1) -> 3092080000 | D160: =OFFSET(InputPriceData!C$15,CalculationsAndCharts!$A160+$A$11,IF($C$7,8,0),1,1) -> 2122.07 | E160: =OFFSET(InputPriceData!D$15,CalculationsAndCharts!$A160+$A$11,IF($C$7,8,0),1,1) -> 2123.89 | F160: =OFFSET(InputPriceData!E$15,CalculationsAndCharts!$A160+$A$11,IF($C$7,8,0),1,1) -> 2116.81 | G160: =OFFSET(InputPriceData!F$15,CalculationsAndCharts!$A160+$A$11,IF($C$7,8,0),1,1) -> 2122.73 | H160: 3092080000 | J160: 2092.788483 | K160: 0.9385221078 | L160: 0.5022719073 | M160: 50.22719073 | N160: 0 | O160: 0.177770431 | P160: 17.7770431 | Q160: =$D$22 -> 10 | R160: =$D$21 -> 50 | S160: =$D$20 -> 60
A161: 129 | B161: =OFFSET(InputPriceData!B$15,CalculationsAndCharts!$A161+$A$11,0,1,1) -> 2015-05-14 | C161: =OFFSET(InputPriceData!G$15,CalculationsAndCharts!$A161+$A$11,IF($C$7,8,0),1,1) -> 3225740000 | D161: =OFFSET(InputPriceData!C$15,CalculationsAndCharts!$A161+$A$11,IF($C$7,8,0),1,1) -> 2100.43 | E161: =OFFSET(InputPriceData!D$15,CalculationsAndCharts!$A161+$A$11,IF($C$7,8,0),1,1) -> 2121.45 | F161: =OFFSET(InputPriceData!E$15,CalculationsAndCharts!$A161+$A$11,IF($C$7,8,0),1,1) -> 2100.43 | G161: =OFFSET(InputPriceData!F$15,CalculationsAndCharts!$A161+$A$11,IF($C$7,8,0),1,1) -> 2121.1 | H161: =IF(D161<=G161,C161,NA()) -> 3225740000 | I161: =IF(D161<=G161,NA(),C161) ->  | J161: =IF(A161>$A$8,0,IF(A161=$A$8,G161,G161*$F$17+$F$18*J162)) -> 2091.56638 | K161: =IF($A161>$A$8-$A$17,0,IF($E161<=$E162,0,($E161-MIN(OFFSET($E161,0,0,$A$17,1)))/(MAX(OFFSET($E161,0,0,$A$17,1))-MIN(OFFSET($E161,0,0,$A$17,1))))) -> 0.8646274985 | L161: 0.4563508335 | M161: 45.63508335 | N161: =IF($A161>$A$8-$A$17,0,IF($F161>=$F162,0,(MAX(OFFSET($F161,0,0,$A$17,1))-$F161)/(MAX(OFFSET($F161,0,0,$A$17,1))-MIN(OFFSET($F161,0,0,$A$17,1))))) -> 0 | O161: =IF($A161>($A$8-$A$18-$A$17),0,IF(D161=($A$8-$A$18-$A$17),AVERAGE(OFFSET(N161,0,0,$A$18,1)),(N161*$C$19+O162*$C$20))) -> 0.1964831079 | P161: 19.64831079 | Q161: 10 | R161: 50 | S161: 60
A162: 130 | B162: =OFFSET(InputPriceData!B$15,CalculationsAndCharts!$A162+$A$11,0,1,1) -> 2015-05-13 | C162: =OFFSET(InputPriceData!G$15,CalculationsAndCharts!$A162+$A$11,IF($C$7,8,0),1,1) -> 3374260000 | D162: =OFFSET(InputPriceData!C$15,CalculationsAndCharts!$A162+$A$11,IF($C$7,8,0),1,1) -> 2099.62 | E162: =OFFSET(InputPriceData!D$15,CalculationsAndCharts!$A162+$A$11,IF($C$7,8,0),1,1) -> 2110.19 | F162: =OFFSET(InputPriceData!E$15,CalculationsAndCharts!$A162+$A$11,IF($C$7,8,0),1,1) -> 2096.04 | G162: =OFFSET(InputPriceData!F$15,CalculationsAndCharts!$A162+$A$11,IF($C$7,8,0),1,1) -> 2098.48 | I162: 3374260000 | J162: 2090.360926 | K162: 0.5236220472 | L162: =IF(A162>($A$8-$A$18-$A$17),0,IF(A162=($A$8-$A$18-$A$17),AVERAGE(OFFSET(K162,0,0,$A$18,1)),(K162*$C$19+L163*$C$20))) -> 0.4133743425 | M162: =L162*100 -> 41.33743425 | N162: 0 | O162: 0.2171655403 | P162: =O162*100 -> 21.71655403 | Q162: 10 | R162: 50 | S162: 60
A163: 131 | B163: =OFFSET(InputPriceData!B$15,CalculationsAndCharts!$A163+$A$11,0,1,1) -> 2015-05-12 | C163: =OFFSET(InputPriceData!G$15,CalculationsAndCharts!$A163+$A$11,IF($C$7,8,0),1,1) -> 3139520000 | D163: =OFFSET(InputPriceData!C$15,CalculationsAndCharts!$A163+$A$11,IF($C$7,8,0),1,1) -> 2102.87 | E163: =OFFSET(InputPriceData!D$15,CalculationsAndCharts!$A163+$A$11,IF($C$7,8,0),1,1) -> 2105.06 | F163: =OFFSET(InputPriceData!E$15,CalculationsAndCharts!$A163+$A$11,IF($C$7,8,0),1,1) -> 2085.57 | G163: =OFFSET(InputPriceData!F$15,CalculationsAndCharts!$A163+$A$11,IF($C$7,8,0),1,1) -> 2099.12 | I163: 3139520000 | J163: 2090.029535 | K163: 0 | L163: 0.401769321 | M163: 40.1769321 | N163: 0.6068642746 | O163: 0.2400250709 | P163: 24.00250709 | Q163: 10 | R163: 50 | S163: 60
A164: 132 | B164: =OFFSET(InputPriceData!B$15,CalculationsAndCharts!$A164+$A$11,0,1,1) -> 2015-05-11 | C164: =OFFSET(InputPriceData!G$15,CalculationsAndCharts!$A164+$A$11,IF($C$7,8,0),1,1) -> 2992670000 | D164: =OFFSET(InputPriceData!C$15,CalculationsAndCharts!$A164+$A$11,IF($C$7,8,0),1,1) -> 2115.56 | E164: =OFFSET(InputPriceData!D$15,CalculationsAndCharts!$A164+$A$11,IF($C$7,8,0),1,1) -> 2117.69 | F164: =OFFSET(InputPriceData!E$15,CalculationsAndCharts!$A164+$A$11,IF($C$7,8,0),1,1) -> 2104.58 | G164: =OFFSET(InputPriceData!F$15,CalculationsAndCharts!$A164+$A$11,IF($C$7,8,0),1,1) -> 2105.33 | I164: 2992670000 | J164: 2089.658496 | K164: 0.7507571169 | L164: 0.4440608284 | M164: 44.40608284 | N164: 0 | O164: 0.2014104179 | P164: 20.14104179 | Q164: 10 | R164: 50 | S164: 60
A165: 133 | B165: =OFFSET(InputPriceData!B$15,CalculationsAndCharts!$A165+$A$11,0,1,1) -> 2015-05-08 | C165: =OFFSET(InputPriceData!G$15,CalculationsAndCharts!$A165+$A$11,IF($C$7,8,0),1,1) -> 3399440000 | D165: =OFFSET(InputPriceData!C$15,CalculationsAndCharts!$A165+$A$11,IF($C$7,8,0),1,1) -> 2092.13 | E165: =OFFSET(InputPriceData!D$15,CalculationsAndCharts!$A165+$A$11,IF($C$7,8,0),1,1) -> 2117.66 | F165: =OFFSET(InputPriceData!E$15,CalculationsAndCharts!$A165+$A$11,IF($C$7,8,0),1,1) -> 2092.13 | G165: =OFFSET(InputPriceData!F$15,CalculationsAndCharts!$A165+$A$11,IF($C$7,8,0),1,1) -> 2116.1 | H165: 3399440000 | J165: 2089.018843 | K165: 0.7498485766 | L165: 0.4117770086 | M165: 41.17770086 | N165: 0 | O165: 0.2226115145 | P165: 22.26115145 | Q165: 10 | R165: 50 | S165: 60
A166: 134 | B166: =OFFSET(InputPriceData!B$15,CalculationsAndCharts!$A166+$A$11,0,1,1) -> 2015-05-07 | C166: =OFFSET(InputPriceData!G$15,CalculationsAndCharts!$A166+$A$11,IF($C$7,8,0),1,1) -> 3676640000 | D166: =OFFSET(InputPriceData!C$15,CalculationsAndCharts!$A166+$A$11,IF($C$7,8,0),1,1) -> 2079.96 | E166: =OFFSET(InputPriceData!D$15,CalculationsAndCharts!$A166+$A$11,IF($C$7,8,0),1,1) -> 2092.9 | F166: =OFFSET(InputPriceData!E$15,CalculationsAndCharts!$A166+$A$11,IF($C$7,8,0),1,1) -> 2074.99 | G166: =OFFSET(InputPriceData!F$15,CalculationsAndCharts!$A166+$A$11,IF($C$7,8,0),1,1) -> 2088 | H166: 3676640000 | J166: 2087.913489 | K166: 0 | L166: 0.3761905277 | M166: 37.61905277 | N166: 0 | O166: 0.2460443055 | P166: 24.60443055 | Q166: 10 | R166: 50 | S166: 60
A167: 135 | B167: =OFFSET(InputPriceData!B$15,CalculationsAndCharts!$A167+$A$11,0,1,1) -> 2015-05-06 | C167: =OFFSET(InputPriceData!G$15,CalculationsAndCharts!$A167+$A$11,IF($C$7,8,0),1,1) -> 3792210000 | D167: =OFFSET(InputPriceData!C$15,CalculationsAndCharts!$A167+$A$11,IF($C$7,8,0),1,1) -> 2091.26 | E167: =OFFSET(InputPriceData!D$15,CalculationsAndCharts!$A167+$A$11,IF($C$7,8,0),1,1) -> 2098.42 | F167: =OFFSET(InputPriceData!E$15,CalculationsAndCharts!$A167+$A$11,IF($C$7,8,0),1,1) -> 2067.93 | G167: =OFFSET(InputPriceData!F$15,CalculationsAndCharts!$A167+$A$11,IF($C$7,8,0),1,1) -> 2080.15 | I167: 3792210000 | J167: 2087.909958 | K167: 0 | L167: 0.4157895307 | M167: 41.57895307 | N167: 1 | O167: 0.2719437061 | P167: 27.19437061 | Q167: 10 | R167: 50 | S167: 60
A168: 136 | B168: =OFFSET(InputPriceData!B$15,CalculationsAndCharts!$A168+$A$11,0,1,1) -> 2015-05-05 | C168: =OFFSET(InputPriceData!G$15,CalculationsAndCharts!$A168+$A$11,IF($C$7,8,0),1,1) -> 3793950000 | D168: =OFFSET(InputPriceData!C$15,CalculationsAndCharts!$A168+$A$11,IF($C$7,8,0),1,1) -> 2112.63 | E168: =OFFSET(InputPriceData!D$15,CalculationsAndCharts!$A168+$A$11,IF($C$7,8,0),1,1) -> 2115.24 | F168: =OFFSET(InputPriceData!E$15,CalculationsAndCharts!$A168+$A$11,IF($C$7,8,0),1,1) -> 2088.46 | G168: =OFFSET(InputPriceData!F$15,CalculationsAndCharts!$A168+$A$11,IF($C$7,8,0),1,1) -> 2089.46 | I168: 3793950000 | J168: 2088.226691 | K168: 0 | L168: 0.4595568497 | M168: 45.95568497 | N168: 0.6020281969 | O168: 0.1953062014 | P168: 19.53062014 | Q168: 10 | R168: 50 | S168: 60
A169: 137 | B169: =OFFSET(InputPriceData!B$15,CalculationsAndCharts!$A169+$A$11,0,1,1) -> 2015-05-04 | C169: =OFFSET(InputPriceData!G$15,CalculationsAndCharts!$A169+$A$11,IF($C$7,8,0),1,1) -> 3091580000 | D169: =OFFSET(InputPriceData!C$15,CalculationsAndCharts!$A169+$A$11,IF($C$7,8,0),1,1) -> 2110.23 | E169: =OFFSET(InputPriceData!D$15,CalculationsAndCharts!$A169+$A$11,IF($C$7,8,0),1,1) -> 2120.95 | F169: =OFFSET(InputPriceData!E$15,CalculationsAndCharts!$A169+$A$11,IF($C$7,8,0),1,1) -> 2110.23 | G169: =OFFSET(InputPriceData!F$15,CalculationsAndCharts!$A169+$A$11,IF($C$7,8,0),1,1) -> 2114.49 | H169: 3091580000 | J169: 2088.176352 | K169: 0.8733112414 | L169: 0.5079312549 | M169: 50.79312549 | N169: 0 | O169: 0.1524933598 | P169: 15.24933598 | Q169: 10 | R169: 50 | S169: 60
A170: 138 | B170: =OFFSET(InputPriceData!B$15,CalculationsAndCharts!$A170+$A$11,0,1,1) -> 2015-05-01 | C170: =OFFSET(InputPriceData!G$15,CalculationsAndCharts!$A170+$A$11,IF($C$7,8,0),1,1) -> 3379390000 | D170: =OFFSET(InputPriceData!C$15,CalculationsAndCharts!$A170+$A$11,IF($C$7,8,0),1,1) -> 2087.38 | E170: =OFFSET(InputPriceData!D$15,CalculationsAndCharts!$A170+$A$11,IF($C$7,8,0),1,1) -> 2108.41 | F170: =OFFSET(InputPriceData!E$15,CalculationsAndCharts!$A170+$A$11,IF($C$7,8,0),1,1) -> 2087.38 | G170: =OFFSET(InputPriceData!F$15,CalculationsAndCharts!$A170+$A$11,IF($C$7,8,0),1,1) -> 2108.29 | H170: 3379390000 | J170: 2087.102326 | K170: 0.5536579149 | L170: 0.4694702037 | M170: 46.94702037 | N170: 0 | O170: 0.1685452924 | P170: 16.85452924 | Q170: 10 | R170: 50 | S170: 60
A171: 139 | B171: =OFFSET(InputPriceData!B$15,CalculationsAndCharts!$A171+$A$11,0,1,1) -> 2015-04-30 | C171: =OFFSET(InputPriceData!G$15,CalculationsAndCharts!$A171+$A$11,IF($C$7,8,0),1,1) -> 4509680000 | D171: =OFFSET(InputPriceData!C$15,CalculationsAndCharts!$A171+$A$11,IF($C$7,8,0),1,1) -> 2105.52 | E171: =OFFSET(InputPriceData!D$15,CalculationsAndCharts!$A171+$A$11,IF($C$7,8,0),1,1) -> 2105.52 | F171: =OFFSET(InputPriceData!E$15,CalculationsAndCharts!$A171+$A$11,IF($C$7,8,0),1,1) -> 2077.59 | G171: =OFFSET(InputPriceData!F$15,CalculationsAndCharts!$A171+$A$11,IF($C$7,8,0),1,1) -> 2085.51 | I171: 4509680000 | J171: 2086.237523 | K171: 0 | L171: 0.4606083394 | M171: 46.06083394 | N171: 0.6256218905 | O171: 0.1862869022 | P171: 18.62869022 | Q171: 10 | R171: 50 | S171: 60
A172: 140 | B172: =OFFSET(InputPriceData!B$15,CalculationsAndCharts!$A172+$A$11,0,1,1) -> 2015-04-29 | C172: =OFFSET(InputPriceData!G$15,CalculationsAndCharts!$A172+$A$11,IF($C$7,8,0),1,1) -> 4074970000 | D172: =OFFSET(InputPriceData!C$15,CalculationsAndCharts!$A172+$A$11,IF($C$7,8,0),1,1) -> 2112.49 | E172: =OFFSET(InputPriceData!D$15,CalculationsAndCharts!$A172+$A$11,IF($C$7,8,0),1,1) -> 2113.65 | F172: =OFFSET(InputPriceData!E$15,CalculationsAndCharts!$A172+$A$11,IF($C$7,8,0),1,1) -> 2097.41 | G172: =OFFSET(InputPriceData!F$15,CalculationsAndCharts!$A172+$A$11,IF($C$7,8,0),1,1) -> 2106.85 | I172: 4074970000 | J172: 2086.267217 | K172: 0 | L172: 0.5090934277 | M172: 50.90934277 | N172: 0 | O172: 0.1400411139 | P172: 14.00411139 | Q172: 10 | R172: 50 | S172: 60
A173: 141 | B173: =OFFSET(InputPriceData!B$15,CalculationsAndCharts!$A173+$A$11,0,1,1) -> 2015-04-28 | C173: =OFFSET(InputPriceData!G$15,CalculationsAndCharts!$A173+$A$11,IF($C$7,8,0),1,1) -> 3546270000 | D173: =OFFSET(InputPriceData!C$15,CalculationsAndCharts!$A173+$A$11,IF($C$7,8,0),1,1) -> 2108.35 | E173: =OFFSET(InputPriceData!D$15,CalculationsAndCharts!$A173+$A$11,IF($C$7,8,0),1,1) -> 2116.04 | F173: =OFFSET(InputPriceData!E$15,CalculationsAndCharts!$A173+$A$11,IF($C$7,8,0),1,1) -> 2094.89 | G173: =OFFSET(InputPriceData!F$15,CalculationsAndCharts!$A173+$A$11,IF($C$7,8,0),1,1) -> 2114.76 | H173: 3546270000 | J173: 2085.427104 | K173: 0 | L173: 0.5626822096 | M173: 56.26822096 | N173: 0.2780192487 | O173: 0.1547822838 | P173: 15.47822838 | Q173: 10 | R173: 50 | S173: 60
A174: 142 | B174: =OFFSET(InputPriceData!B$15,CalculationsAndCharts!$A174+$A$11,0,1,1) -> 2015-04-27 | C174: =OFFSET(InputPriceData!G$15,CalculationsAndCharts!$A174+$A$11,IF($C$7,8,0),1,1) -> 3438750000 | D174: =OFFSET(InputPriceData!C$15,CalculationsAndCharts!$A174+$A$11,IF($C$7,8,0),1,1) -> 2119.29 | E174: =OFFSET(InputPriceData!D$15,CalculationsAndCharts!$A174+$A$11,IF($C$7,8,0),1,1) -> 2125.92 | F174: =OFFSET(InputPriceData!E$15,CalculationsAndCharts!$A174+$A$11,IF($C$7,8,0),1,1) -> 2107.04 | G174: =OFFSET(InputPriceData!F$15,CalculationsAndCharts!$A174+$A$11,IF($C$7,8,0),1,1) -> 2108.92 | I174: 3438750000 | J174: 2084.229843 | K174: 1 | L174: 0.6219119158 | M174: 62.19119158 | N174: 0.08941322571 | O174: 0.1418099717 | P174: 14.18099717 | Q174: 10 | R174: 50 | S174: 60
A175: 143 | B175: =OFFSET(InputPriceData!B$15,CalculationsAndCharts!$A175+$A$11,0,1,1) -> 2015-04-24 | C175: =OFFSET(InputPriceData!G$15,CalculationsAndCharts!$A175+$A$11,IF($C$7,8,0),1,1) -> 3375780000 | D175: =OFFSET(InputPriceData!C$15,CalculationsAndCharts!$A175+$A$11,IF($C$7,8,0),1,1) -> 2112.8 | E175: =OFFSET(InputPriceData!D$15,CalculationsAndCharts!$A175+$A$11,IF($C$7,8,0),1,1) -> 2120.92 | F175: =OFFSET(InputPriceData!E$15,CalculationsAndCharts!$A175+$A$11,IF($C$7,8,0),1,1) -> 2112.8 | G175: =OFFSET(InputPriceData!F$15,CalculationsAndCharts!$A175+$A$11,IF($C$7,8,0),1,1) -> 2117.69 | H175: 3375780000 | J175: 2083.222081 | K175: 1 | L175: 0.5821131701 | M175: 58.21131701 | N175: 0 | O175: 0.1473254186 | P175: 14.73254186 | Q175: 10 | R175: 50 | S175: 60
A176: 144 | B176: =OFFSET(InputPriceData!B$15,CalculationsAndCharts!$A176+$A$11,0,1,1) -> 2015-04-23 | C176: =OFFSET(InputPriceData!G$15,CalculationsAndCharts!$A176+$A$11,IF($C$7,8,0),1,1) -> 3636670000 | D176: =OFFSET(InputPriceData!C$15,CalculationsAndCharts!$A176+$A$11,IF($C$7,8,0),1,1) -> 2107.21 | E176: =OFFSET(InputPriceData!D$15,CalculationsAndCharts!$A176+$A$11,IF($C$7,8,0),1,1) -> 2120.49 | F176: =OFFSET(InputPriceData!E$15,CalculationsAndCharts!$A176+$A$11,IF($C$7,8,0),1,1) -> 2103.19 | G176: =OFFSET(InputPriceData!F$15,CalculationsAndCharts!$A176+$A$11,IF($C$7,8,0),1,1) -> 2112.93 | H176: 3636670000 | J176: 2081.815227 | K176: 1 | L176: 0.5381250828 | M176: 53.81250828 | N176: 0 | O176: 0.1628333574 | P176: 16.28333574 | Q176: 10 | R176: 50 | S176: 60
A177: 145 | B177: =OFFSET(InputPriceData!B$15,CalculationsAndCharts!$A177+$A$11,0,1,1) -> 2015-04-22 | C177: =OFFSET(InputPriceData!G$15,CalculationsAndCharts!$A177+$A$11,IF($C$7,8,0),1,1) -> 3348480000 | D177: =OFFSET(InputPriceData!C$15,CalculationsAndCharts!$A177+$A$11,IF($C$7,8,0),1,1) -> 2098.27 | E177: =OFFSET(InputPriceData!D$15,CalculationsAndCharts!$A177+$A$11,IF($C$7,8,0),1,1) -> 2109.98 | F177: =OFFSET(InputPriceData!E$15,CalculationsAndCharts!$A177+$A$11,IF($C$7,8,0),1,1) -> 2091.05 | G177: =OFFSET(InputPriceData!F$15,CalculationsAndCharts!$A177+$A$11,IF($C$7,8,0),1,1) -> 2107.96 | H177: 3348480000 | J177: 2080.545237 | K177: 0.9606764466 | L177: 0.4895066704 | M177: 48.95066704 | N177: 0.1645267792 | O177: 0.1799737109 | P177: 17.99737109 | Q177: 10 | R177: 50 | S177: 60
A178: 146 | B178: =OFFSET(InputPriceData!B$15,CalculationsAndCharts!$A178+$A$11,0,1,1) -> 2015-04-21 | C178: =OFFSET(InputPriceData!G$15,CalculationsAndCharts!$A178+$A$11,IF($C$7,8,0),1,1) -> 3243410000 | D178: =OFFSET(InputPriceData!C$15,CalculationsAndCharts!$A178+$A$11,IF($C$7,8,0),1,1) -> 2102.82 | E178: =OFFSET(InputPriceData!D$15,CalculationsAndCharts!$A178+$A$11,IF($C$7,8,0),1,1) -> 2109.64 | F178: =OFFSET(InputPriceData!E$15,CalculationsAndCharts!$A178+$A$11,IF($C$7,8,0),1,1) -> 2094.38 | G178: =OFFSET(InputPriceData!F$15,CalculationsAndCharts!$A178+$A$11,IF($C$7,8,0),1,1) -> 2097.29 | I178: 3243410000 | J178: 2079.426267 | K178: 0.9537489813 | L178: 0.4399098519 | M178: 43.99098519 | N178: 0 | O178: 0.1815997037 | P178: 18.15997037 | Q178: 10 | R178: 50 | S178: 60
A179: 147 | B179: =OFFSET(InputPriceData!B$15,CalculationsAndCharts!$A179+$A$11,0,1,1) -> 2015-04-20 | C179: =OFFSET(InputPriceData!G$15,CalculationsAndCharts!$A179+$A$11,IF($C$7,8,0),1,1) -> 3000160000 | D179: =OFFSET(InputPriceData!C$15,CalculationsAndCharts!$A179+$A$11,IF($C$7,8,0),1,1) -> 2084.11 | E179: =OFFSET(InputPriceData!D$15,CalculationsAndCharts!$A179+$A$11,IF($C$7,8,0),1,1) -> 2103.94 | F179: =OFFSET(InputPriceData!E$15,CalculationsAndCharts!$A179+$A$11,IF($C$7,8,0),1,1) -> 2084.11 | G179: =OFFSET(InputPriceData!F$15,CalculationsAndCharts!$A179+$A$11,IF($C$7,8,0),1,1) -> 2100.4 | H179: 3000160000 | J179: 2078.697135 | K179: 0.790121084 | L179: 0.3858215225 | M179: 38.58215225 | N179: 0 | O179: 0.200715462 | P179: 20.0715462 | Q179: 10 | R179: 50 | S179: 60
A180: 148 | B180: =OFFSET(InputPriceData!B$15,CalculationsAndCharts!$A180+$A$11,0,1,1) -> 2015-04-17 | C180: =OFFSET(InputPriceData!G$15,CalculationsAndCharts!$A180+$A$11,IF($C$7,8,0),1,1) -> 3627600000 | D180: =OFFSET(InputPriceData!C$15,CalculationsAndCharts!$A180+$A$11,IF($C$7,8,0),1,1) -> 2102.58 | E180: =OFFSET(InputPriceData!D$15,CalculationsAndCharts!$A180+$A$11,IF($C$7,8,0),1,1) -> 2102.58 | F180: =OFFSET(InputPriceData!E$15,CalculationsAndCharts!$A180+$A$11,IF($C$7,8,0),1,1) -> 2072.37 | G180: =OFFSET(InputPriceData!F$15,CalculationsAndCharts!$A180+$A$11,IF($C$7,8,0),1,1) -> 2081.18 | I180: 3627600000 | J180: 2077.811304 | K180: 0 | L180: 0.3432636739 | M180: 34.32636739 | N180: 0.543957909 | O180: 0.2218434053 | P180: 22.18434053 | Q180: 10 | R180: 50 | S180: 60
A181: 149 | B181: =OFFSET(InputPriceData!B$15,CalculationsAndCharts!$A181+$A$11,0,1,1) -> 2015-04-16 | C181: =OFFSET(InputPriceData!G$15,CalculationsAndCharts!$A181+$A$11,IF($C$7,8,0),1,1) -> 3434120000 | D181: =OFFSET(InputPriceData!C$15,CalculationsAndCharts!$A181+$A$11,IF($C$7,8,0),1,1) -> 2105.96 | E181: =OFFSET(InputPriceData!D$15,CalculationsAndCharts!$A181+$A$11,IF($C$7,8,0),1,1) -> 2111.3 | F181: =OFFSET(InputPriceData!E$15,CalculationsAndCharts!$A181+$A$11,IF($C$7,8,0),1,1) -> 2100.02 | G181: =OFFSET(InputPriceData!F$15,CalculationsAndCharts!$A181+$A$11,IF($C$7,8,0),1,1) -> 2104.99 | I181: 3434120000 | J181: 2077.673806 | K181: 0 | L181: 0.3793966922 | M181: 37.93966922 | N181: 0 | O181: 0.1879366155 | P181: 18.79366155 | Q181: 10 | R181: 50 | S181: 60
A182: 150 | B182: =OFFSET(InputPriceData!B$15,CalculationsAndCharts!$A182+$A$11,0,1,1) -> 2015-04-15 | C182: =OFFSET(InputPriceData!G$15,CalculationsAndCharts!$A182+$A$11,IF($C$7,8,0),1,1) -> 4013760000 | D182: =OFFSET(InputPriceData!C$15,CalculationsAndCharts!$A182+$A$11,IF($C$7,8,0),1,1) -> 2097.82 | E182: =OFFSET(InputPriceData!D$15,CalculationsAndCharts!$A182+$A$11,IF($C$7,8,0),1,1) -> 2111.91 | F182: =OFFSET(InputPriceData!E$15,CalculationsAndCharts!$A182+$A$11,IF($C$7,8,0),1,1) -> 2097.82 | G182: =OFFSET(InputPriceData!F$15,CalculationsAndCharts!$A182+$A$11,IF($C$7,8,0),1,1) -> 2106.63 | H182: 4013760000 | J182: 2076.558859 | K182: 0.9433019412 | L182: 0.4193331861 | M182: 41.93331861 | N182: 0 | O182: 0.2077194171 | P182: 20.77194171 | Q182: 10 | R182: 50 | S182: 60
A183: 151 | B183: =OFFSET(InputPriceData!B$15,CalculationsAndCharts!$A183+$A$11,0,1,1) -> 2015-04-14 | C183: =OFFSET(InputPriceData!G$15,CalculationsAndCharts!$A183+$A$11,IF($C$7,8,0),1,1) -> 3301270000 | D183: =OFFSET(InputPriceData!C$15,CalculationsAndCharts!$A183+$A$11,IF($C$7,8,0),1,1) -> 2092.28 | E183: =OFFSET(InputPriceData!D$15,CalculationsAndCharts!$A183+$A$11,IF($C$7,8,0),1,1) -> 2098.62 | F183: =OFFSET(InputPriceData!E$15,CalculationsAndCharts!$A183+$A$11,IF($C$7,8,0),1,1) -> 2083.24 | G183: =OFFSET(InputPriceData!F$15,CalculationsAndCharts!$A183+$A$11,IF($C$7,8,0),1,1) -> 2095.84 | H183: 3301270000 | J183: 2075.331466 | K183: 0 | L183: 0.3641785803 | M183: 36.41785803 | N183: 0.3594704684 | O183: 0.2295846189 | P183: 22.95846189 | Q183: 10 | R183: 50 | S183: 60
A184: 152 | B184: =OFFSET(InputPriceData!B$15,CalculationsAndCharts!$A184+$A$11,0,1,1) -> 2015-04-13 | C184: =OFFSET(InputPriceData!G$15,CalculationsAndCharts!$A184+$A$11,IF($C$7,8,0),1,1) -> 2908420000 | D184: =OFFSET(InputPriceData!C$15,CalculationsAndCharts!$A184+$A$11,IF($C$7,8,0),1,1) -> 2102.03 | E184: =OFFSET(InputPriceData!D$15,CalculationsAndCharts!$A184+$A$11,IF($C$7,8,0),1,1) -> 2107.65 | F184: =OFFSET(InputPriceData!E$15,CalculationsAndCharts!$A184+$A$11,IF($C$7,8,0),1,1) -> 2092.33 | G184: =OFFSET(InputPriceData!F$15,CalculationsAndCharts!$A184+$A$11,IF($C$7,8,0),1,1) -> 2092.43 | I184: 2908420000 | J184: 2074.494383 | K184: 0.8614261003 | L184: 0.4025131678 | M184: 40.25131678 | N184: 0 | O184: 0.2159124242 | P184: 21.59124242 | Q184: 10 | R184: 50 | S184: 60
A185: 153 | B185: =OFFSET(InputPriceData!B$15,CalculationsAndCharts!$A185+$A$11,0,1,1) -> 2015-04-10 | C185: =OFFSET(InputPriceData!G$15,CalculationsAndCharts!$A185+$A$11,IF($C$7,8,0),1,1) -> 536200000 | D185: =OFFSET(InputPriceData!C$15,CalculationsAndCharts!$A185+$A$11,IF($C$7,8,0),1,1) -> 2091.51 | E185: =OFFSET(InputPriceData!D$15,CalculationsAndCharts!$A185+$A$11,IF($C$7,8,0),1,1) -> 2102.61 | F185: =OFFSET(InputPriceData!E$15,CalculationsAndCharts!$A185+$A$11,IF($C$7,8,0),1,1) -> 2091.51 | G185: =OFFSET(InputPriceData!F$15,CalculationsAndCharts!$A185+$A$11,IF($C$7,8,0),1,1) -> 2102.06 | H185: 536200000 | J185: 2073.762317 | K185: 0.7645589083 | L185: 0.3542065433 | M185: 35.42065433 | N185: 0 | O185: 0.2386400478 | P185: 23.86400478 | Q185: 10 | R185: 50 | S185: 60
A186: 154 | B186: =OFFSET(InputPriceData!B$15,CalculationsAndCharts!$A186+$A$11,0,1,1) -> 2015-04-09 | C186: =OFFSET(InputPriceData!G$15,CalculationsAndCharts!$A186+$A$11,IF($C$7,8,0),1,1) -> 3172360000 | D186: =OFFSET(InputPriceData!C$15,CalculationsAndCharts!$A186+$A$11,IF($C$7,8,0),1,1) -> 2081.29 | E186: =OFFSET(InputPriceData!D$15,CalculationsAndCharts!$A186+$A$11,IF($C$7,8,0),1,1) -> 2093.31 | F186: =OFFSET(InputPriceData!E$15,CalculationsAndCharts!$A186+$A$11,IF($C$7,8,0),1,1) -> 2074.29 | G186: =OFFSET(InputPriceData!F$15,CalculationsAndCharts!$A186+$A$11,IF($C$7,8,0),1,1) -> 2091.18 | H186: 3172360000 | J186: 2072.607309 | K186: 0.5858158755 | L186: 0.3110115575 | M186: 31.10115575 | N186: 0 | O186: 0.2637600528 | P186: 26.37600528 | Q186: 10 | R186: 50 | S186: 60
A187: 155 | B187: =OFFSET(InputPriceData!B$15,CalculationsAndCharts!$A187+$A$11,0,1,1) -> 2015-04-08 | C187: =OFFSET(InputPriceData!G$15,CalculationsAndCharts!$A187+$A$11,IF($C$7,8,0),1,1) -> 3265330000 | D187: =OFFSET(InputPriceData!C$15,CalculationsAndCharts!$A187+$A$11,IF($C$7,8,0),1,1) -> 2076.94 | E187: =OFFSET(InputPriceData!D$15,CalculationsAndCharts!$A187+$A$11,IF($C$7,8,0),1,1) -> 2086.69 | F187: =OFFSET(InputPriceData!E$15,CalculationsAndCharts!$A187+$A$11,IF($C$7,8,0),1,1) -> 2073.3 | G187: =OFFSET(InputPriceData!F$15,CalculationsAndCharts!$A187+$A$11,IF($C$7,8,0),1,1) -> 2081.9 | H187: 3265330000 | J187: 2071.84924 | K187: 0 | L187: 0.2820847872 | M187: 28.20847872 | N187: 0.4807662598 | O187: 0.2915242689 | P187: 29.15242689 | Q187: 10 | R187: 50 | S187: 60
A188: 156 | B188: =OFFSET(InputPriceData!B$15,CalculationsAndCharts!$A188+$A$11,0,1,1) -> 2015-04-07 | C188: =OFFSET(InputPriceData!G$15,CalculationsAndCharts!$A188+$A$11,IF($C$7,8,0),1,1) -> 3065510000 | D188: =OFFSET(InputPriceData!C$15,CalculationsAndCharts!$A188+$A$11,IF($C$7,8,0),1,1) -> 2080.79 | E188: =OFFSET(InputPriceData!D$15,CalculationsAndCharts!$A188+$A$11,IF($C$7,8,0),1,1) -> 2089.81 | F188: =OFFSET(InputPriceData!E$15,CalculationsAndCharts!$A188+$A$11,IF($C$7,8,0),1,1) -> 2076.1 | G188: =OFFSET(InputPriceData!F$15,CalculationsAndCharts!$A188+$A$11,IF($C$7,8,0),1,1) -> 2076.33 | I188: 3065510000 | J188: 2071.439005 | K188: 0.6133065761 | L188: 0.3117779227 | M188: 31.17779227 | N188: 0 | O188: 0.2716040593 | P188: 27.16040593 | Q188: 10 | R188: 50 | S188: 60
A189: 157 | B189: =OFFSET(InputPriceData!B$15,CalculationsAndCharts!$A189+$A$11,0,1,1) -> 2015-04-06 | C189: =OFFSET(InputPriceData!G$15,CalculationsAndCharts!$A189+$A$11,IF($C$7,8,0),1,1) -> 3302970000 | D189: =OFFSET(InputPriceData!C$15,CalculationsAndCharts!$A189+$A$11,IF($C$7,8,0),1,1) -> 2064.87 | E189: =OFFSET(InputPriceData!D$15,CalculationsAndCharts!$A189+$A$11,IF($C$7,8,0),1,1) -> 2086.99 | F189: =OFFSET(InputPriceData!E$15,CalculationsAndCharts!$A189+$A$11,IF($C$7,8,0),1,1) -> 2056.52 | G189: =OFFSET(InputPriceData!F$15,CalculationsAndCharts!$A189+$A$11,IF($C$7,8,0),1,1) -> 2080.62 | H189: 3302970000 | J189: 2071.239372 | K189: 0.5697746218 | L189: 0.2800380644 | M189: 28.00380644 | N189: 0.7399969102 | O189: 0.3001939603 | P189: 30.01939603 | Q189: 10 | R189: 50 | S189: 60
A190: 158 | B190: =OFFSET(InputPriceData!B$15,CalculationsAndCharts!$A190+$A$11,0,1,1) -> 2015-04-02 | C190: =OFFSET(InputPriceData!G$15,CalculationsAndCharts!$A190+$A$11,IF($C$7,8,0),1,1) -> 3095960000 | D190: =OFFSET(InputPriceData!C$15,CalculationsAndCharts!$A190+$A$11,IF($C$7,8,0),1,1) -> 2060.03 | E190: =OFFSET(InputPriceData!D$15,CalculationsAndCharts!$A190+$A$11,IF($C$7,8,0),1,1) -> 2072.17 | F190: =OFFSET(InputPriceData!E$15,CalculationsAndCharts!$A190+$A$11,IF($C$7,8,0),1,1) -> 2057.32 | G190: =OFFSET(InputPriceData!F$15,CalculationsAndCharts!$A190+$A$11,IF($C$7,8,0),1,1) -> 2066.96 | H190: 3095960000 | J190: 2070.85649 | K190: 0.3410003087 | L190: 0.2495394794 | M190: 24.95394794 | N190: 0 | O190: 0.2538989129 | P190: 25.38989129 | Q190: 10 | R190: 50 | S190: 60
A191: 159 | B191: =OFFSET(InputPriceData!B$15,CalculationsAndCharts!$A191+$A$11,0,1,1) -> 2015-04-01 | C191: =OFFSET(InputPriceData!G$15,CalculationsAndCharts!$A191+$A$11,IF($C$7,8,0),1,1) -> 3543270000 | D191: =OFFSET(InputPriceData!C$15,CalculationsAndCharts!$A191+$A$11,IF($C$7,8,0),1,1) -> 2067.63 | E191: =OFFSET(InputPriceData!D$15,CalculationsAndCharts!$A191+$A$11,IF($C$7,8,0),1,1) -> 2067.63 | F191: =OFFSET(InputPriceData!E$15,CalculationsAndCharts!$A191+$A$11,IF($C$7,8,0),1,1) -> 2048.38 | G191: =OFFSET(InputPriceData!F$15,CalculationsAndCharts!$A191+$A$11,IF($C$7,8,0),1,1) -> 2059.69 | I191: 3543270000 | J191: 2071.01553 | K191: 0 | L191: 0.2399120237 | M191: 23.99120237 | N191: 0.8657500386 | O191: 0.2806251143 | P191: 28.06251143 | Q191: 10 | R191: 50 | S191: 60
A192: 160 | B192: =OFFSET(InputPriceData!B$15,CalculationsAndCharts!$A192+$A$11,0,1,1) -> 2015-03-31 | C192: =OFFSET(InputPriceData!G$15,CalculationsAndCharts!$A192+$A$11,IF($C$7,8,0),1,1) -> 3376550000 | D192: =OFFSET(InputPriceData!C$15,CalculationsAndCharts!$A192+$A$11,IF($C$7,8,0),1,1) -> 2084.05 | E192: =OFFSET(InputPriceData!D$15,CalculationsAndCharts!$A192+$A$11,IF($C$7,8,0),1,1) -> 2084.05 | F192: =OFFSET(InputPriceData!E$15,CalculationsAndCharts!$A192+$A$11,IF($C$7,8,0),1,1) -> 2067.04 | G192: =OFFSET(InputPriceData!F$15,CalculationsAndCharts!$A192+$A$11,IF($C$7,8,0),1,1) -> 2067.89 | I192: 3376550000 | J192: 2071.477797 | K192: 0 | L192: 0.2651659209 | M192: 26.51659209 | N192: 0 | O192: 0.219033017 | P192: 21.9033017 | Q192: 10 | R192: 50 | S192: 60
A193: 161 | B193: =OFFSET(InputPriceData!B$15,CalculationsAndCharts!$A193+$A$11,0,1,1) -> 2015-03-30 | C193: =OFFSET(InputPriceData!G$15,CalculationsAndCharts!$A193+$A$11,IF($C$7,8,0),1,1) -> 2917690000 | D193: =OFFSET(InputPriceData!C$15,CalculationsAndCharts!$A193+$A$11,IF($C$7,8,0),1,1) -> 2064.11 | E193: =OFFSET(InputPriceData!D$15,CalculationsAndCharts!$A193+$A$11,IF($C$7,8,0),1,1) -> 2088.97 | F193: =OFFSET(InputPriceData!E$15,CalculationsAndCharts!$A193+$A$11,IF($C$7,8,0),1,1) -> 2064.11 | G193: =OFFSET(InputPriceData!F$15,CalculationsAndCharts!$A193+$A$11,IF($C$7,8,0),1,1) -> 2086.24 | H193: 2917690000 | J193: 2071.624237 | K193: 0.5921132765 | L193: 0.2930781231 | M193: 29.30781231 | N193: 0 | O193: 0.2420891241 | P193: 24.20891241 | Q193: 10 | R193: 50 | S193: 60
A194: 162 | B194: =OFFSET(InputPriceData!B$15,CalculationsAndCharts!$A194+$A$11,0,1,1) -> 2015-03-27 | C194: =OFFSET(InputPriceData!G$15,CalculationsAndCharts!$A194+$A$11,IF($C$7,8,0),1,1) -> 3008550000 | D194: =OFFSET(InputPriceData!C$15,CalculationsAndCharts!$A194+$A$11,IF($C$7,8,0),1,1) -> 2055.78 | E194: =OFFSET(InputPriceData!D$15,CalculationsAndCharts!$A194+$A$11,IF($C$7,8,0),1,1) -> 2062.83 | F194: =OFFSET(InputPriceData!E$15,CalculationsAndCharts!$A194+$A$11,IF($C$7,8,0),1,1) -> 2052.96 | G194: =OFFSET(InputPriceData!F$15,CalculationsAndCharts!$A194+$A$11,IF($C$7,8,0),1,1) -> 2061.02 | H194: 3008550000 | J194: 2071.027676 | K194: 0 | L194: 0.2616007385 | M194: 26.16007385 | N194: 0 | O194: 0.2675721898 | P194: 26.75721898 | Q194: 10 | R194: 50 | S194: 60
A195: 163 | B195: =OFFSET(InputPriceData!B$15,CalculationsAndCharts!$A195+$A$11,0,1,1) -> 2015-03-26 | C195: =OFFSET(InputPriceData!G$15,CalculationsAndCharts!$A195+$A$11,IF($C$7,8,0),1,1) -> 3510670000 | D195: =OFFSET(InputPriceData!C$15,CalculationsAndCharts!$A195+$A$11,IF($C$7,8,0),1,1) -> 2059.94 | E195: =OFFSET(InputPriceData!D$15,CalculationsAndCharts!$A195+$A$11,IF($C$7,8,0),1,1) -> 2067.15 | F195: =OFFSET(InputPriceData!E$15,CalculationsAndCharts!$A195+$A$11,IF($C$7,8,0),1,1) -> 2045.5 | G195: =OFFSET(InputPriceData!F$15,CalculationsAndCharts!$A195+$A$11,IF($C$7,8,0),1,1) -> 2056.15 | I195: 3510670000 | J195: 2071.436152 | K195: 0 | L195: 0.2891376584 | M195: 28.91376584 | N195: 0.9103533405 | O195: 0.2957376834 | P195: 29.57376834 | Q195: 10 | R195: 50 | S195: 60
A196: 164 | B196: =OFFSET(InputPriceData!B$15,CalculationsAndCharts!$A196+$A$11,0,1,1) -> 2015-03-25 | C196: =OFFSET(InputPriceData!G$15,CalculationsAndCharts!$A196+$A$11,IF($C$7,8,0),1,1) -> 3521140000 | D196: =OFFSET(InputPriceData!C$15,CalculationsAndCharts!$A196+$A$11,IF($C$7,8,0),1,1) -> 2093.1 | E196: =OFFSET(InputPriceData!D$15,CalculationsAndCharts!$A196+$A$11,IF($C$7,8,0),1,1) -> 2097.43 | F196: =OFFSET(InputPriceData!E$15,CalculationsAndCharts!$A196+$A$11,IF($C$7,8,0),1,1) -> 2061.05 | G196: =OFFSET(InputPriceData!F$15,CalculationsAndCharts!$A196+$A$11,IF($C$7,8,0),1,1) -> 2061.05 | I196: 3521140000 | J196: 2072.060077 | K196: 0 | L196: 0.3195732014 | M196: 31.95732014 | N196: 0.6704212313 | O196: 0.2310412985 | P196: 23.10412985 | Q196: 10 | R196: 50 | S196: 60
A197: 165 | B197: =OFFSET(InputPriceData!B$15,CalculationsAndCharts!$A197+$A$11,0,1,1) -> 2015-03-24 | C197: =OFFSET(InputPriceData!G$15,CalculationsAndCharts!$A197+$A$11,IF($C$7,8,0),1,1) -> 3189820000 | D197: =OFFSET(InputPriceData!C$15,CalculationsAndCharts!$A197+$A$11,IF($C$7,8,0),1,1) -> 2103.94 | E197: =OFFSET(InputPriceData!D$15,CalculationsAndCharts!$A197+$A$11,IF($C$7,8,0),1,1) -> 2107.63 | F197: =OFFSET(InputPriceData!E$15,CalculationsAndCharts!$A197+$A$11,IF($C$7,8,0),1,1) -> 2091.5 | G197: =OFFSET(InputPriceData!F$15,CalculationsAndCharts!$A197+$A$11,IF($C$7,8,0),1,1) -> 2091.5 | I197: 3189820000 | J197: 2072.509468 | K197: 0 | L197: 0.3532124857 | M197: 35.32124857 | N197: 0.261965812 | O197: 0.1847907792 | P197: 18.47907792 | Q197: 10 | R197: 50 | S197: 60
A198: 166 | B198: =OFFSET(InputPriceData!B$15,CalculationsAndCharts!$A198+$A$11,0,1,1) -> 2015-03-23 | C198: =OFFSET(InputPriceData!G$15,CalculationsAndCharts!$A198+$A$11,IF($C$7,8,0),1,1) -> 3267960000 | D198: =OFFSET(InputPriceData!C$15,CalculationsAndCharts!$A198+$A$11,IF($C$7,8,0),1,1) -> 2107.99 | E198: =OFFSET(InputPriceData!D$15,CalculationsAndCharts!$A198+$A$11,IF($C$7,8,0),1,1) -> 2114.86 | F198: =OFFSET(InputPriceData!E$15,CalculationsAndCharts!$A198+$A$11,IF($C$7,8,0),1,1) -> 2104.42 | G198: =OFFSET(InputPriceData!F$15,CalculationsAndCharts!$A198+$A$11,IF($C$7,8,0),1,1) -> 2104.42 | I198: 3267960000 | J198: 2071.734344 | K198: 0.9319522371 | L198: 0.3903927474 | M198: 39.03927474 | N198: 0 | O198: 0.1766670915 | P198: 17.66670915 | Q198: 10 | R198: 50 | S198: 60
A199: 167 | B199: =OFFSET(InputPriceData!B$15,CalculationsAndCharts!$A199+$A$11,0,1,1) -> 2015-03-20 | C199: =OFFSET(InputPriceData!G$15,CalculationsAndCharts!$A199+$A$11,IF($C$7,8,0),1,1) -> 5554120000 | D199: =OFFSET(InputPriceData!C$15,CalculationsAndCharts!$A199+$A$11,IF($C$7,8,0),1,1) -> 2090.32 | E199: =OFFSET(InputPriceData!D$15,CalculationsAndCharts!$A199+$A$11,IF($C$7,8,0),1,1) -> 2113.92 | F199: =OFFSET(InputPriceData!E$15,CalculationsAndCharts!$A199+$A$11,IF($C$7,8,0),1,1) -> 2090.32 | G199: =OFFSET(InputPriceData!F$15,CalculationsAndCharts!$A199+$A$11,IF($C$7,8,0),1,1) -> 2108.1 | H199: 5554120000 | J199: 2070.400235 | K199: 0.918429003 | L199: 0.3333864853 | M199: 33.33864853 | N199: 0 | O199: 0.1952636275 | P199: 19.52636275 | Q199: 10 | R199: 50 | S199: 60
A200: 168 | B200: =OFFSET(InputPriceData!B$15,CalculationsAndCharts!$A200+$A$11,0,1,1) -> 2015-03-19 | C200: =OFFSET(InputPriceData!G$15,CalculationsAndCharts!$A200+$A$11,IF($C$7,8,0),1,1) -> 3305220000 | D200: =OFFSET(InputPriceData!C$15,CalculationsAndCharts!$A200+$A$11,IF($C$7,8,0),1,1) -> 2098.69 | E200: =OFFSET(InputPriceData!D$15,CalculationsAndCharts!$A200+$A$11,IF($C$7,8,0),1,1) -> 2098.69 | F200: =OFFSET(InputPriceData!E$15,CalculationsAndCharts!$A200+$A$11,IF($C$7,8,0),1,1) -> 2085.56 | G200: =OFFSET(InputPriceData!F$15,CalculationsAndCharts!$A200+$A$11,IF($C$7,8,0),1,1) -> 2089.27 | I200: 3305220000 | J200: 2068.86147 | K200: 0 | L200: 0.2718030624 | M200: 27.18030624 | N200: 0 | O200: 0.2158176936 | P200: 21.58176936 | Q200: 10 | R200: 50 | S200: 60
A201: 169 | B201: =OFFSET(InputPriceData!B$15,CalculationsAndCharts!$A201+$A$11,0,1,1) -> 2015-03-18 | C201: =OFFSET(InputPriceData!G$15,CalculationsAndCharts!$A201+$A$11,IF($C$7,8,0),1,1) -> 4128210000 | D201: =OFFSET(InputPriceData!C$15,CalculationsAndCharts!$A201+$A$11,IF($C$7,8,0),1,1) -> 2072.84 | E201: =OFFSET(InputPriceData!D$15,CalculationsAndCharts!$A201+$A$11,IF($C$7,8,0),1,1) -> 2106.85 | F201: =OFFSET(InputPriceData!E$15,CalculationsAndCharts!$A201+$A$11,IF($C$7,8,0),1,1) -> 2061.23 | G201: =OFFSET(InputPriceData!F$15,CalculationsAndCharts!$A201+$A$11,IF($C$7,8,0),1,1) -> 2099.5 | H201: 4128210000 | J201: 2068.028468 | K201: 0.8167170191 | L201: 0.3004139111 | M201: 30.04139111 | N201: 0.6931623932 | O201: 0.2385353455 | P201: 23.85353455 | Q201: 10 | R201: 50 | S201: 60
A202: 170 | B202: =OFFSET(InputPriceData!B$15,CalculationsAndCharts!$A202+$A$11,0,1,1) -> 2015-03-17 | C202: =OFFSET(InputPriceData!G$15,CalculationsAndCharts!$A202+$A$11,IF($C$7,8,0),1,1) -> 3221840000 | D202: =OFFSET(InputPriceData!C$15,CalculationsAndCharts!$A202+$A$11,IF($C$7,8,0),1,1) -> 2080.59 | E202: =OFFSET(InputPriceData!D$15,CalculationsAndCharts!$A202+$A$11,IF($C$7,8,0),1,1) -> 2080.59 | F202: =OFFSET(InputPriceData!E$15,CalculationsAndCharts!$A202+$A$11,IF($C$7,8,0),1,1) -> 2065.08 | G202: =OFFSET(InputPriceData!F$15,CalculationsAndCharts!$A202+$A$11,IF($C$7,8,0),1,1) -> 2074.28 | I202: 3221840000 | J202: 2066.743916 | K202: 0 | L202: 0.2460662155 | M202: 24.60662155 | N202: 0 | O202: 0.1906798668 | P202: 19.06798668 | Q202: 10 | R202: 50 | S202: 60
A203: 171 | B203: =OFFSET(InputPriceData!B$15,CalculationsAndCharts!$A203+$A$11,0,1,1) -> 2015-03-16 | C203: =OFFSET(InputPriceData!G$15,CalculationsAndCharts!$A203+$A$11,IF($C$7,8,0),1,1) -> 3295600000 | D203: =OFFSET(InputPriceData!C$15,CalculationsAndCharts!$A203+$A$11,IF($C$7,8,0),1,1) -> 2055.35 | E203: =OFFSET(InputPriceData!D$15,CalculationsAndCharts!$A203+$A$11,IF($C$7,8,0),1,1) -> 2081.41 | F203: =OFFSET(InputPriceData!E$15,CalculationsAndCharts!$A203+$A$11,IF($C$7,8,0),1,1) -> 2055.35 | G203: =OFFSET(InputPriceData!F$15,CalculationsAndCharts!$A203+$A$11,IF($C$7,8,0),1,1) -> 2081.19 | H203: 3295600000 | J203: 2066.436321 | K203: 0.4507265142 | L203: 0.2719679224 | M203: 27.19679224 | N203: 0 | O203: 0.2107514317 | P203: 21.07514317 | Q203: 10 | R203: 50 | S203: 60
A204: 172 | B204: =OFFSET(InputPriceData!B$15,CalculationsAndCharts!$A204+$A$11,0,1,1) -> 2015-03-13 | C204: =OFFSET(InputPriceData!G$15,CalculationsAndCharts!$A204+$A$11,IF($C$7,8,0),1,1) -> 3498560000 | D204: =OFFSET(InputPriceData!C$15,CalculationsAndCharts!$A204+$A$11,IF($C$7,8,0),1,1) -> 2064.56 | E204: =OFFSET(InputPriceData!D$15,CalculationsAndCharts!$A204+$A$11,IF($C$7,8,0),1,1) -> 2064.56 | F204: =OFFSET(InputPriceData!E$15,CalculationsAndCharts!$A204+$A$11,IF($C$7,8,0),1,1) -> 2041.17 | G204: =OFFSET(InputPriceData!F$15,CalculationsAndCharts!$A204+$A$11,IF($C$7,8,0),1,1) -> 2053.4 | I204: 3498560000 | J204: 2065.83413 | K204: 0 | L204: 0.2531512285 | M204: 25.31512285 | N204: 0 | O204: 0.232935793 | P204: 23.2935793 | Q204: 10 | R204: 50 | S204: 60
... 2328 more rows

Sheet Follow
A1: Stocks and Indexes I wish to follow
A3: To ease following a stock, enter a Yahoo Finance acceptable symbol in column "A" anywhere below cell "A9".
A4: Thereafter you may doubleclick the cell containing a symbol of interest to initiate data retrieval and charting for that symbol.
A7: Symbol
A8: To | B8: Description | C8: Last Trade as of most recent check
A9: Follow | C9: Date | D9: Time | E9: Open | F9: High | G9: Low | H9: Close | I9: Volume | J9: Change
A10: A | B10: Agilent Technolog (A) -NYSE (Daily) | C10: 2015-02-02 | D10: 16:03:00 | E10: 37.9 | F10: 38.76 | G10: 37.71 | H10: 38.69 | I10: 2508493 | J10: 0.92
A11: AAL | B11: American Airlines (AAL) -NasdaqNM (Daily) | C11: 2015-02-19 | D11: 16:00:00 | E11: 50.73 | F11: 50.8 | G11: 49.59 | H11: 49.78 | I11: 11462722 | J11: 0.47
A12: ADM | B12: Archer-Daniels-Mi (ADM) -NYSE (Daily) | C12: 2015-02-02 | D12: 16:00:00 | E12: 46.79 | F12: 48.195 | G12: 46.72 | H12: 48.17 | I12: 6479474 | J12: 1.54
A13: AMC | B13: AMC Entertainment Holdings, Inc (AMC) -NYQ (Daily) | C13: 2015-09-04 | D13: 16:00:00 | E13: 27.14 | F13: 27.95 | G13: 26.99 | H13: 27.71 | I13: 167990 | J13: 0.28
A14: BSX | B14: Boston Scientific Corporation C (BSX) -NYQ (Daily) | C14: 2015-03-13 | D14: 16:01:00 | E14: 16.84 | F14: 16.91 | G14: 16.44 | H14: 16.61 | I14: 7262460 | J14: -0.28
A15: CASY | B15: Caseys General Stores, Inc. (CASY) -NMS (Daily) | C15: 2015-12-03 | D15: 16:00:00 | E15: 119.46 | F15: 121.05 | G15: 117.55 | H15: 117.62 | I15: 289319 | J15: -1.97
A16: CSCO | B16: Cisco Systems, In (CSCO) -NasdaqNM (Daily) | C16: 2015-02-19 | D16: 16:00:00 | E16: 29.32 | F16: 29.39 | G16: 29.13 | H16: 29.31 | I16: 21469012 | J16: -0.18
A17: CVS | B17: CVS Health Corpor (CVS) -NYSE (Daily) | C17: 2015-02-02 | D17: 16:01:00 | E17: 98.34 | F17: 99.22 | G17: 97.06 | H17: 99.11 | I17: 4416094 | J17: 0.95
A18: DIS | B18: Walt Disney Compa (DIS) -NYSE (Daily) | C18: 2015-02-26 | D18: 16:00:00 | E18: 105.5 | F18: 105.71 | G18: 104.14 | H18: 104.56 | I18: 5044969 | J18: -1.01
A19: EMC | B19: EMC Corporation C (EMC) -NYSE (Daily) | C19: 2015-02-19 | D19: 16:00:00 | E19: 28.26 | F19: 28.83 | G19: 28.19 | H19: 28.72 | I19: 11049079 | J19: 0.52
A20: F | B20: Ford Motor Company Common Stock (F) -NYQ (Daily) | C20: 2015-08-10 | D20: 16:00:00 | E20: 14.86 | F20: 15 | G20: 14.81 | H20: 14.99 | I20: 16804929 | J20: 0.19
A21: GSK | B21: GlaxoSmithKline P (GSK) -NYSE (Daily) | C21: 2015-02-02 | D21: 16:01:00 | E21: 44.11 | F21: 44.12 | G21: 43.71 | H21: 43.96 | I21: 3654466 | J21: -0.04
A22: HSY | B22: The Hershey Compa (HSY) -NYSE (Daily) | C22: 2015-02-19 | D22: 16:02:00 | E22: 106.97 | F22: 107.31 | G22: 105.42 | H22: 105.95 | I22: 1448321 | J22: -1
A23: HTLD | B23: Heartland Express (HTLD) -NasdaqNM (Daily) | C23: 2015-02-02 | D23: 16:00:00 | E23: 25.68 | F23: 25.81 | G23: 25.36 | H23: 25.62 | I23: 542510 | J23: -0.07
A24: IBM | B24: International Bus (IBM) -NYSE (Daily) | C24: 2015-02-02 | D24: 16:01:00 | E24: 154 | F24: 154.66 | G24: 151.51 | H24: 154.66 | I24: 4712247 | J24: 1.35
A25: INTC | B25: Intel Corporation (INTC) -NasdaqNM (Daily) | C25: 2015-02-19 | D25: 16:00:00 | E25: 34.25 | F25: 34.42 | G25: 34.05 | H25: 34.21 | I25: 11017541 | J25: -0.055
A26: JNJ | B26: Johnson & Johnson (JNJ) -NYSE (Daily) | C26: 2015-02-19 | D26: 16:00:00 | E26: 99.98 | F26: 100.84 | G26: 99.61 | H26: 100.7 | I26: 10022266 | J26: 0.74
A27: KO | B27: Coca-Cola Company (The) Common (KO) -NYQ (Daily) | C27: 2015-08-10 | D27: 16:00:00 | E27: 41.89 | F27: 41.99 | G27: 41.58 | H27: 41.68 | I27: 9501875 | J27: -0.09
A28: LHO | B28: LaSalle Hotel Pro (LHO) -NYSE (Daily) | C28: 2015-02-02 | D28: 16:06:00 | E28: 40.51 | F28: 40.74 | G28: 39.46 | H28: 40.26 | I28: 1034675 | J28: -0.2
A29: LINE | B29: Linn Energy, LLC (LINE) -NasdaqNM (Daily) | C29: 2015-02-02 | D29: 16:00:00 | E29: 10.4 | F29: 10.78 | G29: 10.25 | H29: 10.77 | I29: 3766537 | J29: 0.51
A30: LO | B30: Lorillard, Inc Co (LO) -NYSE (Daily) | C30: 2015-02-02 | D30: 16:03:00 | E30: 65.71 | F30: 66.29 | G30: 65.43 | H30: 66.29 | I30: 1563618 | J30: 0.68
A31: MCD | B31: McDonald's Corpor (MCD) -NYSE (Daily) | C31: 2015-03-03 | D31: 13:36:00 | E31: 99.89 | F31: 100.44 | G31: 99.57 | H31: 99.93 | I31: 5222757 | J31: -0.07
A32: MDT | B32: Medtronic plc. Or (MDT) -NYSE (Daily) | C32: 2015-02-19 | D32: 16:01:00 | E32: 78.59 | F32: 78.59 | G32: 77.85 | H32: 78.13 | I32: 6900528 | J32: -0.37
A33: MGM | B33: MGM Resorts Inter (MGM) -NYSE (Daily) | C33: 2015-02-02 | D33: 16:00:00 | E33: 19.44 | F33: 19.75 | G33: 19.12 | H33: 19.74 | I33: 7570281 | J33: 0.26
A34: MO | B34: Altria Group, Inc (MO) -NYSE (Daily) | C34: 2015-02-02 | D34: 16:01:00 | E34: 53.25 | F34: 53.84 | G34: 52.98 | H34: 53.8 | I34: 9183582 | J34: 0.7
A35: MSFT | B35: Microsoft Corpora (MSFT) -NasdaqNM (Daily) | C35: 2015-02-20 | D35: 16:00:00 | E35: 43.51 | F35: 43.88 | G35: 43.29 | H35: 43.855 | I35: 29721132 | J35: 0.355
A36: NVS | B36: Novartis AG Commo (NVS) -NYSE (Daily) | C36: 2015-02-19 | D36: 16:05:00 | E36: 102.32 | F36: 102.7 | G36: 102.001 | H36: 102.25 | I36: 931036 | J36: 0.08
A37: PRU | B37: Prudential Financ (PRU) -NYSE (Daily) | C37: 2015-02-23 | D37: 12:22:00 | E37: 80.25 | F37: 80.4499 | G37: 79.8 | H37: 80.12 | I37: 1604052 | J37: -0.69
A38: PSEC | B38: Prospect Capital Corporation (PSEC) -NMS (Daily) | C38: 2015-08-10 | D38: 16:00:00 | E38: 7.14 | F38: 7.28 | G38: 7.14 | H38: 7.23 | I38: 2132354 | J38: 0.09
A39: RAI | B39: Reynolds American (RAI) -NYSE (Daily) | C39: 2015-02-02 | D39: 16:03:00 | E39: 68.12 | F39: 69.06 | G39: 67.4346 | H39: 69.05 | I39: 1822013 | J39: 1.1
A40: RPM | B40: RPM International Inc. (RPM) -NYSE | C40: 2015-09-08 | D40: 15:01:00 | E40: 43.55 | F40: 43.96 | G40: 43.3 | H40: 43.94 | I40: 114939 | J40: 1.11 | K40: Owns Rust-Oleum
A41: RSP | B41: Guggenheim S&P 50 (RSP) -PCX (Daily) | C41: 2015-02-02 | D41: 16:00:00 | E41: 78.04 | F41: 78.81 | G41: 77.16 | H41: 78.55 | I41: 4156915 | J41: 0.838
A42: SONC | B42: Sonic Corp. (SONC) -NasdaqNM (Daily) | C42: 2015-03-04 | D42: 11:53:00 | E42: 33.65 | F42: 34.05 | G42: 33.44 | H42: 33.77 | I42: 174036 | J42: -0.09
A43: SWKS | B43: Skyworks Solution (SWKS) -NasdaqNM (Daily) | C43: 2015-02-02 | D43: 16:00:00 | E43: 83.07 | F43: 83.73 | G43: 80.15 | H43: 82.02 | I43: 4119001 | J43: -1.03
A44: TOL | B44: Toll Brothers Inc (TOL) -NYSE (Daily) | C44: 2015-02-23 | D44: 12:23:00 | E44: 37.56 | F44: 37.77 | G44: 37.1 | H44: 37.36 | I44: 1521944 | J44: -0.29
A45: UNP | B45: Union Pacific Cor (UNP) -NYSE (Daily) | C45: 2015-02-02 | D45: 16:10:00 | E45: 118.13 | F45: 119.06 | G45: 116.7 | H45: 119.01 | I45: 3259594 | J45: 1.8
A46: VZ | B46: Verizon Communica (VZ) -NYSE (Daily) | C46: 2015-02-23 | D46: 12:22:00 | E46: 48.94 | F46: 49 | G46: 48.54 | H46: 48.825 | I46: 4204644 | J46: -0.145
A47: WBA | B47: (WBA) -NasdaqNM (Daily) | C47: 2015-02-02 | D47: 16:00:00 | E47: 73.06 | F47: 74.98 | G47: 73 | H47: 74.89 | I47: 4247395 | J47: 1.14
A48: WMT | B48: Wal-Mart Stores Inc. (WMT) -NYSE | C48: 2015-09-08 | D48: 14:34:00 | E48: 65.23 | F48: 66.38 | G48: 65.2 | H48: 66.29 | I48: 12351247 | J48: 2.4
A50: ^NDX | B50: NASDAQ-100 (^NDX) -NIM (Daily) | C50: 2015-08-10 | D50: 17:15:00 | E50: 4558.68 | F50: 4583.63 | G50: 4554.63 | H50: 4573.11 | I50: 0 | J50: 53.03
A51: ^DJI | B51: Dow Jones Industrial Average (^DJI) -DJI | C51: 2015-12-06 | D51: D ec | E51: 17482.68 | F51: 17866.47 | G51: 17482.68 | H51: 17847.63 | I51: 0 | J51: 369.96
A52: SPY | B52: SPDR S&P 500 (SPY) -PCX (Daily) | C52: 2015-12-04 | D52: 16:00:00 | E52: 206.08 | F52: 209.97 | G52: 205.93 | H52: 209.62 | I52: 192913879 | J52: 4.01
A53: ^GSPC | B53: S&P 500 (^GSPC) -SNP (Daily) | C53: 2015-12-04 | D53: 16:33:00 | E53: 2051.24 | F53: 2093.84 | G53: 2051.24 | H53: 2091.69 | I53: 740000496 | J53: 42.07
A54: ^RUT | B54: Russell 2000 (^RUT) -WCB (Daily) | C54: 2015-12-04 | D54: 16:30:00 | E54: 1170.642456 | F54: 1183.823486 | G54: 1170.491699 | H54: 1183.397095 | I54: 0 | J54: 12.830688
A55: ^VIX | B55: VOLATILITY S&P 500 (^VIX) -WCB (Daily) | C55: 2015-12-04 | D55: 16:14:00 | E55: 17.43 | F55: 17.65 | G55: 14.69 | H55: 14.81 | I55: 0 | J55: -3.3
A58: ACAD | B58: ACADIA Pharmaceut (ACAD) -NasdaqNM (Daily) | C58: 2014-07-21 | D58: 16:00:00 | E58: 20.13 | F58: 20.55 | G58: 19.8101 | H58: 20.31 | I58: 691016
A59: CLDX | B59: Celldex Therapeut (CLDX) -NasdaqNM (Daily) | C59: 2015-02-02 | D59: 16:00:00 | E59: 21.47 | F59: 21.69 | G59: 20.11 | H59: 21.02 | I59: 1570418 | J59: -0.4
A60: ICPT | B60: Intercept Pharmac (ICPT) -NasdaqNM (Daily) | C60: 2014-07-21 | D60: 16:00:00 | E60: 215.97 | F60: 218.43 | G60: 213.05 | H60: 218.14 | I60: 191276
A61: INO | B61: Inovio Pharmaceut (INO) -AMEX (Daily) | C61: 2014-07-21 | D61: 16:00:00 | E61: 10.3 | F61: 11.08 | G61: 10.1 | H61: 11.01 | I61: 1800796
A62: JCP | B62: J.C. Penney Compa (JCP) -NYSE (Daily) | C62: 2015-02-02 | D62: 16:01:00 | E62: 7.16 | F62: 7.44 | G62: 7.01 | H62: 7.43 | I62: 12772679 | J62: 0.16
A63: LCI | B63: Lannett Co Inc Co (LCI) -NYSE (Daily) | C63: 2014-07-21 | D63: 16:02:00 | E63: 38.09 | F63: 38.803 | G63: 36.5101 | H63: 37.76 | I63: 611367
A64: NPSP | B64: NPS Pharmaceutica (NPSP) -NasdaqNM (Daily) | C64: 2014-07-21 | D64: 15:59:00 | E64: 28.75 | F64: 29.43 | G64: 28.31 | H64: 29.29 | I64: 1126758
A65: PBYI | B65: Puma Biotechnolog (PBYI) -NYSE (Daily) | C65: 2014-07-21 | D65: 16:02:00 | E65: 58.27 | F65: 59.46 | G65: 57.39 | H65: 58.98 | I65: 348030
